Directorate,Department,Expenditure Type,Ref.Doc.1,Vendor Name,Expenditure Amount (exc VAT),Payment Date
Assurance,Assurance,Other Services,0080020546,LONDON AUDIT GROUP,145.00,20/12/2018
Assurance,Assurance,Other Services,0060118681,ROYAL MAIL GROUP LIMITED,"1,081.15",04/12/2018
Assurance,Assurance,Postage,0060118704,ROYAL MAIL GROUP LIMITED,0.96,04/12/2018
Assurance,Assurance,Other Services,0060118713,ROYAL MAIL GROUP LIMITED,97.00,06/12/2018
Assurance,Assurance,Subscriptions,0060116287,THOMSON REUTERS (PROFESSIONAL)UK LT,-223.00,24/12/2018
Assurance,Assurance,Subscriptions,0080021642,DATA PROTECTION FEES,40.00,11/12/2018
Assurance,Assurance,Furniture-Purchase-Repair,0060116402,SHRED-IT,272.85,06/12/2018
Assurance,Assurance,Training,0080021863,ICSA: THE GOVERNANCE INSTITUTE,95.00,17/12/2018
Assurance,Assurance,Professional Services,0060118540,GOOD IMPRESSIONS (LONDON) LIMITED,120.00,27/12/2018
Assurance,Assurance,Other Indirect Employee Expens,0080021739,LBB CENTRAL ACCOUNT,80.00,11/12/2018
Assurance,Assurance,Other Indirect Employee Expens,0080021763,THE LONDON MAYOR'S ASSOCIATION,170.00,14/12/2018
Assurance,Assurance,Other Indirect Employee Expens,0080021926,THE MAYOR OF BARNET'S CHARITY,30.00,18/12/2018
Assurance,Assurance,Other Indirect Employee Expens,0080021929,LBBD,90.00,18/12/2018
Assurance,Assurance,Equipment and Materials Purcha,0080021948,D & R SIMMONS LTD,225.00,18/12/2018
Assurance,Assurance,Professional Services,0080021731,REDACTED - PERSONAL DATA,265.00,12/12/2018
Assurance,Assurance,Professional Services,0080021733,S7 CHAUFFEURS LTD,"2,535.00",12/12/2018
Assurance,Assurance,Other Indirect Employee Expens,0080021735,THE SPEAKER OF HACKNEY,40.00,12/12/2018
Assurance,Assurance,Other Indirect Employee Expens,0080021743,THE MAYOR'S APPEAL,25.00,12/12/2018
Assurance,Assurance,Other Indirect Employee Expens,0080021818,LBHOUNSLOWMAYOR CHARITIES A,100.00,17/12/2018
Assurance,Assurance,Stationery,0040003137,OFFICE DEPOT UK LTD,36.09,20/12/2018
Assurance,Assurance,Stationery,0040003142,OFFICE DEPOT UK LTD,36.09,27/12/2018
Assurance,Assurance,Training,0060118521,DOD'S PARLIAMENTARY,245.00,20/12/2018
Assurance,Assurance,Training,0060118008,POLICY FORUM FOR LONDON,230.00,04/12/2018
Assurance,Assurance,Consultants Fees,0060116954,PRICEWATERHOUSE COOPERS,"25,000.00",04/12/2018
Assurance,Assurance,Subscriptions,0060118577,EQUIFAX LTD,"8,975.00",03/12/2018
Assurance,Assurance,Advertising,0060117640,ACCESS POINT LTD,152.00,03/12/2018
Central Expenses,Central Expenses,Other Establishments - Third P,0060117324,LONDON COUNCILS,"100,517.00",06/12/2018
Central Expenses,Central Expenses,Other Establishments - Third P,EBX0259784,LEE VALLEY REGIONAL PARK AUTH.,"28,597.64",13/12/2018
Central Expenses,Central Expenses,Other Establishments - Third P,EBX0260460,ENVIRONMENT AGENCY,"80,523.50",19/12/2018
Central Expenses,Central Expenses,Other Establishments - Third P,EBX0259212,GREATER LONDON AUTHORITY,"3,396,343.00",20/12/2018
Central Expenses,Central Expenses,Insurance Premiums,0080021983,ZURICH MANAGEMENT SERVICES,"5,000.00",20/12/2018
Central Expenses,Central Expenses,Insurance Claims,0060118260,GRISTWOOD & TOM LTD,223.00,20/12/2018
Central Expenses,Central Expenses,Insurance Claims,0060118429,GRISTWOOD & TOM LTD,92.00,06/12/2018
Central Expenses,Central Expenses,Insurance Claims,0060119541,GRISTWOOD & TOM LTD,342.00,19/12/2018
Central Expenses,Central Expenses,Insurance Claims,0060118439,WEIGHTMANS LLP,475.00,20/12/2018
Central Expenses,Central Expenses,Insurance Claims,0060119855,WEIGHTMANS LLP,770.50,24/12/2018
Central Expenses,Central Expenses,Insurance Claims,0080022130,BROWNE JACOBSON SOLS.,560.00,27/12/2018
Central Expenses,Central Expenses,Insurance Claims,0080021075,DAS LAW,"14,810.00",18/12/2018
Central Expenses,Central Expenses,Insurance Claims,0060117902,GLENDALE COUNTRYSIDE LTD,202.25,13/12/2018
Central Expenses,Central Expenses,Insurance Claims,0060117926,GLENDALE COUNTRYSIDE LTD,238.10,13/12/2018
Central Expenses,Central Expenses,Insurance Claims,0060117930,GLENDALE COUNTRYSIDE LTD,27.46,13/12/2018
Central Expenses,Central Expenses,Insurance Claims,0060117955,GLENDALE COUNTRYSIDE LTD,219.95,13/12/2018
Central Expenses,Central Expenses,Insurance Claims,0080021412,DWP COMPENSATION RECOVERY UNIT,225.10,03/12/2018
Central Expenses,Central Expenses,Insurance Claims,0080021799,DWP COMPENSATION RECOVERY UNIT,637.00,20/12/2018
Central Expenses,Central Expenses,Insurance Claims,0060118016,IMCS (UK) PLC,150.00,19/12/2018
Central Expenses,Central Expenses,Insurance Claims,0080021442,REDACTED - PERSONAL DATA,"2,400.00",03/12/2018
Central Expenses,Central Expenses,Insurance Claims,0080021264,REDACTED - PERSONAL DATA,241.20,03/12/2018
Central Expenses,Central Expenses,Insurance Claims,0080021407,REDACTED - PERSONAL DATA,"3,250.00",03/12/2018
Central Expenses,Central Expenses,Insurance Claims,0080021463,REDACTED - PERSONAL DATA,"2,676.00",05/12/2018
Central Expenses,Central Expenses,Insurance Claims,0080021465,REDACTED - PERSONAL DATA,330.00,05/12/2018
Central Expenses,Central Expenses,Insurance Claims,0080021470,REDACTED - PERSONAL DATA,"2,277.51",05/12/2018
Central Expenses,Central Expenses,Insurance Claims,0080021477,GREGORY ABRAMS DAVIDSON LLP,360.00,04/12/2018
Central Expenses,Central Expenses,Insurance Claims,0080021515,ALLIANZ INSURANCE PLC,566.59,11/12/2018
Central Expenses,Central Expenses,Insurance Claims,0080021584,REDACTED - PERSONAL DATA,"6,500.00",11/12/2018
Central Expenses,Central Expenses,Insurance Claims,0080021736,HODGE JONES & ALLEN,"15,000.00",12/12/2018
Central Expenses,Central Expenses,Insurance Claims,0080021798,SLATER AND GORDON SOLICITORS,"24,103.00",20/12/2018
Central Expenses,Central Expenses,Insurance Claims,0080021809,EASTHAMS SOLICITORS,"1,000.00",20/12/2018
Central Expenses,Central Expenses,Insurance Claims,0080021829,REDACTED - PERSONAL DATA,246.76,20/12/2018
Central Expenses,Central Expenses,Insurance Claims,0080021884,S & G RESPONSE,"2,486.24",20/12/2018
Central Expenses,Central Expenses,Insurance Claims,0080021945,REDACTED - PERSONAL DATA,356.00,19/12/2018
Commercial,Customer Support Group,Building Repairs & Maintenance,0060117817,OAKRAY LIMITED,184.50,13/12/2018
Commercial,Customer Support Group,Building Repairs & Maintenance,0060117861,OAKRAY LIMITED,193.50,13/12/2018
Commercial,Customer Support Group,Building Repairs & Maintenance,0060118467,OAKRAY LIMITED,75.00,06/12/2018
Commercial,Customer Support Group,Building Repairs & Maintenance,0060118572,OAKRAY LIMITED,45.00,06/12/2018
Commercial,Customer Support Group,Building Repairs & Maintenance,0060118605,OAKRAY LIMITED,60.00,06/12/2018
Commercial,Customer Support Group,Building Repairs & Maintenance,0060118755,OAKRAY LIMITED,262.50,04/12/2018
Commercial,Customer Support Group,Building Repairs & Maintenance,0010014816,SECOM PLC,"1,274.14",20/12/2018
Commercial,Customer Support Group,Building Repairs & Maintenance,0060118058,P.C.C OF MONKEN HADLEY,"4,250.00",10/12/2018
Commercial,Customer Support Group,Building Repairs & Maintenance,0010014535,HERTEL (UK) LTD,24.94,04/12/2018
Commercial,Customer Support Group,Building Repairs & Maintenance,0010014554,HERTEL (UK) LTD,34.91,04/12/2018
Commercial,Customer Support Group,Building Repairs & Maintenance,0010014555,HERTEL (UK) LTD,34.91,04/12/2018
Commercial,Customer Support Group,Building Repairs & Maintenance,0010014556,HERTEL (UK) LTD,34.91,04/12/2018
Commercial,Customer Support Group,Building Repairs & Maintenance,0010014557,HERTEL (UK) LTD,34.91,04/12/2018
Commercial,Customer Support Group,Building Repairs & Maintenance,0010014558,HERTEL (UK) LTD,34.91,04/12/2018
Commercial,Customer Support Group,Building Repairs & Maintenance,0010014564,HERTEL (UK) LTD,34.91,04/12/2018
Commercial,Customer Support Group,Building Repairs & Maintenance,0010014566,HERTEL (UK) LTD,34.91,04/12/2018
Commercial,Customer Support Group,Building Repairs & Maintenance,0060095877,HERTEL (UK) LTD,24.94,04/12/2018
Commercial,Customer Support Group,Building Repairs & Maintenance,0060119203,AJS LTD,80.00,17/12/2018
Commercial,Customer Support Group,Building Repairs & Maintenance,0060118658,PURDY CONTRACTS LTD,59.76,27/12/2018
Commercial,Customer Support Group,Building Repairs & Maintenance,0060118675,PURDY CONTRACTS LTD,35.28,27/12/2018
Commercial,Customer Support Group,Building Repairs & Maintenance,0060118683,PURDY CONTRACTS LTD,91.94,27/12/2018
Commercial,Customer Support Group,Building Repairs & Maintenance,0060118707,PURDY CONTRACTS LTD,144.50,27/12/2018
Commercial,Customer Support Group,Building Repairs & Maintenance,0060118725,PURDY CONTRACTS LTD,69.70,27/12/2018
Commercial,Customer Support Group,Building Repairs & Maintenance,0060118732,PURDY CONTRACTS LTD,11.52,27/12/2018
Commercial,Customer Support Group,Building Repairs & Maintenance,0060118744,PURDY CONTRACTS LTD,86.70,27/12/2018
Commercial,Customer Support Group,Building Repairs & Maintenance,0060118765,PURDY CONTRACTS LTD,89.25,27/12/2018
Commercial,Customer Support Group,Building Repairs & Maintenance,0060118782,PURDY CONTRACTS LTD,85.00,27/12/2018
Commercial,Customer Support Group,Building Repairs & Maintenance,0060118783,PURDY CONTRACTS LTD,144.50,27/12/2018
Commercial,Customer Support Group,Cleaning and domestic material,0060114416,CHURCHILL CONTRACT SERVICES,"1,032.37",06/12/2018
Commercial,Customer Support Group,Cleaning and domestic material,0060116692,CHURCHILL CONTRACT SERVICES,"1,032.37",06/12/2018
Commercial,Customer Support Group,Cleaning and domestic material,0060119004,CHURCHILL CONTRACT SERVICES,"1,032.37",27/12/2018
Commercial,Customer Support Group,Gas,0060118772,KENT COUNTY COUNCIL (KCS),"4,819.73",04/12/2018
Commercial,Customer Support Group,Electricity,0060119043,KENT COUNTY COUNCIL (KCS),"6,578.84",13/12/2018
Commercial,Customer Support Group,Furniture-Purchase-Repair,0010014745,LYCO DIRECT LTD,87.32,07/12/2018
Commercial,Customer Support Group,Rubbish Collection,0060108390,G.B.HOLDINGS LTD,801.00,07/12/2018
Commercial,Customer Support Group,Rubbish Collection,0060114776,G.B.HOLDINGS LTD,789.00,07/12/2018
Commercial,Customer Support Group,Rubbish Collection,0060117238,PEARCE RECYCLING GROUP,131.50,21/12/2018
Commercial,Customer Support Group,Rubbish Collection,0060119556,PEARCE RECYCLING GROUP,144.00,18/12/2018
Commercial,Customer Support Group,Other Services,0060118837,BLUE 9 SECURITY LIMITED,"5,402.79",11/12/2018
Commercial,Customer Support Group,Other Services,0060119018,BLUE 9 SECURITY LIMITED,"15,013.35",11/12/2018
Commercial,Customer Support Group,Cleaning and domestic material,0060114409,CHURCHILL CONTRACT SERVICES,"11,562.54",06/12/2018
Commercial,Customer Support Group,Cleaning and domestic material,0060119112,CHURCHILL CONTRACT SERVICES,"11,562.54",27/12/2018
Commercial,Customer Support Group,Water Services,0060116477,AFFINITY WATER LIMITED,366.67,18/12/2018
Commercial,Customer Support Group,Building Repairs & Maintenance,0060117687,S W BRUCE & CO LTD,145.10,13/12/2018
Commercial,Customer Support Group,Building Repairs & Maintenance,0060119502,ELECTRASSURE LTD,250.00,17/12/2018
Commercial,Customer Support Group,Water Services,0010014795,CASTLE WATER LTD,564.02,18/12/2018
Commercial,Customer Support Group,Rents,0010014840,MONTAGU EVANS LLP,"223,500.00",21/12/2018
Commercial,Customer Support Group,Furniture-Purchase-Repair,0010014704,H.C. SLINGSBY PLC.,266.70,06/12/2018
Commercial,Customer Support Group,Rubbish Collection,0060108359,G.B.HOLDINGS LTD,256.00,17/12/2018
Commercial,Customer Support Group,Electricity,0060119887,MIDDLESEX UNIVERSITY,"5,812.51",20/12/2018
Commercial,Customer Support Group,Electricity,0060119890,MIDDLESEX UNIVERSITY,"3,153.70",20/12/2018
Commercial,Customer Support Group,Other Services,0060118896,BLUE 9 SECURITY LIMITED,"5,920.43",11/12/2018
Commercial,Customer Support Group,Cleaning and domestic material,0060114421,CHURCHILL CONTRACT SERVICES,"1,133.45",06/12/2018
Commercial,Customer Support Group,Cleaning and domestic material,0060116853,CHURCHILL CONTRACT SERVICES,93.69,06/12/2018
Commercial,Customer Support Group,Water Services,0060116041,CASTLE WATER LTD,352.07,10/12/2018
Commercial,Customer Support Group,Service Charges,0060118598,MIDDLESEX UNIVERSITY,"28,365.32",03/12/2018
Commercial,Customer Support Group,Rubbish Collection,0060115079,PEARCE RECYCLING GROUP,122.00,21/12/2018
Commercial,Customer Support Group,Rubbish Collection,0060117237,PEARCE RECYCLING GROUP,124.00,21/12/2018
Commercial,Customer Support Group,Rubbish Collection,0060119347,PEARCE RECYCLING GROUP,127.00,27/12/2018
Commercial,Customer Support Group,Other Services,0060118864,BLUE 9 SECURITY LIMITED,"11,210.40",11/12/2018
Commercial,Customer Support Group,Cleaning and domestic material,0060110823,CHURCHILL CONTRACT SERVICES,"7,329.82",03/12/2018
Commercial,Customer Support Group,Cleaning and domestic material,0060114394,CHURCHILL CONTRACT SERVICES,"7,329.82",06/12/2018
Commercial,Customer Support Group,Cleaning and domestic material,0060116881,CHURCHILL CONTRACT SERVICES,348.90,05/12/2018
Commercial,Customer Support Group,Cleaning and domestic material,0060119106,CHURCHILL CONTRACT SERVICES,"7,329.82",27/12/2018
Commercial,Customer Support Group,Building Repairs & Maintenance,0060117575,S W BRUCE & CO LTD,578.00,13/12/2018
Commercial,Customer Support Group,Electricity,0060118731,KENT COUNTY COUNCIL (KCS),205.60,04/12/2018
Commercial,Customer Support Group,Cleaning and domestic material,0060114395,CHURCHILL CONTRACT SERVICES,661.80,06/12/2018
Commercial,Customer Support Group,Cleaning and domestic material,0060116691,CHURCHILL CONTRACT SERVICES,661.80,06/12/2018
Commercial,Customer Support Group,Cleaning and domestic material,0060119117,CHURCHILL CONTRACT SERVICES,661.80,27/12/2018
Commercial,Customer Support Group,CSG Services Contract Payment,0010014777,CAPITA BUSINESS SERVICES LTD,"278,780.00",12/12/2018
Commercial,Customer Support Group,CSG Services Contract Payment,0010014778,CAPITA BUSINESS SERVICES LTD,"73,618.00",12/12/2018
Commercial,Customer Support Group,CSG Services Contract Payment,0010014779,CAPITA BUSINESS SERVICES LTD,"20,056.00",12/12/2018
Commercial,Customer Support Group,CSG Services Contract Payment,0010014780,CAPITA BUSINESS SERVICES LTD,"23,518.00",12/12/2018
Commercial,Customer Support Group,CSG Services Contract Payment,0060117354,CAPITA BUSINESS SERVICES LTD,"160,793.00",20/12/2018
Commercial,Customer Support Group,CSG Services Contract Payment,0060118336,CAPITA BUSINESS SERVICES LTD,"417,083.00",05/12/2018
Commercial,Customer Support Group,CSG Services Contract Payment,0060118371,CAPITA BUSINESS SERVICES LTD,"698,000.00",05/12/2018
Commercial,Customer Support Group,CSG Services Contract Payment,0060118386,CAPITA BUSINESS SERVICES LTD,"6,487,791.00",11/12/2018
Commercial,Customer Support Group,CSG Services Contract Payment,0060118976,CAPITA BUSINESS SERVICES LTD,"393,504.00",12/12/2018
Commercial,Customer Support Group,CSG Services Contract Payment,0010014782,CAPITA BUSINESS SERVICES LTD,"109,491.00",14/12/2018
Commercial,Customer Support Group,CSG Services Contract Payment,0010014783,CAPITA BUSINESS SERVICES LTD,"1,870,412.88",17/12/2018
Commercial,Customer Support Group,CSG Services Contract Payment,0060116210,CAPITA BUSINESS SERVICES LTD,"398,983.00",11/12/2018
Commercial,Customer Support Group,CSG Services Contract Payment,0060117134,CAPITA BUSINESS SERVICES LTD,"70,057.43",17/12/2018
Commercial,Customer Support Group,CSG Services Contract Payment,0060117146,CAPITA BUSINESS SERVICES LTD,"132,060.22",24/12/2018
Commercial,Customer Support Group,CSG Services Contract Payment,0060117343,CAPITA BUSINESS SERVICES LTD,"221,823.06",11/12/2018
Commercial,Customer Support Group,CSG Services Contract Payment,0060117352,CAPITA BUSINESS SERVICES LTD,"48,292.50",11/12/2018
Commercial,Customer Support Group,CSG Services Contract Payment,0060117754,CAPITA BUSINESS SERVICES LTD,"966,089.00",11/12/2018
Commercial,Customer Support Group,CSG Services Contract Payment,0060117761,CAPITA BUSINESS SERVICES LTD,"15,225.00",10/12/2018
Commercial,Customer Support Group,CSG Services Contract Payment,0060118018,CAPITA BUSINESS SERVICES LTD,"2,900.00",20/12/2018
Commercial,Customer Support Group,CSG Services Contract Payment,0060118021,CAPITA BUSINESS SERVICES LTD,"47,227.48",20/12/2018
Commercial,Customer Support Group,CSG Services Contract Payment,0060118041,CAPITA BUSINESS SERVICES LTD,"319,379.07",20/12/2018
Commercial,Customer Support Group,CSG Services Contract Payment,0060118062,CAPITA BUSINESS SERVICES LTD,"18,081.89",20/12/2018
Commercial,Customer Support Group,CSG Services Contract Payment,0060118063,CAPITA BUSINESS SERVICES LTD,"10,306.83",20/12/2018
Commercial,Customer Support Group,CSG Services Contract Payment,0060118064,CAPITA BUSINESS SERVICES LTD,"65,390.00",11/12/2018
Commercial,Customer Support Group,CSG Services Contract Payment,0060118080,CAPITA BUSINESS SERVICES LTD,"38,996.54",20/12/2018
Commercial,Customer Support Group,CSG Services Contract Payment,0060119429,CAPITA BUSINESS SERVICES LTD,"56,996.76",20/12/2018
Commercial,Customer Support Group,CSG Services Contract Payment,0060119831,CAPITA BUSINESS SERVICES LTD,"79,350.00",24/12/2018
Commercial,Customer Support Group,Fees and Charges,0080022046,REDACTED - PERSONAL DATA,100.00,21/12/2018
Commercial,Customer Support Group,Gas,0060115864,KENT COUNTY COUNCIL (KCS),181.01,03/12/2018
Commercial,Customer Support Group,Building Repairs & Maintenance,0010014528,HERTEL (UK) LTD,192.00,04/12/2018
Commercial,Customer Support Group,Building Repairs & Maintenance,0010014532,HERTEL (UK) LTD,"1,605.14",04/12/2018
Commercial,Customer Support Group,Building Repairs & Maintenance,0010014534,HERTEL (UK) LTD,34.91,04/12/2018
Commercial,Customer Support Group,Building Repairs & Maintenance,0010014538,HERTEL (UK) LTD,34.91,04/12/2018
Commercial,Customer Support Group,Building Repairs & Maintenance,0010014539,HERTEL (UK) LTD,34.91,04/12/2018
Commercial,Customer Support Group,Building Repairs & Maintenance,0010014540,HERTEL (UK) LTD,34.91,04/12/2018
Commercial,Customer Support Group,Building Repairs & Maintenance,0010014541,HERTEL (UK) LTD,34.91,04/12/2018
Commercial,Customer Support Group,Building Repairs & Maintenance,0010014546,HERTEL (UK) LTD,34.91,04/12/2018
Commercial,Customer Support Group,Building Repairs & Maintenance,0010014547,HERTEL (UK) LTD,34.91,04/12/2018
Commercial,Customer Support Group,Building Repairs & Maintenance,0010014548,HERTEL (UK) LTD,34.91,04/12/2018
Commercial,Customer Support Group,Building Repairs & Maintenance,0010014549,HERTEL (UK) LTD,34.91,04/12/2018
Commercial,Customer Support Group,Building Repairs & Maintenance,0010014550,HERTEL (UK) LTD,34.91,04/12/2018
Commercial,Customer Support Group,Building Repairs & Maintenance,0010014551,HERTEL (UK) LTD,34.91,04/12/2018
Commercial,Customer Support Group,Building Repairs & Maintenance,0010014553,HERTEL (UK) LTD,34.91,04/12/2018
Commercial,Customer Support Group,Building Repairs & Maintenance,0010014562,HERTEL (UK) LTD,34.91,04/12/2018
Commercial,Customer Support Group,Building Repairs & Maintenance,0010014567,HERTEL (UK) LTD,34.91,04/12/2018
Commercial,Customer Support Group,Building Repairs & Maintenance,0010014571,HERTEL (UK) LTD,34.91,04/12/2018
Commercial,Customer Support Group,Rubbish Collection,0060119684,G.B.HOLDINGS LTD,116.20,17/12/2018
Commercial,Customer Support Group,Rubbish Collection,0060119716,G.B.HOLDINGS LTD,38.20,17/12/2018
Commercial,Customer Support Group,Electricity,0010014793,E-ON ENERGY,22.40,18/12/2018
Commercial,Customer Support Group,Advertising,0060118618,GOOD IMPRESSIONS (LONDON) LIMITED,150.00,27/12/2018
Commercial,Customer Support Group,Other Services,0060118874,BLUE 9 SECURITY LIMITED,53.72,11/12/2018
Commercial,Customer Support Group,Other Services,0060119026,BLUE 9 SECURITY LIMITED,201.45,11/12/2018
Commercial,Customer Support Group,Other Services,0060119119,BLUE 9 SECURITY LIMITED,15.57,11/12/2018
Commercial,Customer Support Group,Gas,0060116131,BRITISH GAS BUSINESS,67.23,11/12/2018
Commercial,Customer Support Group,Cleaning and domestic material,0060110763,CHURCHILL CONTRACT SERVICES,664.48,06/12/2018
Commercial,Customer Support Group,Cleaning and domestic material,0060112792,CHURCHILL CONTRACT SERVICES,664.48,06/12/2018
Commercial,Customer Support Group,Cleaning and domestic material,0060114411,CHURCHILL CONTRACT SERVICES,664.48,06/12/2018
Commercial,Customer Support Group,Cleaning and domestic material,0060116620,CHURCHILL CONTRACT SERVICES,294.16,06/12/2018
Commercial,Customer Support Group,Cleaning and domestic material,0060116731,CHURCHILL CONTRACT SERVICES,664.48,06/12/2018
Commercial,Customer Support Group,Water Services,0010014799,AFFINITY WATER LIMITED,56.71,18/12/2018
Commercial,Customer Support Group,Water Services,0060119720,AFFINITY WATER LIMITED,72.15,17/12/2018
Commercial,Customer Support Group,Consultants Fees,0060119019,EPC ASSURE LTD,389.00,11/12/2018
Commercial,Customer Support Group,Building Repairs & Maintenance,0060114415,WATES LIVING SPACE,65.38,13/12/2018
Commercial,Customer Support Group,Building Repairs & Maintenance,0060114429,WATES LIVING SPACE,71.25,06/12/2018
Commercial,Customer Support Group,Building Repairs & Maintenance,0060114663,WATES LIVING SPACE,79.56,13/12/2018
Commercial,Customer Support Group,Building Repairs & Maintenance,0060116231,AJS LTD,28.00,18/12/2018
Commercial,Customer Support Group,Building Repairs & Maintenance,0060116265,AJS LTD,332.11,24/12/2018
Commercial,Customer Support Group,Building Repairs & Maintenance,0060118558,AJS LTD,"3,012.80",03/12/2018
Commercial,Customer Support Group,Building Repairs & Maintenance,0060118083,S W BRUCE & CO LTD,49.50,19/12/2018
Commercial,Customer Support Group,Building Repairs & Maintenance,0060118101,S W BRUCE & CO LTD,28.50,19/12/2018
Commercial,Customer Support Group,Service Charges,0060118871,LAZARI INVESTMENTS LTD,"27,966.24",20/12/2018
Commercial,Customer Support Group,Service Charges,0060118886,LAZARI INVESTMENTS LTD,183.36,20/12/2018
Commercial,Customer Support Group,Water Services,0060116149,CASTLE WATER LTD,26.53,11/12/2018
Commercial,Customer Support Group,Water Services,0060117781,CASTLE WATER LTD,26.27,11/12/2018
Commercial,Customer Support Group,Water Services,0060119710,CASTLE WATER LTD,592.77,17/12/2018
Commercial,Customer Support Group,Other Services,0060119098,LONDON CARETAKERS,280.00,27/12/2018
Commercial,Customer Support Group,Building Repairs & Maintenance,0060117171,HSL COMPLIANCE LTD,"1,363.25",06/12/2018
Commercial,Customer Support Group,Building Repairs & Maintenance,0060117569,HSL COMPLIANCE LTD,831.25,06/12/2018
Commercial,Customer Support Group,Building Repairs & Maintenance,0060117570,HSL COMPLIANCE LTD,114.67,06/12/2018
Commercial,Customer Support Group,Building Repairs & Maintenance,0060117631,HSL COMPLIANCE LTD,"1,330.00",06/12/2018
Commercial,Customer Support Group,Building Repairs & Maintenance,0060117635,HSL COMPLIANCE LTD,"1,330.00",06/12/2018
Commercial,Customer Support Group,Building Repairs & Maintenance,0060117655,HSL COMPLIANCE LTD,99.75,06/12/2018
Commercial,Customer Support Group,Building Repairs & Maintenance,0060117682,HSL COMPLIANCE LTD,"1,097.25",06/12/2018
Commercial,Customer Support Group,Building Repairs & Maintenance,0080021519,LJH PAVING LIMITED,"1,200.00",05/12/2018
Commercial,Customer Support Group,Consultants Fees,0080021905,COLLIERS INTERNATIONAL PROPERT,"7,000.00",17/12/2018
Commercial,Customer Support Group,Other Services,0080021920,REDACTED - PERSONAL DATA,600.00,19/12/2018
Commercial,Customer Support Group,Ttl IT & Comms,0060117578,TELEFONICA UK LTD,50.00,06/12/2018
Commercial,Customer Support Group,Ttl IT & Comms,0060117597,TELEFONICA UK LTD,11.32,06/12/2018
Commercial,Customer Support Group,Ttl IT & Comms,0060117698,TELEFONICA UK LTD,40.00,06/12/2018
Commercial,Customer Support Group,Ttl IT & Comms,0060118662,RESULT SOFTWARE LTD,750.00,27/12/2018
Commercial,Customer Support Group,Professional Services,0060117381,ROSSENDALES (COLLECT) LTD,3.57,03/12/2018
Commercial,Customer Support Group,Professional Services,0060117394,ROSSENDALES (COLLECT) LTD,3.57,03/12/2018
Commercial,Customer Support Group,Professional Services,0060117417,ROSSENDALES (COLLECT) LTD,3.57,03/12/2018
Commercial,Customer Support Group,Professional Services,0060117420,ROSSENDALES (COLLECT) LTD,3.57,03/12/2018
Commercial,Customer Support Group,Professional Services,0060117425,ROSSENDALES (COLLECT) LTD,3.57,03/12/2018
Commercial,Customer Support Group,Professional Services,0060117489,ROSSENDALES (COLLECT) LTD,3.57,03/12/2018
Commercial,Customer Support Group,Professional Services,0060117501,ROSSENDALES (COLLECT) LTD,3.57,03/12/2018
Commercial,Customer Support Group,Professional Services,0060117506,ROSSENDALES (COLLECT) LTD,3.57,03/12/2018
Commercial,Customer Support Group,Professional Services,0060117554,ROSSENDALES (COLLECT) LTD,3.57,03/12/2018
Commercial,Customer Support Group,Professional Services,0060118779,ROSSENDALES (COLLECT) LTD,3.57,21/12/2018
Commercial,Customer Support Group,Professional Services,0060118867,ROSSENDALES (COLLECT) LTD,215.64,21/12/2018
Commercial,Customer Support Group,Professional Services,0060118906,ROSSENDALES (COLLECT) LTD,"1,267.08",21/12/2018
Commercial,Customer Support Group,Other Services,0010014703,H.C. SLINGSBY PLC.,99.00,06/12/2018
Commercial,Customer Support Group,Postage,0060119034,SWEMKO (UK) LTD,20.00,13/12/2018
Commercial,Customer Support Group,Postage,0060118752,OFF THE WALL MARKETING LTD,"1,102.00",04/12/2018
Commercial,Customer Support Group,Postage,0060119545,OFF THE WALL MARKETING LTD,425.40,20/12/2018
Commercial,Customer Support Group,Postage,0060119660,OFF THE WALL MARKETING LTD,625.00,17/12/2018
Commercial,Customer Support Group,Postage,0060118157,KAS PAPER SYSTEMS LTD,804.71,20/12/2018
Commercial,Customer Support Group,Postage,0010014775,FINANCIAL DATA MANAGEMENT LTD,923.00,11/12/2018
Commercial,Customer Support Group,Postage,0060118416,ENVOPRINT,328.50,20/12/2018
Commercial,Customer Support Group,Postage,0060118152,SPIBY DESIGN STUDIO,203.33,11/12/2018
Commercial,Customer Support Group,Postage,0060118191,SPIBY DESIGN STUDIO,40.00,11/12/2018
Commercial,Customer Support Group,Postage,0010014858,GD WEB OFFSET LTD,"13,272.60",27/12/2018
Commercial,Customer Support Group,Building Repairs & Maintenance,0010014843,SECOM PLC,100.00,24/12/2018
Commercial,Customer Support Group,Building Repairs & Maintenance,0060114805,SECOM PLC,100.00,24/12/2018
Commercial,Customer Support Group,Rubbish Collection,0060119533,PEARCE RECYCLING GROUP,41.50,21/12/2018
Commercial,Customer Support Group,Other Services,0060118833,BLUE 9 SECURITY LIMITED,"7,785.00",11/12/2018
Commercial,Customer Support Group,Other Services,0060118838,BLUE 9 SECURITY LIMITED,"22,039.20",11/12/2018
Commercial,Customer Support Group,CSG Services Contract Payment,0060105075,CAPITA BUSINESS SERVICES LTD,652.79,11/12/2018
Commercial,Customer Support Group,CSG Services Contract Payment,0060117115,CAPITA BUSINESS SERVICES LTD,"7,092.38",14/12/2018
Commercial,Customer Support Group,Building Repairs & Maintenance,0060118504,OAKRAY LIMITED,96.00,10/12/2018
Commercial,Customer Support Group,Building Repairs & Maintenance,0060118516,OAKRAY LIMITED,311.72,10/12/2018
Commercial,Customer Support Group,Building Repairs & Maintenance,0060118601,OAKRAY LIMITED,96.00,03/12/2018
Commercial,Customer Support Group,Building Repairs & Maintenance,0060118632,OAKRAY LIMITED,270.00,07/12/2018
Commercial,Customer Support Group,Building Repairs & Maintenance,0060119721,OAKRAY LIMITED,160.00,18/12/2018
Commercial,Customer Support Group,Building Repairs & Maintenance,0060119896,OAKRAY LIMITED,96.00,24/12/2018
Commercial,Customer Support Group,Building Repairs & Maintenance,0060119899,OAKRAY LIMITED,112.00,24/12/2018
Commercial,Customer Support Group,Building Repairs & Maintenance,0060119905,OAKRAY LIMITED,517.50,24/12/2018
Commercial,Customer Support Group,Building Repairs & Maintenance,0060119906,OAKRAY LIMITED,306.59,24/12/2018
Commercial,Customer Support Group,Building Repairs & Maintenance,0060119909,OAKRAY LIMITED,108.00,24/12/2018
Commercial,Customer Support Group,Building Repairs & Maintenance,0010014813,SECOM PLC,30.00,19/12/2018
Commercial,Customer Support Group,Building Repairs & Maintenance,0010014815,SECOM PLC,100.00,19/12/2018
Commercial,Customer Support Group,Building Repairs & Maintenance,0010014696,HERTEL (UK) LTD,45.00,06/12/2018
Commercial,Customer Support Group,Building Repairs & Maintenance,0010014697,HERTEL (UK) LTD,"2,010.02",06/12/2018
Commercial,Customer Support Group,Building Repairs & Maintenance,0010014699,HERTEL (UK) LTD,135.00,06/12/2018
Commercial,Customer Support Group,Building Repairs & Maintenance,0010014700,HERTEL (UK) LTD,225.00,06/12/2018
Commercial,Customer Support Group,Building Repairs & Maintenance,0060118749,DOORWAY-MAINTENANCE CO.,160.00,12/12/2018
Commercial,Customer Support Group,Building Repairs & Maintenance,0060114286,WATES LIVING SPACE,"3,040.74",11/12/2018
Commercial,Customer Support Group,Building Repairs & Maintenance,0060114287,WATES LIVING SPACE,35.63,06/12/2018
Commercial,Customer Support Group,Building Repairs & Maintenance,0060114318,WATES LIVING SPACE,100.00,06/12/2018
Commercial,Customer Support Group,Building Repairs & Maintenance,0060114377,WATES LIVING SPACE,53.44,13/12/2018
Commercial,Customer Support Group,Building Repairs & Maintenance,0060114406,WATES LIVING SPACE,99.21,13/12/2018
Commercial,Customer Support Group,Building Repairs & Maintenance,0060114408,WATES LIVING SPACE,53.44,06/12/2018
Commercial,Customer Support Group,Building Repairs & Maintenance,0060114439,WATES LIVING SPACE,62.82,11/12/2018
Commercial,Customer Support Group,Building Repairs & Maintenance,0060114454,WATES LIVING SPACE,73.29,13/12/2018
Commercial,Customer Support Group,Building Repairs & Maintenance,0060114546,WATES LIVING SPACE,129.47,11/12/2018
Commercial,Customer Support Group,Building Repairs & Maintenance,0060114564,WATES LIVING SPACE,44.54,06/12/2018
Commercial,Customer Support Group,Building Repairs & Maintenance,0060114581,WATES LIVING SPACE,123.82,11/12/2018
Commercial,Customer Support Group,Building Repairs & Maintenance,0060114681,WATES LIVING SPACE,170.01,13/12/2018
Commercial,Customer Support Group,Building Repairs & Maintenance,0060114695,WATES LIVING SPACE,156.97,19/12/2018
Commercial,Customer Support Group,Building Repairs & Maintenance,0060115853,WATES LIVING SPACE,95.36,14/12/2018
Commercial,Customer Support Group,Building Repairs & Maintenance,0060115854,WATES LIVING SPACE,124.69,19/12/2018
Commercial,Customer Support Group,Building Repairs & Maintenance,0060115894,WATES LIVING SPACE,59.07,19/12/2018
Commercial,Customer Support Group,Building Repairs & Maintenance,0060115955,WATES LIVING SPACE,35.63,14/12/2018
Commercial,Customer Support Group,Building Repairs & Maintenance,0060115957,WATES LIVING SPACE,71.25,14/12/2018
Commercial,Customer Support Group,Building Repairs & Maintenance,0060118345,WATES LIVING SPACE,"1,383.00",19/12/2018
Commercial,Customer Support Group,Building Repairs & Maintenance,0060118427,WATES LIVING SPACE,71.25,20/12/2018
Commercial,Customer Support Group,Building Repairs & Maintenance,0060119021,WATES LIVING SPACE,35.63,27/12/2018
Commercial,Customer Support Group,Building Repairs & Maintenance,0060119182,WATES LIVING SPACE,61.25,20/12/2018
Commercial,Customer Support Group,Building Repairs & Maintenance,0060119231,WATES LIVING SPACE,53.44,27/12/2018
Commercial,Customer Support Group,Building Repairs & Maintenance,0010014810,AJS LTD,321.08,24/12/2018
Commercial,Customer Support Group,Building Repairs & Maintenance,0060116211,AJS LTD,507.76,24/12/2018
Commercial,Customer Support Group,Building Repairs & Maintenance,0060117612,AJS LTD,170.63,03/12/2018
Commercial,Customer Support Group,Building Repairs & Maintenance,0060118240,AJS LTD,493.42,04/12/2018
Commercial,Customer Support Group,Building Repairs & Maintenance,0060118496,AJS LTD,32.00,03/12/2018
Commercial,Customer Support Group,Building Repairs & Maintenance,0060118671,AJS LTD,32.00,04/12/2018
Commercial,Customer Support Group,Building Repairs & Maintenance,0060118674,AJS LTD,67.21,04/12/2018
Commercial,Customer Support Group,Building Repairs & Maintenance,0060118678,AJS LTD,176.11,04/12/2018
Commercial,Customer Support Group,Building Repairs & Maintenance,0060118682,AJS LTD,160.00,04/12/2018
Commercial,Customer Support Group,Building Repairs & Maintenance,0060118737,AJS LTD,147.06,04/12/2018
Commercial,Customer Support Group,Building Repairs & Maintenance,0060118743,AJS LTD,64.00,04/12/2018
Commercial,Customer Support Group,Building Repairs & Maintenance,0060118759,AJS LTD,37.60,04/12/2018
Commercial,Customer Support Group,Building Repairs & Maintenance,0060119128,AJS LTD,24.51,11/12/2018
Commercial,Customer Support Group,Building Repairs & Maintenance,0060119166,AJS LTD,175.29,13/12/2018
Commercial,Customer Support Group,Building Repairs & Maintenance,0060119245,AJS LTD,47.00,13/12/2018
Commercial,Customer Support Group,Building Repairs & Maintenance,0060119908,AJS LTD,230.40,20/12/2018
Commercial,Customer Support Group,Building Repairs & Maintenance,0060119941,AJS LTD,128.00,21/12/2018
Commercial,Customer Support Group,Building Repairs & Maintenance,0060119947,AJS LTD,64.00,21/12/2018
Commercial,Customer Support Group,Building Repairs & Maintenance,0060119950,AJS LTD,64.00,21/12/2018
Commercial,Customer Support Group,Building Repairs & Maintenance,0060119968,AJS LTD,32.00,21/12/2018
Commercial,Customer Support Group,Building Repairs & Maintenance,0060118033,S W BRUCE & CO LTD,68.95,19/12/2018
Commercial,Customer Support Group,Building Repairs & Maintenance,0060118037,S W BRUCE & CO LTD,42.75,19/12/2018
Commercial,Customer Support Group,Building Repairs & Maintenance,0060118038,S W BRUCE & CO LTD,104.82,19/12/2018
Commercial,Customer Support Group,Building Repairs & Maintenance,0060118042,S W BRUCE & CO LTD,178.73,19/12/2018
Commercial,Customer Support Group,Building Repairs & Maintenance,0060118043,S W BRUCE & CO LTD,223.12,19/12/2018
Commercial,Customer Support Group,Building Repairs & Maintenance,0060118048,S W BRUCE & CO LTD,114.00,19/12/2018
Commercial,Customer Support Group,Building Repairs & Maintenance,0060118049,S W BRUCE & CO LTD,30.73,19/12/2018
Commercial,Customer Support Group,Building Repairs & Maintenance,0060118051,S W BRUCE & CO LTD,43.59,19/12/2018
Commercial,Customer Support Group,Building Repairs & Maintenance,0060118052,S W BRUCE & CO LTD,66.84,19/12/2018
Commercial,Customer Support Group,Building Repairs & Maintenance,0060118075,S W BRUCE & CO LTD,28.50,19/12/2018
Commercial,Customer Support Group,Building Repairs & Maintenance,0060118081,S W BRUCE & CO LTD,28.50,19/12/2018
Commercial,Customer Support Group,Building Repairs & Maintenance,0060118088,S W BRUCE & CO LTD,34.44,19/12/2018
Commercial,Customer Support Group,Building Repairs & Maintenance,0060118089,S W BRUCE & CO LTD,45.25,19/12/2018
Commercial,Customer Support Group,Building Repairs & Maintenance,0060118094,S W BRUCE & CO LTD,45.81,19/12/2018
Commercial,Customer Support Group,Building Repairs & Maintenance,0060118103,S W BRUCE & CO LTD,28.50,19/12/2018
Commercial,Customer Support Group,Building Repairs & Maintenance,0060114628,WATES CONSTRUCTION LTD,248.16,06/12/2018
Commercial,Customer Support Group,Building Repairs & Maintenance,0060118876,CHOICE FIRE & SECURITY SOLUTIONS LTD,95.00,27/12/2018
Commercial,Customer Support Group,Building Repairs & Maintenance,0060118258,HIGH VOLTAGE ELECTRICAL SERVICES LTD,"7,000.00",18/12/2018
Commercial,Customer Support Group,Building Repairs & Maintenance,0060118292,HIGH VOLTAGE ELECTRICAL SERVICES LTD,"4,650.00",18/12/2018
Commercial,Customer Support Group,Building Repairs & Maintenance,0010014701,HSL COMPLIANCE LTD,550.00,06/12/2018
Commercial,Customer Support Group,Building Repairs & Maintenance,0060112328,HSL COMPLIANCE LTD,"1,695.14",06/12/2018
Commercial,Customer Support Group,Building Repairs & Maintenance,0060112342,HSL COMPLIANCE LTD,"1,175.77",06/12/2018
Commercial,Customer Support Group,Building Repairs & Maintenance,0060118424,PICKERINGS LIFTS LTD,780.00,11/12/2018
Commercial,Customer Support Group,Building Repairs & Maintenance,0060118436,PICKERINGS LIFTS LTD,"2,442.60",11/12/2018
Commercial,Customer Support Group,Other Services,0060119185,BLUE 9 SECURITY LIMITED,"11,210.40",13/12/2018
Commercial,Customer Support Group,Other Services,0060119192,BLUE 9 SECURITY LIMITED,"1,012.00",13/12/2018
Commercial,Customer Support Group,Other Services,0060119256,BLUE 9 SECURITY LIMITED,"11,210.40",13/12/2018
Commercial,Customer Support Group,Consultants Fees,0060119372,EPC ASSURE LTD,854.00,19/12/2018
Commercial,Customer Support Group,Building Repairs & Maintenance,0060119226,WATES LIVING SPACE,"4,754.50",13/12/2018
Commercial,Customer Support Group,Gas,0060118621,TOTAL GAS & POWER LTD,695.88,03/12/2018
Commercial,Customer Support Group,Gas,0060119838,TOTAL GAS & POWER LTD,711.46,19/12/2018
Commercial,Customer Support Group,Equipment and Materials Purcha,0060118653,CARTER SECURITY LTD,"1,518.22",13/12/2018
Commercial,Customer Support Group,Building Repairs & Maintenance,0060118852,UK ENERGY PARTNERS LTD,"84,026.00",27/12/2018
Commercial,Customer Support Group,Building Repairs & Maintenance,0060118805,O KAN,"1,950.00",11/12/2018
Commercial,Customer Support Group,Building Repairs & Maintenance,0060117823,S W BRUCE & CO LTD,353.62,18/12/2018
Commercial,Customer Support Group,Building Repairs & Maintenance,0060117648,S W BRUCE & CO LTD,"1,150.00",13/12/2018
Commercial,Customer Support Group,Building Repairs & Maintenance,0060119241,WATES LIVING SPACE,"1,620.00",27/12/2018
Commercial,Customer Support Group,Building Repairs & Maintenance,0060117577,S W BRUCE & CO LTD,"10,146.00",13/12/2018
Commercial,Customer Support Group,Building Repairs & Maintenance,0060116513,S W BRUCE & CO LTD,"18,986.44",07/12/2018
Commercial,Customer Support Group,Building Repairs & Maintenance,0060117582,S W BRUCE & CO LTD,555.45,13/12/2018
Commercial,Customer Support Group,Building Repairs & Maintenance,0060117665,S W BRUCE & CO LTD,735.00,13/12/2018
Commercial,Customer Support Group,Building Repairs & Maintenance,0060117820,ADAMS ENVIRONMENTAL LTD,300.00,07/12/2018
Commercial,Customer Support Group,Vehicles and Plant Purchase,0060119726,DAWSON RENTALS TRUCK & TRAILER LTD,"28,950.00",18/12/2018
Commercial,Customer Support Group,Professional Services,0060117929,BARNET YOUTH ZONE,"1,200,000.00",05/12/2018
Commercial,Customer Support Group,Building Repairs & Maintenance,0060119914,OAKRAY LIMITED,"3,943.47",20/12/2018
Commercial,Customer Support Group,Other Services,0060118773,CONWAY AECOM LTD,"32,160.10",14/12/2018
Commercial,Customer Support Group,Consultants Fees,0010014788,MURPHY SURVEYS LIMITED,"1,450.00",14/12/2018
Commercial,Customer Support Group,Other Agencies - Third Party P,0060117808,THE BARNETGROUP LIMITED,"5,138,000.00",12/12/2018
Commercial,Customer Support Group,Building Repairs & Maintenance,0060114231,PORTAKABIN LTD,"1,934.85",12/12/2018
Commercial,Customer Support Group,Building Repairs & Maintenance,0060102584,S W BRUCE & CO LTD,418.13,03/12/2018
Commercial,Customer Support Group,Building Repairs & Maintenance,0060117694,S W BRUCE & CO LTD,"9,264.00",13/12/2018
Commercial,Customer Support Group,Building Repairs & Maintenance,0060117645,S W BRUCE & CO LTD,"1,367.76",13/12/2018
Commercial,Customer Support Group,Capital Construction and Works,0060117075,CHRIST'S COLLEGE FINCHLEY ACADEMY,"41,853.56",10/12/2018
Commercial,Customer Support Group,Building Repairs & Maintenance,0010014811,APR SERVICES LTD,"1,250.00",19/12/2018
Commercial,Customer Support Group,Professional Services,0060117713,S W BRUCE & CO LTD,"22,276.26",13/12/2018
Commercial,Green Spaces,Electricity,0060101544,KENT COUNTY COUNCIL,52.80,10/12/2018
Commercial,Green Spaces,Equipment and Materials Purcha,0060118285,HAGS PLAY LTD,"2,138.00",20/12/2018
Commercial,Green Spaces,Water Services,0060101511,KENT COUNTY COUNCIL (KCS),34.96,12/12/2018
Commercial,Green Spaces,Gas,0060114647,KENT COUNTY COUNCIL (KCS),40.28,12/12/2018
Commercial,Green Spaces,Electricity,0060116434,KENT COUNTY COUNCIL (KCS),49.56,12/12/2018
Commercial,Green Spaces,Gas,0060116458,KENT COUNTY COUNCIL (KCS),83.31,12/12/2018
Commercial,Green Spaces,Gas,0060116605,KENT COUNTY COUNCIL (KCS),39.90,10/12/2018
Commercial,Green Spaces,Electricity,0060116610,KENT COUNTY COUNCIL (KCS),14.18,12/12/2018
Commercial,Green Spaces,Electricity,0060116614,KENT COUNTY COUNCIL (KCS),12.11,12/12/2018
Commercial,Green Spaces,Electricity,0060116615,KENT COUNTY COUNCIL (KCS),250.08,12/12/2018
Commercial,Green Spaces,Electricity,0060116619,KENT COUNTY COUNCIL (KCS),47.44,10/12/2018
Commercial,Green Spaces,Gas,0060116629,KENT COUNTY COUNCIL (KCS),67.97,10/12/2018
Commercial,Green Spaces,Electricity,0060116646,KENT COUNTY COUNCIL (KCS),135.55,12/12/2018
Commercial,Green Spaces,Electricity,0060116663,KENT COUNTY COUNCIL (KCS),224.44,10/12/2018
Commercial,Green Spaces,Electricity,0060116676,KENT COUNTY COUNCIL (KCS),14.67,10/12/2018
Commercial,Green Spaces,Electricity,0060116687,KENT COUNTY COUNCIL (KCS),93.19,12/12/2018
Commercial,Green Spaces,Electricity,0060116699,KENT COUNTY COUNCIL (KCS),21.38,10/12/2018
Commercial,Green Spaces,Electricity,0060116714,KENT COUNTY COUNCIL (KCS),172.83,12/12/2018
Commercial,Green Spaces,Electricity,0060116717,KENT COUNTY COUNCIL (KCS),71.21,06/12/2018
Commercial,Green Spaces,Electricity,0060116790,KENT COUNTY COUNCIL (KCS),112.76,19/12/2018
Commercial,Green Spaces,Gas,0060116791,KENT COUNTY COUNCIL (KCS),74.54,07/12/2018
Commercial,Green Spaces,Electricity,0060116806,KENT COUNTY COUNCIL (KCS),166.92,12/12/2018
Commercial,Green Spaces,Electricity,0060116820,KENT COUNTY COUNCIL (KCS),278.66,12/12/2018
Commercial,Green Spaces,Electricity,0060116821,KENT COUNTY COUNCIL (KCS),21.38,17/12/2018
Commercial,Green Spaces,Electricity,0060117019,KENT COUNTY COUNCIL (KCS),93.20,12/12/2018
Commercial,Green Spaces,Gas,0060118035,KENT COUNTY COUNCIL (KCS),336.20,03/12/2018
Commercial,Green Spaces,Electricity,0060118405,KENT COUNTY COUNCIL (KCS),62.80,12/12/2018
Commercial,Green Spaces,Gas,0060118423,KENT COUNTY COUNCIL (KCS),"1,391.13",06/12/2018
Commercial,Green Spaces,Electricity,0060118529,KENT COUNTY COUNCIL (KCS),41.37,19/12/2018
Commercial,Green Spaces,Electricity,0060118734,KENT COUNTY COUNCIL (KCS),419.86,04/12/2018
Commercial,Green Spaces,Gas,0060118764,KENT COUNTY COUNCIL (KCS),58.04,12/12/2018
Commercial,Green Spaces,Electricity,0060118882,KENT COUNTY COUNCIL (KCS),160.82,19/12/2018
Commercial,Green Spaces,Electricity,0060118899,KENT COUNTY COUNCIL (KCS),96.45,19/12/2018
Commercial,Green Spaces,Gas,0060119078,KENT COUNTY COUNCIL (KCS),136.18,19/12/2018
Commercial,Green Spaces,Electricity,0060119124,KENT COUNTY COUNCIL (KCS),32.89,19/12/2018
Commercial,Green Spaces,Electricity,0060119589,KENT COUNTY COUNCIL (KCS),228.66,19/12/2018
Commercial,Green Spaces,Electricity,0060119629,KENT COUNTY COUNCIL (KCS),10.41,19/12/2018
Commercial,Green Spaces,Electricity,0060119634,KENT COUNTY COUNCIL (KCS),8.69,19/12/2018
Commercial,Green Spaces,Building Repairs & Maintenance,0060119969,SECOM PLC,781.00,21/12/2018
Commercial,Green Spaces,Grounds maintenance,0060118546,COUNTRYSIDE CONTRACTS,510.00,03/12/2018
Commercial,Green Spaces,Grounds maintenance,0060118615,COUNTRYSIDE CONTRACTS,600.00,03/12/2018
Commercial,Green Spaces,Building Repairs & Maintenance,0010014529,HERTEL (UK) LTD,29.00,04/12/2018
Commercial,Green Spaces,Building Repairs & Maintenance,0010014531,HERTEL (UK) LTD,24.94,04/12/2018
Commercial,Green Spaces,Building Repairs & Maintenance,0010014542,HERTEL (UK) LTD,34.91,04/12/2018
Commercial,Green Spaces,Building Repairs & Maintenance,0010014545,HERTEL (UK) LTD,34.91,04/12/2018
Commercial,Green Spaces,Building Repairs & Maintenance,0010014559,HERTEL (UK) LTD,34.91,04/12/2018
Commercial,Green Spaces,Building Repairs & Maintenance,0010014560,HERTEL (UK) LTD,34.91,04/12/2018
Commercial,Green Spaces,Building Repairs & Maintenance,0010014561,HERTEL (UK) LTD,34.91,04/12/2018
Commercial,Green Spaces,Building Repairs & Maintenance,0010014565,HERTEL (UK) LTD,34.91,04/12/2018
Commercial,Green Spaces,Building Repairs & Maintenance,0010014568,HERTEL (UK) LTD,34.91,04/12/2018
Commercial,Green Spaces,Building Repairs & Maintenance,0010014569,HERTEL (UK) LTD,34.91,04/12/2018
Commercial,Green Spaces,Other Services,0060117194,RM COUNTRYSIDE SERVICES LTD,160.00,10/12/2018
Commercial,Green Spaces,Other Services,0060117234,RM COUNTRYSIDE SERVICES LTD,563.00,10/12/2018
Commercial,Green Spaces,Other Services,0060118267,RM COUNTRYSIDE SERVICES LTD,458.00,10/12/2018
Commercial,Green Spaces,Other Services,0060119515,RM COUNTRYSIDE SERVICES LTD,"1,320.00",19/12/2018
Commercial,Green Spaces,Building Repairs & Maintenance,0060119535,RM COUNTRYSIDE SERVICES LTD,990.00,19/12/2018
Commercial,Green Spaces,Other Services,0060119840,RM COUNTRYSIDE SERVICES LTD,220.00,24/12/2018
Commercial,Green Spaces,Grounds maintenance,0060117851,BUSH WHEELER SERVICES LIMITED,"6,436.00",06/12/2018
Commercial,Green Spaces,Grounds maintenance,0060117873,BUSH WHEELER SERVICES LIMITED,"1,791.00",06/12/2018
Commercial,Green Spaces,Grounds maintenance,0060117877,BUSH WHEELER SERVICES LIMITED,"4,965.00",06/12/2018
Commercial,Green Spaces,Grounds maintenance,0060119537,BUSH WHEELER SERVICES LIMITED,"1,722.00",19/12/2018
Commercial,Green Spaces,Grounds maintenance,0060119631,GOOD IMPRESSIONS (LONDON) LIMITED,120.00,27/12/2018
Commercial,Green Spaces,Equipment and Materials Purcha,0060119290,TAYLORMADE CASTINGS LTD,"10,220.00",20/12/2018
Commercial,Green Spaces,Grounds maintenance,0060116257,GROUNDSMAN TOOLS & SUPPLIES,560.44,14/12/2018
Commercial,Green Spaces,Water Services,0060118648,AFFINITY WATER LIMITED,"1,003.22",19/12/2018
Commercial,Green Spaces,Advertising,0060117392,TMP (UK) LTD,206.00,10/12/2018
Commercial,Green Spaces,Advertising,0060118311,TMP (UK) LTD,72.00,10/12/2018
Commercial,Green Spaces,Building Repairs & Maintenance,0060098432,S W BRUCE & CO LTD,"1,889.33",07/12/2018
Commercial,Green Spaces,Other Services,0060117748,S W BRUCE & CO LTD,"3,599.50",12/12/2018
Commercial,Green Spaces,Building Repairs & Maintenance,0060118082,S W BRUCE & CO LTD,736.34,13/12/2018
Commercial,Green Spaces,Building Repairs & Maintenance,0060118110,S W BRUCE & CO LTD,592.02,19/12/2018
Commercial,Green Spaces,Building Repairs & Maintenance,0060118178,S W BRUCE & CO LTD,437.00,19/12/2018
Commercial,Green Spaces,Building Repairs & Maintenance,0060118194,S W BRUCE & CO LTD,252.60,19/12/2018
Commercial,Green Spaces,Building Repairs & Maintenance,0060118218,S W BRUCE & CO LTD,579.60,20/12/2018
Commercial,Green Spaces,Building Repairs & Maintenance,0060118237,S W BRUCE & CO LTD,160.91,19/12/2018
Commercial,Green Spaces,Building Repairs & Maintenance,0060118312,S W BRUCE & CO LTD,174.52,19/12/2018
Commercial,Green Spaces,Building Repairs & Maintenance,0060119867,S W BRUCE & CO LTD,59.46,24/12/2018
Commercial,Green Spaces,Consultants Fees,0060118509,CARTER JONAS LLP,"1,137.50",03/12/2018
Commercial,Green Spaces,Water Services,0010014668,CASTLE WATER LTD,818.16,06/12/2018
Commercial,Green Spaces,Water Services,0010014702,CASTLE WATER LTD,15.64,06/12/2018
Commercial,Green Spaces,Water Services,0010014756,CASTLE WATER LTD,43.14,10/12/2018
Commercial,Green Spaces,Water Services,0060116096,CASTLE WATER LTD,105.55,06/12/2018
Commercial,Green Spaces,Water Services,0060116104,CASTLE WATER LTD,142.81,06/12/2018
Commercial,Green Spaces,Water Services,0060116111,CASTLE WATER LTD,123.74,06/12/2018
Commercial,Green Spaces,Water Services,0060116174,CASTLE WATER LTD,55.48,06/12/2018
Commercial,Green Spaces,Water Services,0060116951,CASTLE WATER LTD,25.58,07/12/2018
Commercial,Green Spaces,Water Services,0060116959,CASTLE WATER LTD,88.33,07/12/2018
Commercial,Green Spaces,Water Services,0060116976,CASTLE WATER LTD,40.19,07/12/2018
Commercial,Green Spaces,Water Services,0060117512,CASTLE WATER LTD,188.16,06/12/2018
Commercial,Green Spaces,Water Services,0060117519,CASTLE WATER LTD,40.73,10/12/2018
Commercial,Green Spaces,Water Services,0060117558,CASTLE WATER LTD,13.23,10/12/2018
Commercial,Green Spaces,Water Services,0060117904,CASTLE WATER LTD,209.95,06/12/2018
Commercial,Green Spaces,Water Services,0060118059,CASTLE WATER LTD,65.12,06/12/2018
Commercial,Green Spaces,Water Services,0060118187,CASTLE WATER LTD,132.96,07/12/2018
Commercial,Green Spaces,Water Services,0060118505,CASTLE WATER LTD,653.42,10/12/2018
Commercial,Green Spaces,Advertising,0060117392,TMP (UK) LTD,135.00,10/12/2018
Commercial,Green Spaces,Advertising,0060118311,TMP (UK) LTD,435.00,10/12/2018
Commercial,Green Spaces,Grounds maintenance,0060117894,GLENDALE COUNTRYSIDE LTD,"1,303.43",13/12/2018
Commercial,Green Spaces,Grounds maintenance,0060117906,GLENDALE COUNTRYSIDE LTD,19.60,13/12/2018
Commercial,Green Spaces,Grounds maintenance,0060117913,GLENDALE COUNTRYSIDE LTD,644.60,13/12/2018
Commercial,Green Spaces,Grounds maintenance,0060117914,GLENDALE COUNTRYSIDE LTD,"1,226.84",13/12/2018
Commercial,Green Spaces,Grounds maintenance,0060117917,GLENDALE COUNTRYSIDE LTD,710.76,13/12/2018
Commercial,Green Spaces,Grounds maintenance,0060117919,GLENDALE COUNTRYSIDE LTD,"3,140.42",13/12/2018
Commercial,Green Spaces,Grounds maintenance,0060117920,GLENDALE COUNTRYSIDE LTD,"8,224.76",13/12/2018
Commercial,Green Spaces,Grounds maintenance,0060117924,GLENDALE COUNTRYSIDE LTD,"1,474.93",13/12/2018
Commercial,Green Spaces,Grounds maintenance,0060117925,GLENDALE COUNTRYSIDE LTD,190.30,13/12/2018
Commercial,Green Spaces,Grounds maintenance,0060117938,GLENDALE COUNTRYSIDE LTD,"1,178.08",13/12/2018
Commercial,Green Spaces,Grounds maintenance,0060117945,GLENDALE COUNTRYSIDE LTD,428.20,13/12/2018
Commercial,Green Spaces,Grounds maintenance,0060117946,GLENDALE COUNTRYSIDE LTD,34.92,13/12/2018
Commercial,Green Spaces,Grounds maintenance,0060117957,GLENDALE COUNTRYSIDE LTD,41.20,13/12/2018
Commercial,Green Spaces,Grounds maintenance,0060117969,GLENDALE COUNTRYSIDE LTD,"1,473.15",13/12/2018
Commercial,Green Spaces,Grounds maintenance,0060117970,GLENDALE COUNTRYSIDE LTD,214.50,13/12/2018
Commercial,Green Spaces,Grounds maintenance,0060117971,GLENDALE COUNTRYSIDE LTD,61.46,13/12/2018
Commercial,Green Spaces,Grounds maintenance,0060117973,GLENDALE COUNTRYSIDE LTD,502.15,13/12/2018
Commercial,Green Spaces,Grounds maintenance,0060117974,GLENDALE COUNTRYSIDE LTD,"2,875.53",13/12/2018
Commercial,Green Spaces,Grounds maintenance,0060117987,GLENDALE COUNTRYSIDE LTD,"4,365.02",13/12/2018
Commercial,Green Spaces,Grounds maintenance,0060117998,GLENDALE COUNTRYSIDE LTD,686.86,13/12/2018
Commercial,Green Spaces,Grounds maintenance,0060118013,GLENDALE COUNTRYSIDE LTD,"1,607.00",13/12/2018
Commercial,Green Spaces,Grounds maintenance,0060118364,GLENDALE COUNTRYSIDE LTD,"1,382.04",03/12/2018
Commercial,Green Spaces,Grounds maintenance,0060118367,GLENDALE COUNTRYSIDE LTD,310.72,03/12/2018
Commercial,Green Spaces,Grounds maintenance,0060118376,GLENDALE COUNTRYSIDE LTD,192.00,03/12/2018
Commercial,Green Spaces,Grounds maintenance,0060119576,GLENDALE COUNTRYSIDE LTD,61.46,27/12/2018
Commercial,Green Spaces,Grounds maintenance,0060119358,GRISTWOOD & TOM LTD,"22,510.00",17/12/2018
Commercial,Green Spaces,Grounds maintenance,0060119363,GRISTWOOD & TOM LTD,691.50,17/12/2018
Commercial,Green Spaces,Grounds maintenance,0060119375,GRISTWOOD & TOM LTD,"4,577.00",19/12/2018
Commercial,Green Spaces,Grounds maintenance,0060119415,GRISTWOOD & TOM LTD,"23,100.00",17/12/2018
Commercial,Green Spaces,Grounds maintenance,0060119452,GRISTWOOD & TOM LTD,"1,900.00",17/12/2018
Commercial,Green Spaces,Grounds maintenance,0060119467,GRISTWOOD & TOM LTD,"23,180.00",17/12/2018
Commercial,Green Spaces,Grounds maintenance,0060117887,GLENDALE COUNTRYSIDE LTD,433.33,13/12/2018
Commercial,Green Spaces,Grounds maintenance,0060117890,GLENDALE COUNTRYSIDE LTD,427.29,13/12/2018
Commercial,Green Spaces,Grounds maintenance,0060117893,GLENDALE COUNTRYSIDE LTD,829.43,13/12/2018
Commercial,Green Spaces,Grounds maintenance,0060117903,GLENDALE COUNTRYSIDE LTD,183.85,13/12/2018
Commercial,Green Spaces,Grounds maintenance,0060117905,GLENDALE COUNTRYSIDE LTD,969.59,13/12/2018
Commercial,Green Spaces,Grounds maintenance,0060117907,GLENDALE COUNTRYSIDE LTD,"4,015.33",13/12/2018
Commercial,Green Spaces,Grounds maintenance,0060117908,GLENDALE COUNTRYSIDE LTD,553.76,13/12/2018
Commercial,Green Spaces,Grounds maintenance,0060117911,GLENDALE COUNTRYSIDE LTD,"2,376.22",13/12/2018
Commercial,Green Spaces,Grounds maintenance,0060117915,GLENDALE COUNTRYSIDE LTD,142.20,13/12/2018
Commercial,Green Spaces,Grounds maintenance,0060117923,GLENDALE COUNTRYSIDE LTD,237.00,13/12/2018
Commercial,Green Spaces,Grounds maintenance,0060117931,GLENDALE COUNTRYSIDE LTD,"1,112.33",13/12/2018
Commercial,Green Spaces,Grounds maintenance,0060117934,GLENDALE COUNTRYSIDE LTD,70.20,13/12/2018
Commercial,Green Spaces,Grounds maintenance,0060117936,GLENDALE COUNTRYSIDE LTD,886.71,13/12/2018
Commercial,Green Spaces,Grounds maintenance,0060117942,GLENDALE COUNTRYSIDE LTD,"4,019.73",13/12/2018
Commercial,Green Spaces,Grounds maintenance,0060117943,GLENDALE COUNTRYSIDE LTD,166.84,13/12/2018
Commercial,Green Spaces,Grounds maintenance,0060117948,GLENDALE COUNTRYSIDE LTD,811.85,13/12/2018
Commercial,Green Spaces,Grounds maintenance,0060117949,GLENDALE COUNTRYSIDE LTD,33.56,13/12/2018
Commercial,Green Spaces,Grounds maintenance,0060117951,GLENDALE COUNTRYSIDE LTD,"2,575.76",13/12/2018
Commercial,Green Spaces,Grounds maintenance,0060117959,GLENDALE COUNTRYSIDE LTD,700.99,13/12/2018
Commercial,Green Spaces,Grounds maintenance,0060117962,GLENDALE COUNTRYSIDE LTD,255.62,13/12/2018
Commercial,Green Spaces,Grounds maintenance,0060117965,GLENDALE COUNTRYSIDE LTD,359.80,13/12/2018
Commercial,Green Spaces,Grounds maintenance,0060117967,GLENDALE COUNTRYSIDE LTD,422.67,13/12/2018
Commercial,Green Spaces,Grounds maintenance,0060117972,GLENDALE COUNTRYSIDE LTD,"2,724.92",13/12/2018
Commercial,Green Spaces,Grounds maintenance,0060117980,GLENDALE COUNTRYSIDE LTD,69.20,13/12/2018
Commercial,Green Spaces,Grounds maintenance,0060117982,GLENDALE COUNTRYSIDE LTD,192.76,13/12/2018
Commercial,Green Spaces,Grounds maintenance,0060117985,GLENDALE COUNTRYSIDE LTD,16.50,13/12/2018
Commercial,Green Spaces,Grounds maintenance,0060117991,GLENDALE COUNTRYSIDE LTD,"3,237.71",13/12/2018
Commercial,Green Spaces,Grounds maintenance,0060117993,GLENDALE COUNTRYSIDE LTD,463.24,13/12/2018
Commercial,Green Spaces,Grounds maintenance,0060117995,GLENDALE COUNTRYSIDE LTD,"1,426.60",13/12/2018
Commercial,Green Spaces,Grounds maintenance,0060118000,GLENDALE COUNTRYSIDE LTD,7.88,13/12/2018
Commercial,Green Spaces,Grounds maintenance,0060118002,GLENDALE COUNTRYSIDE LTD,"3,575.04",13/12/2018
Commercial,Green Spaces,Grounds maintenance,0060118004,GLENDALE COUNTRYSIDE LTD,426.69,13/12/2018
Commercial,Green Spaces,Grounds maintenance,0060118265,GLENDALE COUNTRYSIDE LTD,426.76,18/12/2018
Commercial,Green Spaces,Grounds maintenance,0060118269,GLENDALE COUNTRYSIDE LTD,286.81,03/12/2018
Commercial,Green Spaces,Grounds maintenance,0060118275,GLENDALE COUNTRYSIDE LTD,"1,160.00",18/12/2018
Commercial,Green Spaces,Grounds maintenance,0060118279,GLENDALE COUNTRYSIDE LTD,159.67,18/12/2018
Commercial,Green Spaces,Grounds maintenance,0060118300,GLENDALE COUNTRYSIDE LTD,533.63,18/12/2018
Commercial,Green Spaces,Grounds maintenance,0060118303,GLENDALE COUNTRYSIDE LTD,719.22,18/12/2018
Commercial,Green Spaces,Grounds maintenance,0060118356,GLENDALE COUNTRYSIDE LTD,"2,630.99",03/12/2018
Commercial,Green Spaces,Grounds maintenance,0060118374,GLENDALE COUNTRYSIDE LTD,"1,385.43",03/12/2018
Commercial,Green Spaces,Grounds maintenance,0060118825,GLENDALE COUNTRYSIDE LTD,"1,409.97",27/12/2018
Commercial,Green Spaces,Grounds maintenance,0060119101,GLENDALE COUNTRYSIDE LTD,"1,705.07",27/12/2018
Commercial,Green Spaces,Consultants Fees,0060118524,JON SHEAFF AND ASSOCIATES,800.00,03/12/2018
Commercial,HB LAW,Professional Services,0010014812,LONDON BOROUGH OF HARROW,"445,950.32",19/12/2018
Commercial,HB LAW,Legal and Court Fees,0080022008,ANTHONY COLLIS SOLICITORS LLP,"3,149.40",21/12/2018
Commercial,Housing Needs Resources,Other Services,0060116424,THE BARNETGROUP LIMITED,"278,222.92",13/12/2018
Commercial,Housing Needs Resources,Private Contractors - Third Pa,0060117840,THE BARNETGROUP LIMITED,"2,280,000.00",12/12/2018
Commercial,HRA,Consultants Fees,0060119269,TROWERS & HAMLINS,365.50,13/12/2018
Commercial,HRA,Professional Services,0060118266,BOUYGUES E&S INFRASTRUCTURE UK LTD,"2,677.10",20/12/2018
Commercial,HRA,Professional Services,0060118454,BOUYGUES E&S INFRASTRUCTURE UK LTD,"1,784.72",20/12/2018
Commercial,HRA,Consultants Fees,0060119193,THE BARNETGROUP LIMITED,"16,215.45",17/12/2018
Commercial,HRA,Consultants Fees,0060119254,THE BARNETGROUP LIMITED,"3,352.25",17/12/2018
Commercial,HRA,Building Repairs & Maintenance,0060117856,THE BARNETGROUP LIMITED,"629,166.67",12/12/2018
Commercial,HRA,Other Services,0010014638,AFFINITY WATER LIMITED,"858,100.67",05/12/2018
Commercial,HRA,Other Services,0010014639,AFFINITY WATER LIMITED,"756,183.07",05/12/2018
Commercial,HRA,Other Services,0060117881,THE BARNETGROUP LIMITED,"470,140.42",13/12/2018
Commercial,HRA,Other Services,0060117864,THE BARNETGROUP LIMITED,"953,444.00",13/12/2018
Commercial,HRA,Consultants Fees,0060119729,TROWERS & HAMLINS,"2,163.50",19/12/2018
Commercial,Parking & Infrastructure,Equipment and Materials Purcha,0060118304,GREENHAM TRADING LIMITED,611.95,20/12/2018
Commercial,Parking & Infrastructure,Equipment and Materials Purcha,0060118929,GREENHAM TRADING LIMITED,"1,536.80",27/12/2018
Commercial,Parking & Infrastructure,Equipment and Materials Purcha,0060119061,GREENHAM TRADING LIMITED,27.78,27/12/2018
Commercial,Parking & Infrastructure,Stationery,0040003136,OFFICE DEPOT UK LTD,2.54,20/12/2018
Commercial,Parking & Infrastructure,Stationery,0040003141,OFFICE DEPOT UK LTD,171.72,27/12/2018
Commercial,Parking & Infrastructure,Stationery,0040003143,OFFICE DEPOT UK LTD,-171.72,27/12/2018
Commercial,Parking & Infrastructure,Equipment and Materials Purcha,0060119432,W. FAYERS & SONS,291.92,14/12/2018
Commercial,Parking & Infrastructure,Equipment and Materials Purcha,0060119680,W. FAYERS & SONS,507.36,18/12/2018
Commercial,Parking & Infrastructure,Equipment and Materials Purcha,0060117089,RENNICK UK LTD,719.67,04/12/2018
Commercial,Parking & Infrastructure,Equipment and Materials Purcha,0060118418,RENNICK UK LTD,99.71,20/12/2018
Commercial,Parking & Infrastructure,Equipment and Materials Purcha,0060117300,FABRIKAT (NOTTINGHAM) LIMITED,"1,000.00",06/12/2018
Commercial,Parking & Infrastructure,Equipment and Materials Purcha,0060117488,LAFARGE TARMAC TRADING LIMITED,129.91,06/12/2018
Commercial,Parking & Infrastructure,Equipment and Materials Purcha,0060115746,AGGREGATE INDUSTRIES UK LTD T/A SPADEOAK,"2,330.34",14/12/2018
Commercial,Parking & Infrastructure,Equipment and Materials Purcha,0060119793,APOGEE CORPORATION LTD,6.60,24/12/2018
Commercial,Parking & Infrastructure,Equipment and Materials Purcha,0060119874,APOGEE CORPORATION LTD,6.17,24/12/2018
Commercial,Parking & Infrastructure,Equipment and Materials Purcha,0060117846,KB INDUSTRIES UK LTD,"8,250.00",13/12/2018
Commercial,Parking & Infrastructure,Equipment and Materials Purcha,0060118850,GREENHAM TRADING LIMITED,"7,788.75",27/12/2018
Commercial,Parking & Infrastructure,Equipment and Materials Purcha,0060117734,COMPASS MINERALS,"2,521.75",11/12/2018
Commercial,Parking & Infrastructure,Equipment and Materials Purcha,0060117770,COMPASS MINERALS,"1,306.31",12/12/2018
Commercial,Parking & Infrastructure,Other Services,0060117132,LONDON COUNCILS,"47,852.12",10/12/2018
Commercial,Parking & Infrastructure,Other Services,0060117363,LONDON COUNCILS,928.00,10/12/2018
Commercial,Parking & Infrastructure,Software Licences & Support,0060116002,NSL LTD,"9,146.70",10/12/2018
Commercial,Parking & Infrastructure,Other Services,0060116015,NSL LTD,"1,697.25",10/12/2018
Commercial,Parking & Infrastructure,Miscellaneous Expenses,0060117889,NSL LTD,"1,455.30",13/12/2018
Commercial,Parking & Infrastructure,Professional Services,0060117899,NSL LTD,55.00,13/12/2018
Commercial,Parking & Infrastructure,Software Licences & Support,0060119217,NSL LTD,122.45,17/12/2018
Commercial,Parking & Infrastructure,Software Licences & Support,0060119220,NSL LTD,"40,189.78",17/12/2018
Commercial,Parking & Infrastructure,Professional Services,0060119592,NSL LTD,"36,809.16",18/12/2018
Commercial,Parking & Infrastructure,Professional Services,0060119753,NSL LTD,650.00,19/12/2018
Commercial,Parking & Infrastructure,Professional Services,0060119774,NSL LTD,38.34,20/12/2018
Commercial,Parking & Infrastructure,Miscellaneous Expenses,0060117348,FORTUNA ASSOCIATES LIMITED,"9,221.00",11/12/2018
Commercial,Parking & Infrastructure,Electricity,0010014844,BARNET LIGHTING SERVICES LTD,"554,762.13",24/12/2018
Commercial,Parking & Infrastructure,Electricity,0060118718,BARNET LIGHTING SERVICES LTD,"457,255.86",04/12/2018
Commercial,Parking & Infrastructure,Electricity,0060119951,BARNET LIGHTING SERVICES LTD,"571,558.39",27/12/2018
Commercial,Public Health,Other Agencies - Third Party P,0060118875,HEALTH EDUCATION PARTNERSHIP LTD,"24,500.00",20/12/2018
Commercial,Public Health,Health authorities - Third Par,0060115308,CENTRAL LONDONCOMMUNITY HEALTHCARE,"384,000.00",10/12/2018
Commercial,Public Health,Health authorities - Third Par,0060118445,THE DERWENT MEDICAL CENTRE,"2,275.00",03/12/2018
Commercial,Public Health,Health authorities - Third Par,0060118565,OAKLODGE MEDICAL CENTRE,125.00,03/12/2018
Commercial,Public Health,Health authorities - Third Par,0060118595,WOODLANDS MEDICAL PRACTICE,125.00,03/12/2018
Commercial,Public Health,Health authorities - Third Par,0060118383,LONGROVE SURGERY,"2,550.00",03/12/2018
Commercial,Public Health,Health authorities - Third Par,0060118380,THE CLINIC,"1,775.00",03/12/2018
Commercial,Public Health,Health authorities - Third Par,0060118620,ST ANDREWS MEDICAL PRACTICE,"3,275.00",03/12/2018
Commercial,Public Health,Health authorities - Third Par,0060118594,THE PRACTICE @ 188,"1,125.00",03/12/2018
Commercial,Public Health,Health authorities - Third Par,0060118640,MOUNTFIELD SURGERY,"1,050.00",03/12/2018
Commercial,Public Health,Health authorities - Third Par,0060118515,MULBERRY MEDICAL PRACTICE,"1,425.00",03/12/2018
Commercial,Public Health,Health authorities - Third Par,0060118495,THE OLD COURTHOUSE SURGERY,775.00,03/12/2018
Commercial,Public Health,Health authorities - Third Par,0060118489,PHGH DOCTORS,"1,250.00",03/12/2018
Commercial,Public Health,Health authorities - Third Par,0060118550,THE SPEEDWELL PRACTICE,"1,575.00",03/12/2018
Commercial,Public Health,Health authorities - Third Par,0060118637,SQUIRES LANE MEDICAL PRACTICE,700.00,03/12/2018
Commercial,Public Health,Health authorities - Third Par,0060118498,VALE DRIVE MEDICAL CENTRE,"2,025.00",03/12/2018
Commercial,Public Health,Health authorities - Third Par,0060118399,BRUNSWICK PARK MEDICAL PRACTICE,"2,725.00",03/12/2018
Commercial,Public Health,Health authorities - Third Par,0060118440,COLNEY HATCH LANE SURGERY,200.00,03/12/2018
Commercial,Public Health,Health authorities - Third Par,0060118422,CORNWALL HOUSE SURGERY,775.00,03/12/2018
Commercial,Public Health,Health authorities - Third Par,0060118433,THE EVERGLADE MEDICAL PRACTICE,"1,150.00",03/12/2018
Commercial,Public Health,Health authorities - Third Par,0060118409,FRIERN BARNET MEDICAL CENTRE,700.00,03/12/2018
Commercial,Public Health,Health authorities - Third Par,0060118415,GREENFIELD MEDICAL CENTRE,"2,250.00",03/12/2018
Commercial,Public Health,Health authorities - Third Par,0060118443,HEATHFIELDE MEDICAL CENTRE,"2,000.00",03/12/2018
Commercial,Public Health,Health authorities - Third Par,0060119059,LANE END MEDICAL GROUP,250.00,11/12/2018
Commercial,Public Health,Health authorities - Third Par,0060118401,LANGSTONE WAY SURGERY,475.00,03/12/2018
Commercial,Public Health,Health authorities - Third Par,0060118414,COLINDALE MEDICAL CENTRE,"1,750.00",03/12/2018
Commercial,Public Health,Health authorities - Third Par,0060118462,THE PHOENIX PRACTICE,475.00,03/12/2018
Commercial,Public Health,Health authorities - Third Par,0060118432,MEDICAL CENTRE,500.00,03/12/2018
Commercial,Public Health,Health authorities - Third Par,0060118421,GLOUCESTER ROAD SURGERY,400.00,03/12/2018
Commercial,Public Health,Health authorities - Third Par,60118426,LICHFIELD GROVE SURGERY,775.00,03/12/2018
Commercial,Public Health,Health authorities - Third Par,60118441,THE HODFORD ROAD SURGERY,25.00,03/12/2018
Commercial,Public Health,Health authorities - Third Par,60118456,WENTWORTH MEDICAL PRACTICE,"3,750.00",03/12/2018
Commercial,Public Health,Health authorities - Third Par,60118458,ST GEORGES MEDICAL CENTRE,"2,000.00",03/12/2018
Commercial,Public Health,Health authorities - Third Par,60118503,WAKEMANS HILL SURGERY,75.00,03/12/2018
Commercial,Public Health,Health authorities - Third Par,60118592,THE VILLAGE SURGERY,725.00,03/12/2018
Commercial,Public Health,Other Local Authorities - Thir,0060118259,CITY OF LONDON,"56,847.96",04/12/2018
Commercial,Public Health,Health authorities - Third Par,0060118028,CENTRAL LONDONCOMMUNITY HEALTHCARE,"2,742.00",05/12/2018
Commercial,Public Health,Health authorities - Third Par,0060119577,CENTRAL LONDONCOMMUNITY HEALTHCARE,"1,893.00",17/12/2018
Commercial,Public Health,Health authorities - Third Par,0060119516,CENTRAL & NORTH WEST LONDON NHS FT,"11,500.00",19/12/2018
Commercial,Public Health,Health authorities - Third Par,0060118841,LONDON NORTH WEST HEALTHCARE NHS TRUST,"9,234.00",27/12/2018
Commercial,Public Health,Health authorities - Third Par,0010014705,EAST SUSSEX HEALTHCARE NHS TRUST,102.10,06/12/2018
Commercial,Public Health,Health authorities - Third Par,0010014706,EAST SUSSEX HEALTHCARE NHS TRUST,128.61,06/12/2018
Commercial,Public Health,Health authorities - Third Par,0060119754,OXFORD UNIVERSITY HOSPITALS NHS FOUNDATI,599.00,20/12/2018
Commercial,Public Health,Health authorities - Third Par,0060119082,UNIVERSITY HOSPITALS BIRMINGHAM,515.00,27/12/2018
Commercial,Public Health,Health authorities - Third Par,0060119643,CHELSEA & WESTMINSTER HOSPITAL NHS,"41,528.71",27/12/2018
Commercial,Public Health,Health authorities - Third Par,0060117314,GUY'S AND ST THOMAS' NHS FT,"3,793.06",05/12/2018
Commercial,Public Health,Health authorities - Third Par,0060119911,UNIVERSITY HOSPITALS BRISTOL,279.46,20/12/2018
Commercial,Public Health,Health authorities - Third Par,0060117359,BUCKINGHAMSHIRE HEALTHCARE NHS TRUST,131.00,04/12/2018
Commercial,Public Health,Health authorities - Third Par,0060119171,BARTS HEALTH NHS TRUST,"2,801.94",17/12/2018
Commercial,Public Health,Health authorities - Third Par,0060116710,CAMBRIDGESHIRE COMMUNITY SERVICES,107.00,06/12/2018
Commercial,Public Health,Health authorities - Third Par,0060119225,CAMBRIDGESHIRE COMMUNITY SERVICES,136.00,27/12/2018
Commercial,Public Health,Health authorities - Third Par,0060118903,LEWISHAM AND GREENWICH NHS TRUST,386.63,27/12/2018
Commercial,Public Health,Health authorities - Third Par,0060118926,LEWISHAM AND GREENWICH NHS TRUST,129.85,27/12/2018
Commercial,Public Health,Health authorities - Third Par,0060118659,THE ROYAL BOURNEMOUTH AND CHRISTCHURCH H,140.68,05/12/2018
Commercial,Public Health,Health authorities - Third Par,0060118677,HOMERTON UNIVERSITY HOSPITAL NHS FOUNDAT,"2,753.25",04/12/2018
Commercial,Public Health,Health authorities - Third Par,0060118697,HOMERTON UNIVERSITY HOSPITAL NHS FOUNDAT,"4,589.38",04/12/2018
Commercial,Public Health,Health authorities - Third Par,0060118698,HOMERTON UNIVERSITY HOSPITAL NHS FOUNDAT,"3,344.03",04/12/2018
Commercial,Public Health,Health authorities - Third Par,0060118709,HOMERTON UNIVERSITY HOSPITAL NHS FOUNDAT,"2,336.99",07/12/2018
Commercial,Public Health,Health authorities - Third Par,0060118724,HOMERTON UNIVERSITY HOSPITAL NHS FOUNDAT,"2,673.28",04/12/2018
Commercial,Public Health,Health authorities - Third Par,0060118728,HOMERTON UNIVERSITY HOSPITAL NHS FOUNDAT,"3,390.19",04/12/2018
Commercial,Public Health,Health authorities - Third Par,0060118738,HOMERTON UNIVERSITY HOSPITAL NHS FOUNDAT,"3,158.20",07/12/2018
Commercial,Public Health,Health authorities - Third Par,0060118774,HOMERTON UNIVERSITY HOSPITAL NHS FOUNDAT,"5,087.39",04/12/2018
Commercial,Public Health,Health authorities - Third Par,0060118795,HOMERTON UNIVERSITY HOSPITAL NHS FOUNDAT,"1,896.72",07/12/2018
Commercial,Public Health,Health authorities - Third Par,0060118335,MULBERRY MEDICAL PRACTICE,250.00,11/12/2018
Commercial,Public Health,Health authorities - Third Par,0060118398,SQUIRES LANE MEDICAL PRACTICE,70.00,03/12/2018
Commercial,Public Health,Consultants Fees,0060118820,GOOD IMPRESSIONS (LONDON) LIMITED,700.00,27/12/2018
Commercial,Public Health,Consultants Fees,0060105954,CAN DIGITAL SOLUTIONS LTD,630.00,21/12/2018
Commercial,Regional Enterprise,Legal and Court Fees,0080021481,REDACTED - PERSONAL DATA,650.00,04/12/2018
Commercial,Regional Enterprise,Legal and Court Fees,0080021794,INTERLINKS INVESTMENTS,695.00,14/12/2018
Commercial,Regional Enterprise,Legal and Court Fees,0080021960,HMCTS,596.20,18/12/2018
Commercial,Regional Enterprise,Legal and Court Fees,0080021214,REDACTED - PERSONAL DATA,"1,300.00",04/12/2018
Commercial,Regional Enterprise,Legal and Court Fees,0080021415,LINEA HOMES LTD,"3,500.00",04/12/2018
Commercial,Regional Enterprise,Legal and Court Fees,0080021684,HENRY PLANNING LTD,"5,325.00",12/12/2018
Commercial,Regional Enterprise,Legal and Court Fees,0080021686,REDACTED - PERSONAL DATA,"1,048.05",17/12/2018
Commercial,Regional Enterprise,Other Services,0060115447,AFFINITY WATER LIMITED,37.24,14/12/2018
Commercial,Regional Enterprise,Advertising,0060107375,TMP (UK) LTD,170.00,24/12/2018
Commercial,Regional Enterprise,Advertising,0060116012,TMP (UK) LTD,296.00,07/12/2018
Commercial,Regional Enterprise,Advertising,0060116025,TMP (UK) LTD,278.00,07/12/2018
Commercial,Regional Enterprise,Advertising,0060119423,TMP (UK) LTD,90.00,17/12/2018
Commercial,Regional Enterprise,Other Services,0020040822,CONWAY AECOM LTD,191.30,11/12/2018
Commercial,Regional Enterprise,Other Services,0020040823,CONWAY AECOM LTD,963.85,11/12/2018
Commercial,Regional Enterprise,Other Services,0020040824,CONWAY AECOM LTD,620.05,11/12/2018
Commercial,Regional Enterprise,Other Services,0020040825,CONWAY AECOM LTD,"1,140.82",11/12/2018
Commercial,Regional Enterprise,Other Services,0010014721,CONWAY AECOM LTD,529.20,07/12/2018
Commercial,Regional Enterprise,Other Services,0010014723,CONWAY AECOM LTD,294.00,07/12/2018
Commercial,Regional Enterprise,Other Services,0010014725,CONWAY AECOM LTD,"1,234.80",07/12/2018
Commercial,Regional Enterprise,Other Services,0020040808,CONWAY AECOM LTD,"1,311.45",11/12/2018
Commercial,Regional Enterprise,Other Services,0020040810,CONWAY AECOM LTD,"1,086.80",11/12/2018
Commercial,Regional Enterprise,Other Services,0020040811,CONWAY AECOM LTD,514.80,11/12/2018
Commercial,Regional Enterprise,Other Services,0060118031,CONWAY AECOM LTD,220.50,14/12/2018
Commercial,Regional Enterprise,Other Services,0060118045,CONWAY AECOM LTD,283.50,14/12/2018
Commercial,Regional Enterprise,Other Services,0060118102,CONWAY AECOM LTD,396.90,14/12/2018
Commercial,Regional Enterprise,Other Services,0060118451,CONWAY AECOM LTD,705.60,03/12/2018
Commercial,Regional Enterprise,Other Services,0060118471,CONWAY AECOM LTD,603.75,03/12/2018
Commercial,Regional Enterprise,Other Services,0060118486,CONWAY AECOM LTD,510.30,03/12/2018
Commercial,Regional Enterprise,Other Services,0060118487,CONWAY AECOM LTD,327.60,03/12/2018
Commercial,Regional Enterprise,Other Services,0060118523,CONWAY AECOM LTD,623.70,03/12/2018
Commercial,Regional Enterprise,Other Services,0060118527,CONWAY AECOM LTD,283.50,03/12/2018
Commercial,Regional Enterprise,Other Services,0060118534,CONWAY AECOM LTD,819.00,03/12/2018
Commercial,Regional Enterprise,Other Services,0060118559,CONWAY AECOM LTD,869.40,03/12/2018
Commercial,Regional Enterprise,Other Services,0060118586,CONWAY AECOM LTD,252.00,03/12/2018
Commercial,Regional Enterprise,Other Services,0060118597,CONWAY AECOM LTD,793.80,03/12/2018
Commercial,Regional Enterprise,Other Services,0060118616,CONWAY AECOM LTD,869.40,03/12/2018
Commercial,Regional Enterprise,Other Services,0060118643,CONWAY AECOM LTD,705.60,03/12/2018
Commercial,Regional Enterprise,Other Services,0060118646,CONWAY AECOM LTD,705.60,03/12/2018
Commercial,Regional Enterprise,Professional Services,0060117465,WATES LIVING SPACE,"2,282.11",06/12/2018
Commercial,Regional Enterprise,Professional Services,0060119894,WATES LIVING SPACE,28.20,27/12/2018
Commercial,Regional Enterprise,Professional Services,0060119923,WATES LIVING SPACE,56.41,27/12/2018
Commercial,Regional Enterprise,Other Services,0010014796,CONWAY AECOM LTD,39.33,18/12/2018
Commercial,Regional Enterprise,Other Services,0060052155,CONWAY AECOM LTD,42.98,06/12/2018
Commercial,Regional Enterprise,Other Services,0060052178,CONWAY AECOM LTD,41.68,06/12/2018
Commercial,Regional Enterprise,Other Services,0060052195,CONWAY AECOM LTD,248.28,06/12/2018
Commercial,Regional Enterprise,Other Services,0060052198,CONWAY AECOM LTD,42.72,06/12/2018
Commercial,Regional Enterprise,Other Services,0060052254,CONWAY AECOM LTD,41.68,06/12/2018
Commercial,Regional Enterprise,Other Services,0060052265,CONWAY AECOM LTD,91.65,06/12/2018
Commercial,Regional Enterprise,Other Services,0060052267,CONWAY AECOM LTD,41.68,06/12/2018
Commercial,Regional Enterprise,Other Services,0060052275,CONWAY AECOM LTD,42.33,06/12/2018
Commercial,Regional Enterprise,Other Services,0060052339,CONWAY AECOM LTD,38.44,06/12/2018
Commercial,Regional Enterprise,Other Services,0060052594,CONWAY AECOM LTD,41.03,06/12/2018
Commercial,Regional Enterprise,Other Services,0060052696,CONWAY AECOM LTD,104.39,06/12/2018
Commercial,Regional Enterprise,Other Services,0060117810,LOBEG,"1,403.00",06/12/2018
Commercial,Regional Enterprise,Fees and Charges,0080021409,REDACTED - PERSONAL DATA,420.00,18/12/2018
Commercial,Regional Enterprise,Fees and Charges,0080021900,HENDON GOLF CLUB,"2,000.00",17/12/2018
Commercial,Regional Enterprise,Fees and Charges,0080021410,REDACTED - PERSONAL DATA,875.00,14/12/2018
Commercial,Regional Enterprise,Fees and Charges,0080021899,LINK MAILING SYSTEMS,223.15,17/12/2018
Commercial,Regional Enterprise,Other Services,0010014520,CONWAY AECOM LTD,-514.50,07/12/2018
Commercial,Regional Enterprise,Other Services,0010014709,CONWAY AECOM LTD,236.25,07/12/2018
Commercial,Regional Enterprise,Other Services,0010014717,CONWAY AECOM LTD,207.90,07/12/2018
Commercial,Regional Enterprise,Other Services,0020040800,CONWAY AECOM LTD,46.11,11/12/2018
Commercial,Regional Enterprise,Other Services,0020040801,CONWAY AECOM LTD,131.18,11/12/2018
Commercial,Regional Enterprise,Other Services,0020040806,CONWAY AECOM LTD,103.75,11/12/2018
Commercial,Regional Enterprise,Other Services,0020040827,CONWAY AECOM LTD,58.41,11/12/2018
Commercial,Regional Enterprise,Other Services,0020040828,CONWAY AECOM LTD,55.14,11/12/2018
Commercial,Regional Enterprise,Other Services,0060118231,CONWAY AECOM LTD,514.50,07/12/2018
Commercial,Regional Enterprise,Other Services,0060118769,CONWAY AECOM LTD,220.50,05/12/2018
Commercial,Regional Enterprise,Other Services,0060119266,CONWAY AECOM LTD,176.40,20/12/2018
Commercial,Regional Enterprise,Equipment and Materials Purcha,0060119270,CONWAY AECOM LTD,"1,687.39",13/12/2018
Commercial,Regional Enterprise,Other Services,0060119377,CONWAY AECOM LTD,47.25,20/12/2018
Commercial,Regional Enterprise,Other Services,0060119578,CONWAY AECOM LTD,349.65,20/12/2018
Commercial,Regional Enterprise,Other Services,0010014487,CONWAY AECOM LTD,"2,368.80",03/12/2018
Commercial,Regional Enterprise,Other Services,0010014522,CONWAY AECOM LTD,"2,160.00",04/12/2018
Commercial,Regional Enterprise,Other Services,0010014708,CONWAY AECOM LTD,945.00,07/12/2018
Commercial,Regional Enterprise,Other Services,0010014710,CONWAY AECOM LTD,"1,190.70",07/12/2018
Commercial,Regional Enterprise,Other Services,0010014711,CONWAY AECOM LTD,"1,083.60",07/12/2018
Commercial,Regional Enterprise,Other Services,0010014712,CONWAY AECOM LTD,756.00,07/12/2018
Commercial,Regional Enterprise,Other Services,0010014714,CONWAY AECOM LTD,718.20,07/12/2018
Commercial,Regional Enterprise,Other Services,0010014715,CONWAY AECOM LTD,579.60,07/12/2018
Commercial,Regional Enterprise,Other Services,0010014716,CONWAY AECOM LTD,970.20,07/12/2018
Commercial,Regional Enterprise,Other Services,0010014719,CONWAY AECOM LTD,945.00,07/12/2018
Commercial,Regional Enterprise,Other Services,0010014726,CONWAY AECOM LTD,831.60,07/12/2018
Commercial,Regional Enterprise,Other Services,0010014770,CONWAY AECOM LTD,756.00,10/12/2018
Commercial,Regional Enterprise,Other Services,0020040804,CONWAY AECOM LTD,228.79,11/12/2018
Commercial,Regional Enterprise,Other Services,0020040805,CONWAY AECOM LTD,917.85,11/12/2018
Commercial,Regional Enterprise,Other Services,0020040809,CONWAY AECOM LTD,"1,063.44",11/12/2018
Commercial,Regional Enterprise,Other Services,0020040813,CONWAY AECOM LTD,696.30,11/12/2018
Commercial,Regional Enterprise,Other Services,0020040814,CONWAY AECOM LTD,601.35,11/12/2018
Commercial,Regional Enterprise,Other Services,0020040815,CONWAY AECOM LTD,"1,311.45",11/12/2018
Commercial,Regional Enterprise,Other Services,0020040816,CONWAY AECOM LTD,595.02,11/12/2018
Commercial,Regional Enterprise,Other Services,0020040817,CONWAY AECOM LTD,"1,063.44",11/12/2018
Commercial,Regional Enterprise,Other Services,0020040818,CONWAY AECOM LTD,911.52,11/12/2018
Commercial,Regional Enterprise,Other Services,0020040819,CONWAY AECOM LTD,835.56,11/12/2018
Commercial,Regional Enterprise,Other Services,0020040820,CONWAY AECOM LTD,912.09,11/12/2018
Commercial,Regional Enterprise,Other Services,0020040821,CONWAY AECOM LTD,928.40,11/12/2018
Commercial,Regional Enterprise,Other Services,0020040826,CONWAY AECOM LTD,"1,329.30",11/12/2018
Commercial,Regional Enterprise,Other Services,0020040829,CONWAY AECOM LTD,"1,215.36",11/12/2018
Commercial,Regional Enterprise,Other Services,0020040830,CONWAY AECOM LTD,807.08,11/12/2018
Commercial,Regional Enterprise,Other Services,0020040831,CONWAY AECOM LTD,759.60,11/12/2018
Commercial,Regional Enterprise,Other Services,0020040832,CONWAY AECOM LTD,657.27,11/12/2018
Commercial,Regional Enterprise,Other Services,0060117466,CONWAY AECOM LTD,705.60,03/12/2018
Commercial,Regional Enterprise,Other Services,0060117719,CONWAY AECOM LTD,972.00,04/12/2018
Commercial,Regional Enterprise,Other Services,0060117768,CONWAY AECOM LTD,409.50,04/12/2018
Commercial,Regional Enterprise,Other Services,0060117776,CONWAY AECOM LTD,"2,733.75",04/12/2018
Commercial,Regional Enterprise,Other Services,0060118661,CONWAY AECOM LTD,264.60,05/12/2018
Commercial,Regional Enterprise,Other Services,0060118668,CONWAY AECOM LTD,"1,108.80",05/12/2018
Commercial,Regional Enterprise,Other Services,0060118686,CONWAY AECOM LTD,579.60,05/12/2018
Commercial,Regional Enterprise,Other Services,0060118692,CONWAY AECOM LTD,819.00,05/12/2018
Commercial,Regional Enterprise,Other Services,0060118705,CONWAY AECOM LTD,"2,268.00",05/12/2018
Commercial,Regional Enterprise,Other Services,0060118720,CONWAY AECOM LTD,756.00,05/12/2018
Commercial,Regional Enterprise,Other Services,0060118727,CONWAY AECOM LTD,945.00,05/12/2018
Commercial,Regional Enterprise,Other Services,0060118748,CONWAY AECOM LTD,630.00,05/12/2018
Commercial,Regional Enterprise,Other Services,0060118761,CONWAY AECOM LTD,"1,058.40",05/12/2018
Commercial,Regional Enterprise,Other Services,0060118789,CONWAY AECOM LTD,472.50,05/12/2018
Commercial,Regional Enterprise,Other Services,0060119262,CONWAY AECOM LTD,535.50,20/12/2018
Commercial,Regional Enterprise,Other Services,0060119274,CONWAY AECOM LTD,"1,310.40",13/12/2018
Commercial,Regional Enterprise,Other Services,0060119292,CONWAY AECOM LTD,730.80,20/12/2018
Commercial,Regional Enterprise,Other Services,0060119319,CONWAY AECOM LTD,529.20,20/12/2018
Commercial,Regional Enterprise,Other Services,0060119342,CONWAY AECOM LTD,277.20,20/12/2018
Commercial,Regional Enterprise,Other Services,0060119344,CONWAY AECOM LTD,869.40,20/12/2018
Commercial,Regional Enterprise,Other Services,0060119458,CONWAY AECOM LTD,"2,268.00",20/12/2018
Commercial,Regional Enterprise,Other Services,0060119530,CONWAY AECOM LTD,869.40,20/12/2018
Commercial,Regional Enterprise,Grant Payments,0080021478,REDACTED - PERSONAL DATA,500.00,04/12/2018
Commercial,Regional Enterprise,Grant Payments,0080021665,OXFORD CITY COUNCIL,40.00,11/12/2018
Commercial,Regional Enterprise,Grant Payments,0080021406,REDACTED - PERSONAL DATA,500.00,06/12/2018
Commercial,Regional Enterprise,Other Services,10014732,CONWAY AECOM LTD,"5,195.19",07/12/2018
Commercial,Regional Enterprise,Professional Services,0060119412,RE (REGIONAL ENTERPRISE) LIMITED,"91,038.42",19/12/2018
Commercial,Regional Enterprise,Consultants Fees,0010014758,GOWLING WLG,586.50,10/12/2018
Commercial,Regional Enterprise,Consultants Fees,0010014759,GOWLING WLG,"10,396.60",10/12/2018
Commercial,Regional Enterprise,Consultants Fees,0010014846,GOWLING WLG,"1,805.60",27/12/2018
Commercial,Regional Enterprise,Consultants Fees,0010014852,GOWLING WLG,"29,372.50",27/12/2018
Commercial,Regional Enterprise,Consultants Fees,0010014853,GOWLING WLG,"1,720.40",27/12/2018
Commercial,Regional Enterprise,Professional Services,0060119355,RE (REGIONAL ENTERPRISE) LIMITED,"61,437.83",19/12/2018
Commercial,Regional Enterprise,Consultants Fees,0060118274,SAPIENS CONSULTANCY,"4,392.00",20/12/2018
Commercial,Regional Enterprise,Consultants Fees,0010014766,GOWLING WLG,"7,390.84",10/12/2018
Commercial,Regional Enterprise,Consultants Fees,0010014767,GOWLING WLG,"6,549.54",10/12/2018
Commercial,Regional Enterprise,Consultants Fees,0010014768,GOWLING WLG,"3,540.60",10/12/2018
Commercial,Regional Enterprise,Consultants Fees,0010014845,GOWLING WLG,"2,257.22",27/12/2018
Commercial,Regional Enterprise,Consultants Fees,0010014847,GOWLING WLG,"11,344.25",27/12/2018
Commercial,Regional Enterprise,Consultants Fees,0010014848,GOWLING WLG,"8,902.97",27/12/2018
Commercial,Regional Enterprise,Consultants Fees,0010014851,GOWLING WLG,"2,212.01",27/12/2018
Commercial,Regional Enterprise,Consultants Fees,0060119938,GOWLING WLG,"4,541.80",27/12/2018
Commercial,Regional Enterprise,Consultants Fees,0060119939,GOWLING WLG,"2,984.12",27/12/2018
Commercial,Regional Enterprise,Consultants Fees,0060119965,GOWLING WLG,"10,673.98",27/12/2018
Commercial,Regional Enterprise,Consultants Fees,0060119967,GOWLING WLG,"7,130.84",27/12/2018
Commercial,Regional Enterprise,RE Services Contract Payment,0060117225,RE (REGIONAL ENTERPRISE) LIMITED,"23,672.70",11/12/2018
Commercial,Regional Enterprise,Consultants Fees,0060119775,POPUP BUSINESS SCHOOL,"21,500.00",19/12/2018
Commercial,Regional Enterprise,Professional Services,0010014787,RE (REGIONAL ENTERPRISE) LIMITED,"100,000.00",14/12/2018
Commercial,Regional Enterprise,Professional Services,0060118582,RE (REGIONAL ENTERPRISE) LIMITED,"50,000.00",03/12/2018
Commercial,Regional Enterprise,Professional Services,0060114461,RE (REGIONAL ENTERPRISE) LIMITED,"16,522.04",03/12/2018
Commercial,Regional Enterprise,Professional Services,0060117804,RE (REGIONAL ENTERPRISE) LIMITED,"-1,108.82",07/12/2018
Commercial,Regional Enterprise,Consultants Fees,0060118512,RE (REGIONAL ENTERPRISE) LIMITED,"442,325.00",03/12/2018
Commercial,Regional Enterprise,Professional Services,0010014776,RE (REGIONAL ENTERPRISE) LIMITED,"2,673.08",12/12/2018
Commercial,Regional Enterprise,Other Services,0020040797,CONWAY AECOM LTD,"10,369.19",11/12/2018
Commercial,Regional Enterprise,Other Services,0020040798,CONWAY AECOM LTD,"12,373.40",11/12/2018
Commercial,Regional Enterprise,Other Services,0020040802,CONWAY AECOM LTD,"2,048.60",11/12/2018
Commercial,Regional Enterprise,Other Services,0020040803,CONWAY AECOM LTD,695.08,11/12/2018
Commercial,Regional Enterprise,Other Services,0020040812,CONWAY AECOM LTD,344.31,11/12/2018
Commercial,Regional Enterprise,Other Services,0020040799,CONWAY AECOM LTD,"4,915.29",11/12/2018
Commercial,Regional Enterprise,Other Services,0020040807,CONWAY AECOM LTD,"1,536.41",11/12/2018
Commercial,Regional Enterprise,Cleaning and domestic material,0060114423,CHURCHILL CONTRACT SERVICES,488.56,06/12/2018
Commercial,Regional Enterprise,Cleaning and domestic material,0060116815,CHURCHILL CONTRACT SERVICES,488.56,06/12/2018
Commercial,Regional Enterprise,RE Services Contract Payment,0060118736,RE (REGIONAL ENTERPRISE) LIMITED,"3,444,673.00",12/12/2018
COMMERCIAL,REGIONAL ENTERPRISE,Grant Payments,0080021932,STANNAH STAIRLIFTS LTD,"5,752.00",19/12/2018
COMMERCIAL,REGIONAL ENTERPRISE,Grant Payments,0080021547,AMWELL CONSTRUCTION LTD,"7,382.00",06/12/2018
COMMERCIAL,REGIONAL ENTERPRISE,Grant Payments,0080021765,SOUTH HERTFORDSHIRE,"5,173.00",13/12/2018
COMMERCIAL,REGIONAL ENTERPRISE,Grant Payments,0080021826,SOUTH HERTFORDSHIRE,"5,783.00",14/12/2018
COMMERCIAL,REGIONAL ENTERPRISE,Grant Payments,0080022005,SOUTH HERTFORDSHIRE,"4,663.00",20/12/2018
COMMERCIAL,REGIONAL ENTERPRISE,Grant Payments,0080021310,DP BUILDERS DISABLED ADAPTATIONS,"10,610.00",05/12/2018
COMMERCIAL,REGIONAL ENTERPRISE,Grant Payments,0080021834,DP BUILDERS DISABLED ADAPTATIONS,"7,235.00",20/12/2018
COMMERCIAL,REGIONAL ENTERPRISE,Grant Payments,0080021930,H D PROPERTY SERVICES LTD,"4,862.00",19/12/2018
COMMERCIAL,REGIONAL ENTERPRISE,Grant Payments,0080021503,REDACTED - PERSONAL DATA,"6,616.00",05/12/2018
COMMERCIAL,REGIONAL ENTERPRISE,Grant Payments,0080021534,REDACTED - PERSONAL DATA,"7,307.00",05/12/2018
COMMERCIAL,REGIONAL ENTERPRISE,Grant Payments,0080021614,REDACTED - PERSONAL DATA,"6,514.13",11/12/2018
COMMERCIAL,REGIONAL ENTERPRISE,Grant Payments,0080021613,REDACTED - PERSONAL DATA,"2,807.50",12/12/2018
COMMERCIAL,REGIONAL ENTERPRISE,Other Services,0060118804,GOOD IMPRESSIONS (LONDON) LIMITED,60.00,11/12/2018
COMMERCIAL,REGIONAL ENTERPRISE,Other Services,0010014774,BOUYGUES E&S INFRASTRUCTURE UK LTD,"1,108.31",11/12/2018
COMMERCIAL,REGIONAL ENTERPRISE,Other Services,60115154,SABER ASSET MANAGEMENT LTD,"20,754.37",14/12/2018
COMMERCIAL,REGIONAL ENTERPRISE,Other Services,0010014797,CONWAY AECOM LTD,"67,678.16",18/12/2018
COMMERCIAL,REGIONAL ENTERPRISE,Other Services,0060113760,CONWAY AECOM LTD,"58,708.53",18/12/2018
COMMERCIAL,REGIONAL ENTERPRISE,Other Services,0060113873,CONWAY AECOM LTD,"13,629.79",18/12/2018
COMMERCIAL,REGIONAL ENTERPRISE,Other Services,0060118468,CONWAY AECOM LTD,"7,644.39",20/12/2018
COMMERCIAL,REGIONAL ENTERPRISE,Other Services,0060118497,CONWAY AECOM LTD,"19,696.00",20/12/2018
COMMERCIAL,REGIONAL ENTERPRISE,Other Services,0060118545,CONWAY AECOM LTD,"12,803.88",20/12/2018
COMMERCIAL,REGIONAL ENTERPRISE,Other Services,0060118567,CONWAY AECOM LTD,"11,435.52",04/12/2018
COMMERCIAL,REGIONAL ENTERPRISE,Other Services,0060118579,CONWAY AECOM LTD,"30,555.20",04/12/2018
COMMERCIAL,REGIONAL ENTERPRISE,Other Services,0060118590,CONWAY AECOM LTD,"17,449.00",04/12/2018
COMMERCIAL,REGIONAL ENTERPRISE,Other Services,0060118623,CONWAY AECOM LTD,"13,341.90",20/12/2018
COMMERCIAL,REGIONAL ENTERPRISE,Professional Services,0060119846,BLAKEDOWN LANDSCAPE (SE) LTD,"83,221.38",27/12/2018
COMMERCIAL,REGIONAL ENTERPRISE,Professional Services,0060118959,SUN HILL SURVEYS,"2,125.00",13/12/2018
COMMERCIAL,REGIONAL ENTERPRISE,Professional Services,0060118587,BOUYGUES E&S INFRASTRUCTURE UK LTD,"6,805.36",27/12/2018
COMMERCIAL,REGIONAL ENTERPRISE,Consultants Fees,0060117540,PFB CONSTRUCTION MANAGEMENT SERVICE LTD,"2,275.00",06/12/2018
COMMERCIAL,REGIONAL ENTERPRISE,Consultants Fees,0060118710,MSA LTD,"5,486.25",13/12/2018
COMMERCIAL,REGIONAL ENTERPRISE,Consultants Fees,0060118557,EVERSHEDS LLP,302.40,10/12/2018
COMMERCIAL,REGIONAL ENTERPRISE,Consultants Fees,0060118560,EVERSHEDS LLP,"8,780.45",10/12/2018
COMMERCIAL,REGIONAL ENTERPRISE,Consultants Fees,0060114425,NETWORK RAIL INFRASTRUCTURE LTD,"51,665.33",03/12/2018
COMMERCIAL,REGIONAL ENTERPRISE,Consultants Fees,0060114474,NETWORK RAIL INFRASTRUCTURE LTD,"2,281.24",03/12/2018
COMMERCIAL,REGIONAL ENTERPRISE,Consultants Fees,0060115432,NETWORK RAIL INFRASTRUCTURE LTD,"855,897.15",03/12/2018
COMMERCIAL,REGIONAL ENTERPRISE,Consultants Fees,0010014760,GOWLING WLG,"15,257.58",10/12/2018
COMMERCIAL,REGIONAL ENTERPRISE,Consultants Fees,0010014762,GOWLING WLG,"9,688.02",10/12/2018
COMMERCIAL,REGIONAL ENTERPRISE,Consultants Fees,0010014763,GOWLING WLG,"6,985.60",10/12/2018
COMMERCIAL,REGIONAL ENTERPRISE,Consultants Fees,0010014764,GOWLING WLG,"6,733.83",10/12/2018
COMMERCIAL,REGIONAL ENTERPRISE,Consultants Fees,0010014771,GOWLING WLG,"1,898.99",10/12/2018
COMMERCIAL,REGIONAL ENTERPRISE,Other Services,0080021816,GOLWING WLG (UK) LLP,"521,828.77",20/12/2018
Commissioning,Commissioning,Other Local Authorities - Thir,EBX0261568,NORTH LONDON WASTE AUTHORITY,"1,014,603.00",21/12/2018
Commissioning,Commissioning,Professional Services,0060111782,LONDON BOROUGH OF EALING,"8,900.00",10/12/2018
Commissioning,Commissioning,Professional Services,0060111769,LONDON BOROUGH OF EALING,"8,900.00",10/12/2018
Commissioning,Commissioning,Professional Services,0060119381,SITE LMPROVE LIMITED,"6,895.00",17/12/2018
Commissioning,Commissioning,Professional Services,0060112244,GOOD IMPRESSIONS (LONDON) LIMITED,260.00,17/12/2018
Commissioning,Commissioning,Consultants Fees,0080021804,ANDREW PRITCHARD LTD,"9,000.00",20/12/2018
Commissioning,Commissioning,Other Services,0060118483,SHREDALL LTD,36.00,10/12/2018
Commissioning,Commissioning,Other Services,0060118500,SHREDALL LTD,36.00,03/12/2018
Commissioning,Commissioning,Other Services,0060118612,SHREDALL LTD,270.00,10/12/2018
Commissioning,Commissioning,Miscellaneous Expenses,0060118957,GOOD IMPRESSIONS (LONDON) LIMITED,180.00,27/12/2018
Commissioning,Commissioning,Professional Services,0010014424,PENNA PLC,"6,426.00",06/12/2018
Commissioning,Commissioning,Professional Services,0010014428,PENNA PLC,"12,852.00",06/12/2018
Commissioning,Commissioning,Professional Services,0010014512,PENNA PLC,"13,655.25",19/12/2018
Commissioning,Commissioning,Professional Services,0010014513,PENNA PLC,"15,444.00",06/12/2018
Commissioning,Commissioning,Professional Services,0060116952,PENNA PLC,"11,407.50",06/12/2018
Commissioning,Commissioning,Professional Services,0010014789,GRANT THORNTON UK LLP,"47,155.41",14/12/2018
Commissioning,Commissioning,Professional Services,0060117896,GRANT THORNTON UK LLP,"8,924.70",04/12/2018
Commissioning,Commissioning,Professional Services,0060119886,GRANT THORNTON UK LLP,"16,732.75",27/12/2018
Commissioning,Commissioning,Professional Services,0010014637,CAPACITYGRID LTD,"99,424.50",05/12/2018
Commissioning,Commissioning,Other Services,0080021567,FAMILY FUND TRADING LTD,"50,000.00",07/12/2018
Commissioning,Commissioning,Training,0060113699,GOOD IMPRESSIONS (LONDON) LIMITED,480.00,17/12/2018
Commissioning,Commissioning,Miscellaneous Expenses,0060118813,GOOD IMPRESSIONS (LONDON) LIMITED,360.00,11/12/2018
Commissioning,Commissioning,Training,0060118843,GOOD IMPRESSIONS (LONDON) LIMITED,90.00,11/12/2018
Commissioning,Commissioning,COMMUNICATION REAL,0060118846,GOOD IMPRESSIONS (LONDON) LIMITED,180.00,11/12/2018
Commissioning,Commissioning,Training,0060119052,GOOD IMPRESSIONS (LONDON) LIMITED,"1,080.00",11/12/2018
Commissioning,Commissioning,Consultants Fees,0060117114,GATENBY SANDERSON,"6,821.28",07/12/2018
Commissioning,Commissioning,Training,0060115700,RESOLVEX PEOPLE SOLUTIONS LIMITED,547.10,07/12/2018
Commissioning,Commissioning,Agency/Interim Hays,0010014800,MATRIX SCM LTD,"269,957.87",19/12/2018
Commissioning,Commissioning,Agency/Interim Hays,0060118412,MATRIX SCM LTD,"256,628.04",03/12/2018
Commissioning,Commissioning,Agency/Interim Hays,0060119216,MATRIX SCM LTD,"298,313.88",13/12/2018
Commissioning,Commissioning,Equipment and Materials Purcha,0010014841,OCS GROUP UK LIMITED,"47,269.00",21/12/2018
Commissioning,Commissioning,Equipment and Materials Purcha,0060117285,OCS GROUP UK LIMITED,475.00,06/12/2018
Commissioning,Commissioning,Equipment and Materials Purcha,0060117318,OCS GROUP UK LIMITED,"2,037.50",06/12/2018
Commissioning,Commissioning,Other Transfer Payments to Soc,0060117349,GOOD IMPRESSIONS (LONDON) LIMITED,60.00,17/12/2018
Commissioning,Commissioning,Other Transfer Payments to Soc,0060119180,EMPOWERING COMMUNITIES,"5,949.00",13/12/2018
Commissioning,Commissioning,Private Contractors - Third Pa,0060119524,RISE MUTUAL CIC,"32,350.00",17/12/2018
Commissioning,Commissioning,Equipment and Materials Purcha,0060117927,HA9 CONSULTANCY LTD,"7,875.00",06/12/2018
Commissioning,Commissioning,Other Services,0060117093,GREENWICH LEISURE LTD,192.68,11/12/2018
Commissioning,Commissioning,Consultants Fees,0060111231,LONDON BOROUGH OF EALING,"15,000.00",10/12/2018
Commissioning,Commissioning,Consultants Fees,0060112944,LONDON BOROUGH OF EALING,"5,000.00",10/12/2018
Commissioning,Commissioning,Consultants Fees,0060111174,LONDON BOROUGH OF EALING,"10,000.00",10/12/2018
Commissioning,Commissioning,Publications,0060117335,GOOD IMPRESSIONS (LONDON) LIMITED,180.00,06/12/2018
Commissioning,Commissioning,Publications,0060117356,GOOD IMPRESSIONS (LONDON) LIMITED,420.00,06/12/2018
Commissioning,Commissioning,Publications,0060118858,GOOD IMPRESSIONS (LONDON) LIMITED,90.00,11/12/2018
Commissioning,Commissioning,Publications,0060119070,GOOD IMPRESSIONS (LONDON) LIMITED,90.00,11/12/2018
Commissioning,Commissioning,Professional Services,0080021925,REDACTED - PERSONAL DATA,600.00,19/12/2018
Commissioning,Commissioning,Publications,0060118474,GOOD IMPRESSIONS (LONDON) LIMITED,300.00,27/12/2018
Commissioning,Commissioning,Publications,0060118853,GOOD IMPRESSIONS (LONDON) LIMITED,360.00,11/12/2018
Commissioning,Commissioning,Advertising,0060118861,GOOD IMPRESSIONS (LONDON) LIMITED,400.00,11/12/2018
Commissioning,Commissioning,Advertising,0060114657,MELTWATER UK LTD,"1,565.00",17/12/2018
Commissioning,Commissioning,Publications,0060119062,GOOD IMPRESSIONS (LONDON) LIMITED,"2,160.00",11/12/2018
Commissioning,Commissioning,Professional Services,0060118479,TERAPIA,"9,000.00",14/12/2018
COMMISSIONING,COMMISSIONING GROUP,Ttl IT & Comms,0060118812,GOOD IMPRESSIONS (LONDON) LIMITED,150.00,11/12/2018
COMMISSIONING,COMMISSIONING GROUP,Training,0060113589,STAIRWAY CONSULTING LTD,"1,338.60",06/12/2018
COMMISSIONING,COMMISSIONING GROUP,Equipment and Materials Purcha,0060119873,JOHN GRAHAM CONSTRUCTION LTD,"1,558,171.79",24/12/2018
COMMISSIONING,COMMISSIONING GROUP,Other Services,0060112324,CONWAY AECOM LTD,"8,558.73",14/12/2018
COMMISSIONING,COMMISSIONING GROUP,Professional Services,0060116557,S W BRUCE & CO LTD,"93,968.09",06/12/2018
COMMISSIONING,COMMISSIONING GROUP,Other Services,0060118652,CONWAY AECOM LTD,"3,555.79",04/12/2018
COMMISSIONING,COMMISSIONING GROUP,Other Services,0060094369,ETZ CHAIM JEWISH PRIMARY SCHOOL,700.00,11/12/2018
COMMISSIONING,COMMISSIONING GROUP,Other Services,0010014707,CONWAY AECOM LTD,"3,754.16",07/12/2018
COMMISSIONING,COMMISSIONING GROUP,Other Services,0010014794,CONWAY AECOM LTD,82.65,18/12/2018
COMMISSIONING,COMMISSIONING GROUP,Other Services,0010014733,CONWAY AECOM LTD,"61,024.03",07/12/2018
COMMISSIONING,COMMISSIONING GROUP,Other Services,0060118711,CONWAY AECOM LTD,"55,703.71",05/12/2018
COMMISSIONING,COMMISSIONING GROUP,Other Services,0010014730,CONWAY AECOM LTD,"16,202.80",07/12/2018
COMMISSIONING,COMMISSIONING GROUP,Other Services,0010014798,CONWAY AECOM LTD,"3,979.50",18/12/2018
COMMISSIONING,COMMISSIONING GROUP,Other Services,0060118721,CONWAY AECOM LTD,"93,703.70",05/12/2018
COMMISSIONING,COMMISSIONING GROUP,Other Services,0060118778,CONWAY AECOM LTD,"3,912.57",27/12/2018
COMMISSIONING,COMMISSIONING GROUP,Other Services,0010014505,CONWAY AECOM LTD,"10,596.68",11/12/2018
COMMISSIONING,COMMISSIONING GROUP,Other Services,0060116418,CONWAY AECOM LTD,"1,121.53",06/12/2018
COMMISSIONING,COMMISSIONING GROUP,Other Services,0060116429,CONWAY AECOM LTD,"1,843.03",03/12/2018
COMMISSIONING,COMMISSIONING GROUP,Other Services,0060116436,CONWAY AECOM LTD,105.02,03/12/2018
COMMISSIONING,COMMISSIONING GROUP,Other Services,0060116447,CONWAY AECOM LTD,"1,720.01",03/12/2018
COMMISSIONING,COMMISSIONING GROUP,Other Services,0060116468,CONWAY AECOM LTD,"2,163.37",06/12/2018
COMMISSIONING,COMMISSIONING GROUP,Other Services,0060116590,CONWAY AECOM LTD,"1,050.77",10/12/2018
COMMISSIONING,COMMISSIONING GROUP,Other Services,0060116592,CONWAY AECOM LTD,"1,786.74",10/12/2018
COMMISSIONING,COMMISSIONING GROUP,Other Services,0060118461,CONWAY AECOM LTD,"1,648.04",04/12/2018
COMMISSIONING,COMMISSIONING GROUP,Other Services,0060118513,CONWAY AECOM LTD,"3,199.38",04/12/2018
COMMISSIONING,COMMISSIONING GROUP,Other Services,0060118532,CONWAY AECOM LTD,712.50,04/12/2018
COMMISSIONING,COMMISSIONING GROUP,Other Services,0060118536,CONWAY AECOM LTD,647.26,04/12/2018
COMMISSIONING,COMMISSIONING GROUP,Other Services,0060118537,CONWAY AECOM LTD,"2,533.79",04/12/2018
COMMISSIONING,COMMISSIONING GROUP,Other Services,0060118553,CONWAY AECOM LTD,"2,441.64",04/12/2018
COMMISSIONING,COMMISSIONING GROUP,Other Services,0060118584,CONWAY AECOM LTD,608.27,04/12/2018
COMMISSIONING,COMMISSIONING GROUP,Other Services,0060118585,CONWAY AECOM LTD,"9,147.95",04/12/2018
COMMISSIONING,COMMISSIONING GROUP,Other Services,0060118610,CONWAY AECOM LTD,"2,265.54",04/12/2018
COMMISSIONING,COMMISSIONING GROUP,Other Services,0060118617,CONWAY AECOM LTD,"3,880.56",04/12/2018
COMMISSIONING,COMMISSIONING GROUP,Other Services,0060118619,CONWAY AECOM LTD,"2,984.13",04/12/2018
COMMISSIONING,COMMISSIONING GROUP,Other Services,0060118626,CONWAY AECOM LTD,"17,268.06",04/12/2018
COMMISSIONING,COMMISSIONING GROUP,Other Services,0060118627,CONWAY AECOM LTD,"22,095.52",04/12/2018
COMMISSIONING,COMMISSIONING GROUP,Other Services,0060118656,CONWAY AECOM LTD,668.04,04/12/2018
COMMISSIONING,COMMISSIONING GROUP,Other Services,0060118786,CONWAY AECOM LTD,"8,623.73",05/12/2018
COMMISSIONING,COMMISSIONING GROUP,Other Services,0060119286,CONWAY AECOM LTD,"28,964.86",13/12/2018
COMMISSIONING,COMMISSIONING GROUP,Other Services,0060119889,CONWAY AECOM LTD,"24,542.12",20/12/2018
COMMISSIONING,COMMISSIONING GROUP,Other Services,0010014728,CONWAY AECOM LTD,"89,754.86",07/12/2018
COMMISSIONING,COMMISSIONING GROUP,Other Services,0060118647,CONWAY AECOM LTD,"5,876.60",04/12/2018
COMMISSIONING,COMMISSIONING GROUP,Other Services,0060119221,THE RIOT ACT LIMITED,"4,760.00",18/12/2018
COMMISSIONING,COMMISSIONING GROUP,Other Services,0010014773,BOUYGUES E&S INFRASTRUCTURE UK LTD,"5,318.10",10/12/2018
Corporate Accounting,Corporate Accounting,Other Local Authorities - Thir,EBX0261068,GREATER LONDON AUTHORITY,"49,678.00",18/12/2018
Corporate Accounting,Corporate Accounting,Other Local Authorities - Thir,EBX0260117,GREATER LONDON AUTHORITY,"4,363,157.80",11/12/2018
Corporate Accounting,Corporate Accounting,Other Local Authorities - Thir,EBX0258167,GREATER LONDON AUTHORITY,"236,146.00",07/12/2018
Corporate Accounting,Corporate Accounting,Grant Payments,0080021434,THE WORK AVENUE FOUNDATION,"1,000.00",04/12/2018
Corporate Accounting,Corporate Accounting,Grant Payments,0080021438,THE GOLF TRUST,"2,500.00",04/12/2018
Corporate Accounting,Corporate Accounting,Grant Payments,0080021942,PERSIAN ADVICE BUREAU,"5,000.00",19/12/2018
Corporate Accounting,Corporate Accounting,Other Transfer Payments to Soc,0080021466,WIRECARD (FS INSTANT 2040880892973),"38,832.92",11/12/2018
Corporate Accounting,Corporate Accounting,Other Transfer Payments to Soc,0080021469,WIRECARD (FS ONGOING 2040881670310,"8,440.80",04/12/2018
Corporate Accounting,Corporate Accounting,Private Contractors - Third Pa,0080021931,MELANI AND CO CLIENT ACCOUNT,"5,000.00",19/12/2018
Corporate Accounting,Corporate Accounting,Employee Expenses,0010014524,EDENRED,"2,356.25",04/12/2018
Corporate Accounting,Corporate Accounting,Fees and Charges,0080020856,ROAD TRAFFIC SOLUTIONS,551.00,06/12/2018
Delivery Units,Adults and Communities,Advertising,0060119781,TMP (UK) LTD,795.61,20/12/2018
Delivery Units,Adults and Communities,Translation Exp / Interpret,0060116968,D.A. LANGUAGES LTD,9.36,04/12/2018
Delivery Units,Adults and Communities,Training,0080022026,REDACTED - PERSONAL DATA,"1,500.00",21/12/2018
Delivery Units,Adults and Communities,Equipment and Materials Purcha,0060118395,BACK CARE SOLUTIONS LIMITED,914.94,19/12/2018
Delivery Units,Adults and Communities,Travelling Expenses,0060119222,M1 EXPRESS CAR SERVICES,201.00,17/12/2018
Delivery Units,Adults and Communities,Ttl IT & Comms,0060118781,P A CONSULTING SERVICES LTD,"64,368.00",27/12/2018
Delivery Units,Adults and Communities,Equipment and Materials Purcha,0060119036,MILLBROOK HEALTHCARE LTD,"37,766.12",20/12/2018
Delivery Units,Adults and Communities,Equipment and Materials Purcha,0060119063,MILLBROOK HEALTHCARE LTD,"229,827.67",20/12/2018
Delivery Units,Adults and Communities,Other Services,0080021513,REDACTED - PERSONAL DATA,106.48,17/12/2018
Delivery Units,Adults and Communities,Building Repairs & Maintenance,0010014533,HERTEL (UK) LTD,179.55,04/12/2018
Delivery Units,Adults and Communities,General Office Expenses,0040003144,OFFICE DEPOT UK LTD,49.65,27/12/2018
Delivery Units,Adults and Communities,Cleaning and domestic material,0060110804,CHURCHILL CONTRACT SERVICES,377.81,06/12/2018
Delivery Units,Adults and Communities,Cleaning and domestic material,0060112765,CHURCHILL CONTRACT SERVICES,377.81,06/12/2018
Delivery Units,Adults and Communities,Cleaning and domestic material,0060112769,CHURCHILL CONTRACT SERVICES,391.37,06/12/2018
Delivery Units,Adults and Communities,Cleaning and domestic material,0060114379,CHURCHILL CONTRACT SERVICES,377.81,06/12/2018
Delivery Units,Adults and Communities,Cleaning and domestic material,0060114385,CHURCHILL CONTRACT SERVICES,391.37,06/12/2018
Delivery Units,Adults and Communities,Cleaning and domestic material,0060116698,CHURCHILL CONTRACT SERVICES,377.81,06/12/2018
Delivery Units,Adults and Communities,Cleaning and domestic material,0060116812,CHURCHILL CONTRACT SERVICES,391.37,06/12/2018
Delivery Units,Adults and Communities,Cleaning and domestic material,0060119080,CHURCHILL CONTRACT SERVICES,377.81,27/12/2018
Delivery Units,Adults and Communities,Rubbish Collection,0060119326,BPR GROUP EUROPE LTD,52.00,27/12/2018
Delivery Units,Adults and Communities,Food Costs,0060118236,MULLER MILK & INGREDIENTS,0.88,07/12/2018
Delivery Units,Adults and Communities,Food Costs,0060119314,MULLER MILK & INGREDIENTS,0.88,21/12/2018
Delivery Units,Adults and Communities,Other Transfer Payments to Soc,0060118024,AGE CONCERN,"3,150.00",17/12/2018
Delivery Units,Adults and Communities,Other Agencies - Third Party P,0080022083,POHWER,"15,521.26",24/12/2018
Delivery Units,Adults and Communities,Training,0060118493,MICHAEL MANDELSTAM LTD,825.00,06/12/2018
Delivery Units,Adults and Communities,Other Transfer Payments to Soc,0080021546,REDACTED - PERSONAL DATA,376.00,06/12/2018
Delivery Units,Adults and Communities,Other Establishments - Third P,0060117651,HERTFORDSHIRE PARTNERSHIP,"111,724.50",07/12/2018
Delivery Units,Adults and Communities,Printing-Contract,0060119701,RED R DESIGN,275.00,17/12/2018
Delivery Units,Adults and Communities,Equipment and Materials Purcha,0060117081,BACK CARE SOLUTIONS LIMITED,97.50,17/12/2018
Delivery Units,Adults and Communities,Translation Exp / Interpret,0060116979,D.A. LANGUAGES LTD,281.00,04/12/2018
Delivery Units,Adults and Communities,Other Transfer Payments to Soc,0010014757,ASHPRI LIMITED,"5,048.45",10/12/2018
Delivery Units,Adults and Communities,Other Transfer Payments to Soc,0060119865,ASHPRI LIMITED,"6,485.95",19/12/2018
Delivery Units,Adults and Communities,Other Transfer Payments to Soc,0010014784,KORU MEDICAL LTD,"2,516.34",27/12/2018
Delivery Units,Adults and Communities,Other Transfer Payments to Soc,0060118381,LMS (BOLTON) LTD,"11,989.25",11/12/2018
Delivery Units,Adults and Communities,Other Transfer Payments to Soc,0010014744,AKRAS SOLUTIONS LIMITED,"3,224.34",07/12/2018
Delivery Units,Adults and Communities,Other Transfer Payments to Soc,0060109736,AISA MEDICAL LTD,353.30,05/12/2018
Delivery Units,Adults and Communities,Other Transfer Payments to Soc,0010014790,KEVIN SCHEURING LTD,"1,670.00",14/12/2018
Delivery Units,Adults and Communities,Other Transfer Payments to Soc,0010014791,KEVIN SCHEURING LTD,"1,220.00",14/12/2018
Delivery Units,Adults and Communities,Other Transfer Payments to Soc,0010014631,BARTEK ZANIEWSKI LTD,"4,334.80",05/12/2018
Delivery Units,Adults and Communities,Other Transfer Payments to Soc,0010014786,BARTEK ZANIEWSKI LTD,"1,973.20",20/12/2018
Delivery Units,Adults and Communities,Other Transfer Payments to Soc,0010014785,EDUHEZ LTD,"3,150.00",14/12/2018
Delivery Units,Adults and Communities,Other Transfer Payments to Soc,0010014781,PEACEABLE HABITATION LTD,"1,567.00",13/12/2018
Delivery Units,Adults and Communities,Other Transfer Payments to Soc,0060114113,MAINPAY LTD,900.00,18/12/2018
Delivery Units,Adults and Communities,Other Services,0010014572,KMCA CONSULTANCY SERVICES LTD,"4,028.02",05/12/2018
Delivery Units,Adults and Communities,Other Agencies - Third Party P,0090128246,NIGHTINGALE HOUSE,"2,857.11",05/12/2018
Delivery Units,Adults and Communities,Other Agencies - Third Party P,0090128252,JEWISH CARE,"1,657.14",05/12/2018
Delivery Units,Adults and Communities,Other Agencies - Third Party P,0090128253,JEWISH CARE,"2,356.88",05/12/2018
Delivery Units,Adults and Communities,Other Agencies - Third Party P,0090128254,JEWISH CARE,"2,356.88",05/12/2018
Delivery Units,Adults and Communities,Other Agencies - Third Party P,0090129793,JEWISH CARE,"5,221.92",12/12/2018
Delivery Units,Adults and Communities,Other Agencies - Third Party P,0090129794,JEWISH CARE,"2,440.97",12/12/2018
Delivery Units,Adults and Communities,Other Agencies - Third Party P,0090129795,JEWISH CARE,"4,713.76",12/12/2018
Delivery Units,Adults and Communities,Other Agencies - Third Party P,0090129796,JEWISH CARE,"5,221.92",12/12/2018
Delivery Units,Adults and Communities,Other Agencies - Third Party P,0090129797,JEWISH CARE,"4,713.76",12/12/2018
Delivery Units,Adults and Communities,Other Agencies - Third Party P,0090129798,JEWISH CARE,"5,221.92",12/12/2018
Delivery Units,Adults and Communities,Other Agencies - Third Party P,0090129799,JEWISH CARE,"5,221.92",12/12/2018
Delivery Units,Adults and Communities,Other Agencies - Third Party P,0090129800,JEWISH CARE,"4,713.76",12/12/2018
Delivery Units,Adults and Communities,Other Agencies - Third Party P,0090129801,JEWISH CARE,"4,713.76",12/12/2018
Delivery Units,Adults and Communities,Other Agencies - Third Party P,0090129802,JEWISH CARE,"4,713.76",12/12/2018
Delivery Units,Adults and Communities,Other Agencies - Third Party P,0090129803,JEWISH CARE,"5,221.92",12/12/2018
Delivery Units,Adults and Communities,Other Agencies - Third Party P,0090129805,JEWISH CARE,"5,221.92",12/12/2018
Delivery Units,Adults and Communities,Other Agencies - Third Party P,0090129806,JEWISH CARE,"5,221.92",12/12/2018
Delivery Units,Adults and Communities,Other Agencies - Third Party P,0090129807,JEWISH CARE,"4,713.76",12/12/2018
Delivery Units,Adults and Communities,Other Agencies - Third Party P,0090129808,JEWISH CARE,"5,221.92",12/12/2018
Delivery Units,Adults and Communities,Other Agencies - Third Party P,0090129809,JEWISH CARE,"4,713.76",12/12/2018
Delivery Units,Adults and Communities,Other Agencies - Third Party P,0090129810,JEWISH CARE,"4,713.76",12/12/2018
Delivery Units,Adults and Communities,Other Agencies - Third Party P,0090129811,JEWISH CARE,"4,713.76",12/12/2018
Delivery Units,Adults and Communities,Other Agencies - Third Party P,0090129812,JEWISH CARE,"4,713.76",12/12/2018
Delivery Units,Adults and Communities,Other Agencies - Third Party P,0090129924,JEWISH CARE,"4,713.76",12/12/2018
Delivery Units,Adults and Communities,Other Agencies - Third Party P,0090129926,JEWISH CARE,"4,713.76",12/12/2018
Delivery Units,Adults and Communities,Other Agencies - Third Party P,0090129927,JEWISH CARE,"4,713.76",12/12/2018
Delivery Units,Adults and Communities,Other Agencies - Third Party P,0090129956,JEWISH CARE,"4,714.72",12/12/2018
Delivery Units,Adults and Communities,Other Agencies - Third Party P,0090130686,JEWISH CARE,"1,599.31",18/12/2018
Delivery Units,Adults and Communities,Other Agencies - Third Party P,0090132069,JEWISH CARE,466.24,21/12/2018
Delivery Units,Adults and Communities,Other Agencies - Third Party P,0090130380,FERNBANK NURSING HOME.,"2,397.54",14/12/2018
Delivery Units,Adults and Communities,Other Agencies - Third Party P,0090130381,FERNBANK NURSING HOME.,"2,397.54",14/12/2018
Delivery Units,Adults and Communities,Other Agencies - Third Party P,0090130382,FERNBANK NURSING HOME.,"2,397.54",14/12/2018
Delivery Units,Adults and Communities,Other Agencies - Third Party P,0090130383,FERNBANK NURSING HOME.,"2,397.54",14/12/2018
Delivery Units,Adults and Communities,Other Agencies - Third Party P,0090130384,FERNBANK NURSING HOME.,"2,413.35",14/12/2018
Delivery Units,Adults and Communities,Other Agencies - Third Party P,0090130385,FERNBANK NURSING HOME.,"2,397.54",14/12/2018
Delivery Units,Adults and Communities,Other Agencies - Third Party P,0090130387,FERNBANK NURSING HOME.,"2,657.01",14/12/2018
Delivery Units,Adults and Communities,Other Agencies - Third Party P,0090130388,FERNBANK NURSING HOME.,"4,362.01",14/12/2018
Delivery Units,Adults and Communities,Other Agencies - Third Party P,0090130982,FERNBANK NURSING HOME.,"2,532.78",18/12/2018
Delivery Units,Adults and Communities,Other Agencies - Third Party P,0090129516,BUPA NURSING HOMES LTD - ARKLEY,"2,318.76",13/12/2018
Delivery Units,Adults and Communities,Other Agencies - Third Party P,0090129517,BUPA NURSING HOMES LTD - ARKLEY,"2,318.76",13/12/2018
Delivery Units,Adults and Communities,Other Agencies - Third Party P,0090129518,BUPA NURSING HOMES LTD - ARKLEY,"2,318.76",13/12/2018
Delivery Units,Adults and Communities,Other Agencies - Third Party P,0090129520,BUPA NURSING HOMES LTD - ARKLEY,"2,318.76",13/12/2018
Delivery Units,Adults and Communities,Other Agencies - Third Party P,0090128161,AGUDAS ISRAEL HOUSING ASSCTN LTD,"2,648.57",13/12/2018
Delivery Units,Adults and Communities,Other Agencies - Third Party P,0090129569,WESTMINSTER HEALTH CARE LTD,"3,053.77",13/12/2018
Delivery Units,Adults and Communities,Other Agencies - Third Party P,0090129570,WESTMINSTER HEALTH CARE LTD,"2,937.26",13/12/2018
Delivery Units,Adults and Communities,Other Agencies - Third Party P,0090131109,WESTMINSTER HEALTH CARE LTD,"3,837.98",18/12/2018
Delivery Units,Adults and Communities,Other Agencies - Third Party P,0090130390,WESTMINSTER HEALTH CARE LTD,"2,318.93",14/12/2018
Delivery Units,Adults and Communities,Other Agencies - Third Party P,0090131826,HENRY NIHILL HOUSE,"2,167.36",20/12/2018
Delivery Units,Adults and Communities,Other Agencies - Third Party P,0090131827,HENRY NIHILL HOUSE,"2,167.36",20/12/2018
Delivery Units,Adults and Communities,Other Agencies - Third Party P,0090131828,HENRY NIHILL HOUSE,"2,167.36",20/12/2018
Delivery Units,Adults and Communities,Other Agencies - Third Party P,0090131829,HENRY NIHILL HOUSE,"2,167.36",20/12/2018
Delivery Units,Adults and Communities,Other Agencies - Third Party P,0090131830,HENRY NIHILL HOUSE,"2,167.36",20/12/2018
Delivery Units,Adults and Communities,Other Agencies - Third Party P,0090131832,HENRY NIHILL HOUSE,"2,167.36",20/12/2018
Delivery Units,Adults and Communities,Other Agencies - Third Party P,0090131833,HENRY NIHILL HOUSE,"2,167.36",20/12/2018
Delivery Units,Adults and Communities,Other Agencies - Third Party P,0090131834,HENRY NIHILL HOUSE,"2,167.36",20/12/2018
Delivery Units,Adults and Communities,Other Agencies - Third Party P,0090131835,HENRY NIHILL HOUSE,"2,167.36",27/12/2018
Delivery Units,Adults and Communities,Other Agencies - Third Party P,0090131836,HENRY NIHILL HOUSE,"2,167.36",27/12/2018
Delivery Units,Adults and Communities,Other Agencies - Third Party P,0090131837,HENRY NIHILL HOUSE,"2,167.36",27/12/2018
Delivery Units,Adults and Communities,Other Agencies - Third Party P,0090131838,HENRY NIHILL HOUSE,"2,167.36",27/12/2018
Delivery Units,Adults and Communities,Other Agencies - Third Party P,0090131839,HENRY NIHILL HOUSE,"2,167.36",27/12/2018
Delivery Units,Adults and Communities,Other Agencies - Third Party P,0090131841,HENRY NIHILL HOUSE,"2,167.36",27/12/2018
Delivery Units,Adults and Communities,Other Agencies - Third Party P,0090131842,HENRY NIHILL HOUSE,"2,167.36",27/12/2018
Delivery Units,Adults and Communities,Other Agencies - Third Party P,0090131843,HENRY NIHILL HOUSE,"2,167.36",27/12/2018
Delivery Units,Adults and Communities,Other Agencies - Third Party P,0090125266,THE LEONARD CHESHIRE FOUNDATION,703.15,13/12/2018
Delivery Units,Adults and Communities,Other Agencies - Third Party P,0090129610,THE LEONARD CHESHIRE FOUNDATION,"6,420.00",27/12/2018
Delivery Units,Adults and Communities,Other Agencies - Third Party P,0090129590,LIFESTYLE CARE PLC,"2,320.37",11/12/2018
Delivery Units,Adults and Communities,Other Agencies - Third Party P,0090129592,LIFESTYLE CARE PLC,"2,320.37",11/12/2018
Delivery Units,Adults and Communities,Other Agencies - Third Party P,0090129593,LIFESTYLE CARE PLC,"2,320.37",11/12/2018
Delivery Units,Adults and Communities,Other Agencies - Third Party P,0090129595,LIFESTYLE CARE PLC,"2,569.89",11/12/2018
Delivery Units,Adults and Communities,Other Agencies - Third Party P,0090129596,LIFESTYLE CARE PLC,"2,320.37",11/12/2018
Delivery Units,Adults and Communities,Other Agencies - Third Party P,0090129597,LIFESTYLE CARE PLC,"2,320.37",11/12/2018
Delivery Units,Adults and Communities,Other Agencies - Third Party P,0090129598,LIFESTYLE CARE PLC,"2,320.37",11/12/2018
Delivery Units,Adults and Communities,Other Agencies - Third Party P,0090129599,LIFESTYLE CARE PLC,"2,569.89",11/12/2018
Delivery Units,Adults and Communities,Other Agencies - Third Party P,0090129600,LIFESTYLE CARE PLC,"2,320.37",11/12/2018
Delivery Units,Adults and Communities,Other Agencies - Third Party P,0090131812,LIFESTYLE CARE PLC,"17,557.48",20/12/2018
Delivery Units,Adults and Communities,Other Agencies - Third Party P,0090130700,CARETECH COMMUNITY SERVICES LTD,"4,926.34",27/12/2018
Delivery Units,Adults and Communities,Other Agencies - Third Party P,0090130470,SONESTA NURSING HOME LTD.,"2,399.58",14/12/2018
Delivery Units,Adults and Communities,Other Agencies - Third Party P,0090130473,SONESTA NURSING HOME LTD.,"2,397.72",14/12/2018
Delivery Units,Adults and Communities,Other Agencies - Third Party P,0090130474,SONESTA NURSING HOME LTD.,"2,655.55",14/12/2018
Delivery Units,Adults and Communities,Other Agencies - Third Party P,0090128076,MEERA NURSING HOME LIMITED,"2,907.93",04/12/2018
Delivery Units,Adults and Communities,Other Agencies - Third Party P,0090130465,MEERA NURSING HOME LIMITED,"2,907.93",14/12/2018
Delivery Units,Adults and Communities,Other Agencies - Third Party P,0090130466,MEERA NURSING HOME LIMITED,"3,506.72",14/12/2018
Delivery Units,Adults and Communities,Other Agencies - Third Party P,0090131063,MEERA NURSING HOME LIMITED,"2,708.65",18/12/2018
Delivery Units,Adults and Communities,Other Agencies - Third Party P,0090131064,MEERA NURSING HOME LIMITED,"2,445.68",18/12/2018
Delivery Units,Adults and Communities,Other Agencies - Third Party P,0090130057,NEWCENTURY CARE LTD,"2,398.56",13/12/2018
Delivery Units,Adults and Communities,Other Agencies - Third Party P,0090130459,NEWCENTURY CARE LTD,"4,198.29",14/12/2018
Delivery Units,Adults and Communities,Other Agencies - Third Party P,0090130460,NEWCENTURY CARE LTD,"4,340.00",14/12/2018
Delivery Units,Adults and Communities,Other Agencies - Third Party P,0090130461,NEWCENTURY CARE LTD,"3,985.71",14/12/2018
Delivery Units,Adults and Communities,Other Agencies - Third Party P,0090130462,NEWCENTURY CARE LTD,"3,321.43",14/12/2018
Delivery Units,Adults and Communities,Other Agencies - Third Party P,0090130464,NEWCENTURY CARE LTD,"3,321.43",14/12/2018
Delivery Units,Adults and Communities,Other Agencies - Third Party P,0090129468,BUPA CARE HOMES,"2,315.32",10/12/2018
Delivery Units,Adults and Communities,Other Agencies - Third Party P,0090129469,BUPA CARE HOMES,"3,463.92",10/12/2018
Delivery Units,Adults and Communities,Other Agencies - Third Party P,0090129471,BUPA CARE HOMES,"3,865.12",10/12/2018
Delivery Units,Adults and Communities,Other Agencies - Third Party P,0090129472,BUPA CARE HOMES,"2,480.70",12/12/2018
Delivery Units,Adults and Communities,Other Agencies - Third Party P,0090130476,BUPA CARE HOMES,"2,563.39",14/12/2018
Delivery Units,Adults and Communities,Other Agencies - Third Party P,0090129462,BUPA CARE HOMES,"2,322.17",12/12/2018
Delivery Units,Adults and Communities,Other Agencies - Third Party P,0090129463,BUPA CARE HOMES,"1,700.00",12/12/2018
Delivery Units,Adults and Communities,Other Agencies - Third Party P,0090129464,BUPA CARE HOMES,"2,641.07",12/12/2018
Delivery Units,Adults and Communities,Other Agencies - Third Party P,0090129466,BUPA CARE HOMES,"2,322.17",12/12/2018
Delivery Units,Adults and Communities,Other Agencies - Third Party P,0090131312,BUPA CARE HOMES,232.22,19/12/2018
Delivery Units,Adults and Communities,Other Agencies - Third Party P,0090131314,BUPA CARE HOMES,"2,399.58",19/12/2018
Delivery Units,Adults and Communities,Other Agencies - Third Party P,0090132078,BUPA CARE HOMES,"2,549.32",27/12/2018
Delivery Units,Adults and Communities,Other Agencies - Third Party P,0090132079,BUPA CARE HOMES,"2,321.92",27/12/2018
Delivery Units,Adults and Communities,Other Agencies - Third Party P,0090132080,BUPA CARE HOMES,"2,094.52",27/12/2018
Delivery Units,Adults and Communities,Other Agencies - Third Party P,0090129576,ASPEN VILLAGES LTD,"2,558.10",11/12/2018
Delivery Units,Adults and Communities,Other Agencies - Third Party P,0090129583,ASPEN VILLAGES LTD,"2,643.37",11/12/2018
Delivery Units,Adults and Communities,Other Agencies - Third Party P,0080020846,FOUR SEASONS HEALTH CARE,"6,856.89",06/12/2018
Delivery Units,Adults and Communities,Other Agencies - Third Party P,0090128163,FOUR SEASONS HEALTH CARE,182.19,05/12/2018
Delivery Units,Adults and Communities,Other Agencies - Third Party P,0090129499,FOUR SEASONS HEALTH CARE,"2,551.52",10/12/2018
Delivery Units,Adults and Communities,Other Agencies - Third Party P,0090129500,FOUR SEASONS HEALTH CARE,"2,291.35",10/12/2018
Delivery Units,Adults and Communities,Other Agencies - Third Party P,0090129501,FOUR SEASONS HEALTH CARE,"2,400.00",10/12/2018
Delivery Units,Adults and Communities,Other Agencies - Third Party P,0090129502,FOUR SEASONS HEALTH CARE,"2,550.72",10/12/2018
Delivery Units,Adults and Communities,Other Agencies - Third Party P,0090129503,FOUR SEASONS HEALTH CARE,"2,291.36",10/12/2018
Delivery Units,Adults and Communities,Other Agencies - Third Party P,0090129504,FOUR SEASONS HEALTH CARE,"2,291.36",10/12/2018
Delivery Units,Adults and Communities,Other Agencies - Third Party P,0090129507,FOUR SEASONS HEALTH CARE,"2,291.36",10/12/2018
Delivery Units,Adults and Communities,Other Agencies - Third Party P,0090129508,FOUR SEASONS HEALTH CARE,"2,550.72",10/12/2018
Delivery Units,Adults and Communities,Other Agencies - Third Party P,0090129510,FOUR SEASONS HEALTH CARE,"2,550.72",10/12/2018
Delivery Units,Adults and Communities,Other Agencies - Third Party P,0090129511,FOUR SEASONS HEALTH CARE,"2,291.36",10/12/2018
Delivery Units,Adults and Communities,Other Agencies - Third Party P,0090129603,FOUR SEASONS HEALTH CARE,"2,550.72",11/12/2018
Delivery Units,Adults and Communities,Other Agencies - Third Party P,0090130193,FOUR SEASONS HEALTH CARE,"2,011.97",14/12/2018
Delivery Units,Adults and Communities,Other Agencies - Third Party P,0090130194,FOUR SEASONS HEALTH CARE,245.49,14/12/2018
Delivery Units,Adults and Communities,Other Agencies - Third Party P,0090130495,SANCTUARY CARE LTD,"2,573.84",14/12/2018
Delivery Units,Adults and Communities,Other Agencies - Third Party P,0090129523,BUPA CARE HOMES,"3,499.20",14/12/2018
Delivery Units,Adults and Communities,Other Agencies - Third Party P,0090129524,BUPA CARE HOMES,"2,484.39",14/12/2018
Delivery Units,Adults and Communities,Other Agencies - Third Party P,0090130489,BUPA CARE HOMES,"3,556.23",14/12/2018
Delivery Units,Adults and Communities,Other Agencies - Third Party P,0090129488,SAGE NURSING HOME,"4,071.43",10/12/2018
Delivery Units,Adults and Communities,Other Agencies - Third Party P,0090129490,SAGE NURSING HOME,"5,142.86",10/12/2018
Delivery Units,Adults and Communities,Other Agencies - Third Party P,0090129492,SAGE NURSING HOME,"2,322.17",10/12/2018
Delivery Units,Adults and Communities,Other Agencies - Third Party P,0090129494,SAGE NURSING HOME,"2,698.37",10/12/2018
Delivery Units,Adults and Communities,Other Agencies - Third Party P,0090129495,SAGE NURSING HOME,"2,436.39",10/12/2018
Delivery Units,Adults and Communities,Other Agencies - Third Party P,0090129496,SAGE NURSING HOME,"2,436.39",10/12/2018
Delivery Units,Adults and Communities,Other Agencies - Third Party P,0090130620,SAGE NURSING HOME,"5,142.86",18/12/2018
Delivery Units,Adults and Communities,Other Agencies - Third Party P,0090130621,SAGE NURSING HOME,"2,322.17",18/12/2018
Delivery Units,Adults and Communities,Other Agencies - Third Party P,0090130623,SAGE NURSING HOME,"2,698.37",18/12/2018
Delivery Units,Adults and Communities,Other Agencies - Third Party P,0090130624,SAGE NURSING HOME,"2,436.39",18/12/2018
Delivery Units,Adults and Communities,Other Agencies - Third Party P,0090130625,SAGE NURSING HOME,"4,071.43",18/12/2018
Delivery Units,Adults and Communities,Other Agencies - Third Party P,0090129837,M D HOMES,"3,072.32",13/12/2018
Delivery Units,Adults and Communities,Other Agencies - Third Party P,0090131813,M D HOMES,"2,973.21",20/12/2018
Delivery Units,Adults and Communities,Other Agencies - Third Party P,0090128083,APPLE TREE COURT CARE HOME,"2,571.43",04/12/2018
Delivery Units,Adults and Communities,Other Agencies - Third Party P,0090128084,APPLE TREE COURT CARE HOME,"19,542.85",04/12/2018
Delivery Units,Adults and Communities,Other Agencies - Third Party P,0090128086,APPLE TREE COURT CARE HOME,"2,322.17",04/12/2018
Delivery Units,Adults and Communities,Other Agencies - Third Party P,0090128087,APPLE TREE COURT CARE HOME,"4,714.29",04/12/2018
Delivery Units,Adults and Communities,Other Agencies - Third Party P,0090130673,APPLE TREE COURT CARE HOME,"2,657.14",18/12/2018
Delivery Units,Adults and Communities,Other Agencies - Third Party P,0090130674,APPLE TREE COURT CARE HOME,"2,399.58",18/12/2018
Delivery Units,Adults and Communities,Other Agencies - Third Party P,0090130675,APPLE TREE COURT CARE HOME,"4,871.43",18/12/2018
Delivery Units,Adults and Communities,Other Agencies - Third Party P,0090130729,AUTUMN GARDENS,"6,295.71",18/12/2018
Delivery Units,Adults and Communities,Other Agencies - Third Party P,0090130732,AUTUMN GARDENS,"4,800.00",18/12/2018
Delivery Units,Adults and Communities,Other Agencies - Third Party P,0090130733,AUTUMN GARDENS,"4,800.00",18/12/2018
Delivery Units,Adults and Communities,Other Agencies - Third Party P,0090128271,SUNRISE SENIOR LIVING,"6,176.40",05/12/2018
Delivery Units,Adults and Communities,Other Agencies - Third Party P,0090129602,ABBEY RAVENSCROFT PARK NURSING HOME,"9,045.96",11/12/2018
Delivery Units,Adults and Communities,Other Agencies - Third Party P,0090131055,ABBEY RAVENSCROFT PARK NURSING HOME,"3,321.43",18/12/2018
Delivery Units,Adults and Communities,Other Agencies - Third Party P,0090131056,ABBEY RAVENSCROFT PARK NURSING HOME,"3,321.43",18/12/2018
Delivery Units,Adults and Communities,Other Agencies - Third Party P,0090131058,ABBEY RAVENSCROFT PARK NURSING HOME,"3,321.43",18/12/2018
Delivery Units,Adults and Communities,Other Agencies - Third Party P,0090131059,ABBEY RAVENSCROFT PARK NURSING HOME,"3,321.43",18/12/2018
Delivery Units,Adults and Communities,Other Agencies - Third Party P,0090131080,ABBEY RAVENSCROFT PARK NURSING HOME,"2,788.32",18/12/2018
Delivery Units,Adults and Communities,Other Agencies - Third Party P,0090131084,ABBEY RAVENSCROFT PARK NURSING HOME,"3,801.88",18/12/2018
Delivery Units,Adults and Communities,Other Agencies - Third Party P,0090131086,ABBEY RAVENSCROFT PARK NURSING HOME,"2,788.32",18/12/2018
Delivery Units,Adults and Communities,Other Agencies - Third Party P,0090131088,ABBEY RAVENSCROFT PARK NURSING HOME,"3,100.00",18/12/2018
Delivery Units,Adults and Communities,Other Agencies - Third Party P,0090129573,CARLTON COURT (TLC GROUP),342.86,11/12/2018
Delivery Units,Adults and Communities,Other Agencies - Third Party P,0090131144,CARLTON COURT (TLC GROUP),"4,428.57",18/12/2018
Delivery Units,Adults and Communities,Other Agencies - Third Party P,0090131145,CARLTON COURT (TLC GROUP),"3,736.61",18/12/2018
Delivery Units,Adults and Communities,Other Agencies - Third Party P,0090131149,CARLTON COURT (TLC GROUP),"2,448.78",18/12/2018
Delivery Units,Adults and Communities,Other Agencies - Third Party P,0090131150,CARLTON COURT (TLC GROUP),"3,100.00",18/12/2018
Delivery Units,Adults and Communities,Other Agencies - Third Party P,0090128269,ASHTON LODGE CARE CENTRE,"-1,563.42",18/12/2018
Delivery Units,Adults and Communities,Other Agencies - Third Party P,0090131169,ASHTON LODGE CARE CENTRE,"3,808.88",18/12/2018
Delivery Units,Adults and Communities,Other Agencies - Third Party P,0090131171,ASHTON LODGE CARE CENTRE,"3,380.90",18/12/2018
Delivery Units,Adults and Communities,Other Agencies - Third Party P,0090131176,ASHTON LODGE CARE CENTRE,"2,895.00",18/12/2018
Delivery Units,Adults and Communities,Other Agencies - Third Party P,0090131177,ASHTON LODGE CARE CENTRE,"3,506.72",18/12/2018
Delivery Units,Adults and Communities,Other Agencies - Third Party P,0090131179,ASHTON LODGE CARE CENTRE,"2,988.71",18/12/2018
Delivery Units,Adults and Communities,Other Agencies - Third Party P,0090131180,ASHTON LODGE CARE CENTRE,"3,128.43",18/12/2018
Delivery Units,Adults and Communities,Other Agencies - Third Party P,0090131181,ASHTON LODGE CARE CENTRE,"3,506.72",18/12/2018
Delivery Units,Adults and Communities,Other Agencies - Third Party P,0090131182,ASHTON LODGE CARE CENTRE,"3,583.51",18/12/2018
Delivery Units,Adults and Communities,Other Agencies - Third Party P,0090131183,ASHTON LODGE CARE CENTRE,"3,583.51",18/12/2018
Delivery Units,Adults and Communities,Other Agencies - Third Party P,0090131184,ASHTON LODGE CARE CENTRE,"3,189.86",18/12/2018
Delivery Units,Adults and Communities,Other Agencies - Third Party P,0090131185,ASHTON LODGE CARE CENTRE,"2,613.92",18/12/2018
Delivery Units,Adults and Communities,Other Agencies - Third Party P,0090131186,ASHTON LODGE CARE CENTRE,"2,895.00",18/12/2018
Delivery Units,Adults and Communities,Other Agencies - Third Party P,0090131187,ASHTON LODGE CARE CENTRE,"3,831.69",18/12/2018
Delivery Units,Adults and Communities,Other Agencies - Third Party P,0090131188,ASHTON LODGE CARE CENTRE,"3,132.73",18/12/2018
Delivery Units,Adults and Communities,Other Agencies - Third Party P,0090131189,ASHTON LODGE CARE CENTRE,"3,127.32",18/12/2018
Delivery Units,Adults and Communities,Other Agencies - Third Party P,0090131190,ASHTON LODGE CARE CENTRE,"3,358.10",18/12/2018
Delivery Units,Adults and Communities,Other Agencies - Third Party P,0090131192,ASHTON LODGE CARE CENTRE,"3,741.92",18/12/2018
Delivery Units,Adults and Communities,Other Agencies - Third Party P,0090131193,ASHTON LODGE CARE CENTRE,"3,077.64",18/12/2018
Delivery Units,Adults and Communities,Other Agencies - Third Party P,0090131194,ASHTON LODGE CARE CENTRE,"3,583.51",18/12/2018
Delivery Units,Adults and Communities,Other Agencies - Third Party P,0090131195,ASHTON LODGE CARE CENTRE,"3,606.27",18/12/2018
Delivery Units,Adults and Communities,Other Agencies - Third Party P,0090131814,ASHTON LODGE CARE CENTRE,"3,132.73",20/12/2018
Delivery Units,Adults and Communities,Other Agencies - Third Party P,0090131820,ASHTON LODGE CARE CENTRE,"2,320.37",20/12/2018
Delivery Units,Adults and Communities,Other Agencies - Third Party P,0090131821,ASHTON LODGE CARE CENTRE,"2,397.72",20/12/2018
Delivery Units,Adults and Communities,Other Agencies - Third Party P,0090131822,ASHTON LODGE CARE CENTRE,"-1,469.57",20/12/2018
Delivery Units,Adults and Communities,Other Agencies - Third Party P,0090131824,ASHTON LODGE CARE CENTRE,"3,541.13",20/12/2018
Delivery Units,Adults and Communities,Other Agencies - Third Party P,0090130488,WESTGATE HOUSE CARE CENTRE,"3,725.76",14/12/2018
Delivery Units,Adults and Communities,Other Agencies - Third Party P,0090130985,MURRAYFIELD CARE HOME,"2,211.80",18/12/2018
Delivery Units,Adults and Communities,Other Agencies - Third Party P,0090131161,KARUNA MANOR,"4,207.14",18/12/2018
Delivery Units,Adults and Communities,Other Agencies - Third Party P,0090128156,ST ANNS HOME-LITTLE SISTERS OF THE POOR,"2,320.38",05/12/2018
Delivery Units,Adults and Communities,Other Agencies - Third Party P,0090129498,PINELODGE CARE HOME,"5,225.43",27/12/2018
Delivery Units,Adults and Communities,Other Agencies - Third Party P,0090130443,CHISWICK HOUSE,"3,321.48",27/12/2018
Delivery Units,Adults and Communities,Other Agencies - Third Party P,0090130446,ADARA HEALTHCARE LTD,"3,400.00",14/12/2018
Delivery Units,Adults and Communities,Other Agencies - Third Party P,0090131076,AARANDALE MANOR CARE HOME,"2,655.55",18/12/2018
Delivery Units,Adults and Communities,Other Agencies - Third Party P,0090131077,AARANDALE MANOR CARE HOME,"4,428.57",18/12/2018
Delivery Units,Adults and Communities,Other Agencies - Third Party P,0090131078,AARANDALE MANOR CARE HOME,"2,570.56",18/12/2018
Delivery Units,Adults and Communities,Other Agencies - Third Party P,0090128245,FRISTON HOUSE,"2,967.36",05/12/2018
Delivery Units,Adults and Communities,Other Agencies - Third Party P,0090130491,LADY OF THE VALE NURSING HOME,"3,764.29",14/12/2018
Delivery Units,Adults and Communities,Other Agencies - Third Party P,0090130058,BONDCARE LONDON (THE FOUNTAINS),"2,138.00",13/12/2018
Delivery Units,Adults and Communities,Other Agencies - Third Party P,0090131117,ST JOHNS WOOD CARE CENTRE,"2,856.21",27/12/2018
Delivery Units,Adults and Communities,Other Agencies - Third Party P,0090129566,LANSGLADE HOMES LIMITED,"2,723.66",11/12/2018
Delivery Units,Adults and Communities,Other Agencies - Third Party P,0090131089,LANSGLADE HOMES LIMITED,"2,723.66",27/12/2018
Delivery Units,Adults and Communities,Other Agencies - Third Party P,0090130717,DR FRENCH MEMORIAL HOME LTD,"3,542.86",20/12/2018
Delivery Units,Adults and Communities,Other Agencies - Third Party P,0090130718,DR FRENCH MEMORIAL HOME LTD,"2,550.86",20/12/2018
Delivery Units,Adults and Communities,Other Agencies - Third Party P,0090130719,DR FRENCH MEMORIAL HOME LTD,"3,542.86",20/12/2018
Delivery Units,Adults and Communities,Other Agencies - Third Party P,0090130720,DR FRENCH MEMORIAL HOME LTD,"3,653.57",20/12/2018
Delivery Units,Adults and Communities,Other Agencies - Third Party P,0090130721,DR FRENCH MEMORIAL HOME LTD,"3,542.86",20/12/2018
Delivery Units,Adults and Communities,Other Agencies - Third Party P,0090130722,DR FRENCH MEMORIAL HOME LTD,"3,542.86",20/12/2018
Delivery Units,Adults and Communities,Other Agencies - Third Party P,0090130655,ROSEACRES CARE HOME LIMITED,"3,321.43",20/12/2018
Delivery Units,Adults and Communities,Other Agencies - Third Party P,0090130656,ROSEACRES CARE HOME LIMITED,"3,321.43",20/12/2018
Delivery Units,Adults and Communities,Other Agencies - Third Party P,0090130657,ROSEACRES CARE HOME LIMITED,"2,550.86",20/12/2018
Delivery Units,Adults and Communities,Other Agencies - Third Party P,0090130659,ROSEACRES CARE HOME LIMITED,"3,321.43",20/12/2018
Delivery Units,Adults and Communities,Other Agencies - Third Party P,0090130661,ROSEACRES CARE HOME LIMITED,"2,550.86",20/12/2018
Delivery Units,Adults and Communities,Other Agencies - Third Party P,0090130662,ROSEACRES CARE HOME LIMITED,"3,321.43",20/12/2018
Delivery Units,Adults and Communities,Other Agencies - Third Party P,0090130663,ROSEACRES CARE HOME LIMITED,"2,550.86",20/12/2018
Delivery Units,Adults and Communities,Other Agencies - Third Party P,0090130665,ROSEACRES CARE HOME LIMITED,"3,764.29",20/12/2018
Delivery Units,Adults and Communities,Other Agencies - Third Party P,0090130666,ROSEACRES CARE HOME LIMITED,"2,373.71",20/12/2018
Delivery Units,Adults and Communities,Other Agencies - Third Party P,0090130667,ROSEACRES CARE HOME LIMITED,"2,550.86",20/12/2018
Delivery Units,Adults and Communities,Other Agencies - Third Party P,0090130668,ROSEACRES CARE HOME LIMITED,"2,550.86",20/12/2018
Delivery Units,Adults and Communities,Other Agencies - Third Party P,0090130669,ROSEACRES CARE HOME LIMITED,"2,550.86",20/12/2018
Delivery Units,Adults and Communities,Other Agencies - Third Party P,0090130671,ROSEACRES CARE HOME LIMITED,"2,892.13",20/12/2018
Delivery Units,Adults and Communities,Other Agencies - Third Party P,0090131308,ROSEACRES CARE HOME LIMITED,"-1,645.72",20/12/2018
Delivery Units,Adults and Communities,Other Agencies - Third Party P,0090128159,ELEANOR PALMER TRUST NO 2 A/C.,535.71,05/12/2018
Delivery Units,Adults and Communities,Other Agencies - Third Party P,0090131850,SPANISH AND PORTUGUESE JEWISH,"2,588.57",20/12/2018
Delivery Units,Adults and Communities,Other Agencies - Third Party P,0090131851,SPANISH AND PORTUGUESE JEWISH,"2,674.86",20/12/2018
Delivery Units,Adults and Communities,Other Agencies - Third Party P,0090131852,SPANISH AND PORTUGUESE JEWISH,"2,588.57",20/12/2018
Delivery Units,Adults and Communities,Other Agencies - Third Party P,0090131853,SPANISH AND PORTUGUESE JEWISH,"2,674.86",27/12/2018
Delivery Units,Adults and Communities,Other Agencies - Third Party P,0090131165,TORRINGTON HOMES,"2,448.78",18/12/2018
Delivery Units,Adults and Communities,Other Agencies - Third Party P,0090131166,TORRINGTON HOMES,"2,448.78",18/12/2018
Delivery Units,Adults and Communities,Other Agencies - Third Party P,0090131167,TORRINGTON HOMES,"2,448.78",18/12/2018
Delivery Units,Adults and Communities,Other Agencies - Third Party P,0090131168,TORRINGTON HOMES,"2,249.45",18/12/2018
Delivery Units,Adults and Communities,Other Agencies - Third Party P,0090128129,THE GRANGE,"2,600.00",05/12/2018
Delivery Units,Adults and Communities,Other Agencies - Third Party P,0090128131,THE GRANGE,"2,304.00",05/12/2018
Delivery Units,Adults and Communities,Other Agencies - Third Party P,0090128255,JEWISH CARE,"2,456.36",05/12/2018
Delivery Units,Adults and Communities,Other Agencies - Third Party P,0090128256,JEWISH CARE,"1,140.45",05/12/2018
Delivery Units,Adults and Communities,Other Agencies - Third Party P,0090129477,JEWISH CARE,-999.56,12/12/2018
Delivery Units,Adults and Communities,Other Agencies - Third Party P,0090129747,JEWISH CARE,"4,912.72",12/12/2018
Delivery Units,Adults and Communities,Other Agencies - Third Party P,0090129748,JEWISH CARE,"4,514.16",12/12/2018
Delivery Units,Adults and Communities,Other Agencies - Third Party P,0090129749,JEWISH CARE,"8,492.40",12/12/2018
Delivery Units,Adults and Communities,Other Agencies - Third Party P,0090129750,JEWISH CARE,"4,514.16",12/12/2018
Delivery Units,Adults and Communities,Other Agencies - Third Party P,0090129751,JEWISH CARE,"4,912.72",12/12/2018
Delivery Units,Adults and Communities,Other Agencies - Third Party P,0090129752,JEWISH CARE,"4,514.16",12/12/2018
Delivery Units,Adults and Communities,Other Agencies - Third Party P,0090129753,JEWISH CARE,"4,912.72",12/12/2018
Delivery Units,Adults and Communities,Other Agencies - Third Party P,0090129754,JEWISH CARE,"4,514.16",12/12/2018
Delivery Units,Adults and Communities,Other Agencies - Third Party P,0090129755,JEWISH CARE,"4,912.72",12/12/2018
Delivery Units,Adults and Communities,Other Agencies - Third Party P,0090129756,JEWISH CARE,"4,912.72",12/12/2018
Delivery Units,Adults and Communities,Other Agencies - Third Party P,0090129757,JEWISH CARE,"4,514.16",12/12/2018
Delivery Units,Adults and Communities,Other Agencies - Third Party P,0090129758,JEWISH CARE,"4,514.16",12/12/2018
Delivery Units,Adults and Communities,Other Agencies - Third Party P,0090129759,JEWISH CARE,"4,515.52",12/12/2018
Delivery Units,Adults and Communities,Other Agencies - Third Party P,0090129760,JEWISH CARE,"4,509.68",12/12/2018
Delivery Units,Adults and Communities,Other Agencies - Third Party P,0090129761,JEWISH CARE,"4,509.68",12/12/2018
Delivery Units,Adults and Communities,Other Agencies - Third Party P,0090129762,JEWISH CARE,"4,509.68",12/12/2018
Delivery Units,Adults and Communities,Other Agencies - Third Party P,0090129763,JEWISH CARE,885.83,12/12/2018
Delivery Units,Adults and Communities,Other Agencies - Third Party P,0090129764,JEWISH CARE,"1,288.48",12/12/2018
Delivery Units,Adults and Communities,Other Agencies - Third Party P,0090129765,JEWISH CARE,"9,466.80",12/12/2018
Delivery Units,Adults and Communities,Other Agencies - Third Party P,0090129766,JEWISH CARE,"4,509.68",12/12/2018
Delivery Units,Adults and Communities,Other Agencies - Third Party P,0090129767,JEWISH CARE,"2,576.96",12/12/2018
Delivery Units,Adults and Communities,Other Agencies - Third Party P,0090129768,JEWISH CARE,"4,912.72",12/12/2018
Delivery Units,Adults and Communities,Other Agencies - Third Party P,0090129769,JEWISH CARE,"4,509.68",12/12/2018
Delivery Units,Adults and Communities,Other Agencies - Third Party P,0090129770,JEWISH CARE,"4,509.68",12/12/2018
Delivery Units,Adults and Communities,Other Agencies - Third Party P,0090129771,JEWISH CARE,"4,912.72",12/12/2018
Delivery Units,Adults and Communities,Other Agencies - Third Party P,0090129772,JEWISH CARE,"4,912.72",12/12/2018
Delivery Units,Adults and Communities,Other Agencies - Third Party P,0090129774,JEWISH CARE,"4,270.88",12/12/2018
Delivery Units,Adults and Communities,Other Agencies - Third Party P,0090129778,JEWISH CARE,"4,919.92",12/12/2018
Delivery Units,Adults and Communities,Other Agencies - Third Party P,0090129780,JEWISH CARE,"6,516.48",12/12/2018
Delivery Units,Adults and Communities,Other Agencies - Third Party P,0090129781,JEWISH CARE,"4,919.92",12/12/2018
Delivery Units,Adults and Communities,Other Agencies - Third Party P,0090129783,JEWISH CARE,"4,919.92",12/12/2018
Delivery Units,Adults and Communities,Other Agencies - Third Party P,0090129785,JEWISH CARE,"4,919.92",12/12/2018
Delivery Units,Adults and Communities,Other Agencies - Third Party P,0090129786,JEWISH CARE,"4,919.92",12/12/2018
Delivery Units,Adults and Communities,Other Agencies - Third Party P,0090129787,JEWISH CARE,"4,919.92",12/12/2018
Delivery Units,Adults and Communities,Other Agencies - Third Party P,0090129788,JEWISH CARE,"4,919.92",12/12/2018
Delivery Units,Adults and Communities,Other Agencies - Third Party P,0090129789,JEWISH CARE,"4,520.80",12/12/2018
Delivery Units,Adults and Communities,Other Agencies - Third Party P,0090129790,JEWISH CARE,"4,919.92",12/12/2018
Delivery Units,Adults and Communities,Other Agencies - Third Party P,0090129792,JEWISH CARE,"5,221.92",12/12/2018
Delivery Units,Adults and Communities,Other Agencies - Third Party P,0090129928,JEWISH CARE,"4,910.24",12/12/2018
Delivery Units,Adults and Communities,Other Agencies - Third Party P,0090129929,JEWISH CARE,315.66,12/12/2018
Delivery Units,Adults and Communities,Other Agencies - Third Party P,0090129930,JEWISH CARE,"4,910.24",12/12/2018
Delivery Units,Adults and Communities,Other Agencies - Third Party P,0090129931,JEWISH CARE,"4,910.24",12/12/2018
Delivery Units,Adults and Communities,Other Agencies - Third Party P,0090129932,JEWISH CARE,"4,910.24",12/12/2018
Delivery Units,Adults and Communities,Other Agencies - Third Party P,0090129933,JEWISH CARE,"4,910.24",12/12/2018
Delivery Units,Adults and Communities,Other Agencies - Third Party P,0090129934,JEWISH CARE,"4,910.24",12/12/2018
Delivery Units,Adults and Communities,Other Agencies - Third Party P,0090129935,JEWISH CARE,"4,511.92",12/12/2018
Delivery Units,Adults and Communities,Other Agencies - Third Party P,0090129936,JEWISH CARE,"4,910.24",12/12/2018
Delivery Units,Adults and Communities,Other Agencies - Third Party P,0090129937,JEWISH CARE,"4,910.24",12/12/2018
Delivery Units,Adults and Communities,Other Agencies - Third Party P,0090129938,JEWISH CARE,"4,511.92",12/12/2018
Delivery Units,Adults and Communities,Other Agencies - Third Party P,0090129939,JEWISH CARE,"4,910.24",12/12/2018
Delivery Units,Adults and Communities,Other Agencies - Third Party P,0090129940,JEWISH CARE,"4,350.78",12/12/2018
Delivery Units,Adults and Communities,Other Agencies - Third Party P,0090129941,JEWISH CARE,"4,915.60",12/12/2018
Delivery Units,Adults and Communities,Other Agencies - Third Party P,0090129942,JEWISH CARE,"4,915.60",12/12/2018
Delivery Units,Adults and Communities,Other Agencies - Third Party P,0090129943,JEWISH CARE,"4,915.60",12/12/2018
Delivery Units,Adults and Communities,Other Agencies - Third Party P,0090129944,JEWISH CARE,"4,516.80",12/12/2018
Delivery Units,Adults and Communities,Other Agencies - Third Party P,0090129945,JEWISH CARE,"4,915.60",12/12/2018
Delivery Units,Adults and Communities,Other Agencies - Third Party P,0090129946,JEWISH CARE,"4,915.60",12/12/2018
Delivery Units,Adults and Communities,Other Agencies - Third Party P,0090129947,JEWISH CARE,"4,516.80",12/12/2018
Delivery Units,Adults and Communities,Other Agencies - Third Party P,0090129948,JEWISH CARE,"4,915.60",12/12/2018
Delivery Units,Adults and Communities,Other Agencies - Third Party P,0090129950,JEWISH CARE,"4,915.60",12/12/2018
Delivery Units,Adults and Communities,Other Agencies - Third Party P,0090129952,JEWISH CARE,"4,516.80",12/12/2018
Delivery Units,Adults and Communities,Other Agencies - Third Party P,0090129954,JEWISH CARE,"4,915.60",12/12/2018
Delivery Units,Adults and Communities,Other Agencies - Third Party P,0090129955,JEWISH CARE,"4,915.60",12/12/2018
Delivery Units,Adults and Communities,Other Agencies - Third Party P,0090130626,JEWISH CARE,"2,415.28",18/12/2018
Delivery Units,Adults and Communities,Other Agencies - Third Party P,0090130627,JEWISH CARE,"4,912.72",18/12/2018
Delivery Units,Adults and Communities,Other Agencies - Third Party P,0090130628,JEWISH CARE,"4,912.72",18/12/2018
Delivery Units,Adults and Communities,Other Agencies - Third Party P,0090130631,JEWISH CARE,"4,912.72",18/12/2018
Delivery Units,Adults and Communities,Other Agencies - Third Party P,0090130632,JEWISH CARE,"4,912.72",18/12/2018
Delivery Units,Adults and Communities,Other Agencies - Third Party P,0090130633,JEWISH CARE,"4,912.72",18/12/2018
Delivery Units,Adults and Communities,Other Agencies - Third Party P,0090130634,JEWISH CARE,"4,912.72",18/12/2018
Delivery Units,Adults and Communities,Other Agencies - Third Party P,0090130635,JEWISH CARE,"4,912.72",18/12/2018
Delivery Units,Adults and Communities,Other Agencies - Third Party P,0090130636,JEWISH CARE,"4,912.72",18/12/2018
Delivery Units,Adults and Communities,Other Agencies - Third Party P,0090130637,JEWISH CARE,"4,912.72",18/12/2018
Delivery Units,Adults and Communities,Other Agencies - Third Party P,0090130638,JEWISH CARE,"4,912.72",18/12/2018
Delivery Units,Adults and Communities,Other Agencies - Third Party P,0090130639,JEWISH CARE,"4,912.72",18/12/2018
Delivery Units,Adults and Communities,Other Agencies - Third Party P,0090130641,JEWISH CARE,"4,912.72",18/12/2018
Delivery Units,Adults and Communities,Other Agencies - Third Party P,0090130642,JEWISH CARE,"6,910.16",18/12/2018
Delivery Units,Adults and Communities,Other Agencies - Third Party P,0090130687,JEWISH CARE,"2,415.28",18/12/2018
Delivery Units,Adults and Communities,Other Agencies - Third Party P,0090130688,JEWISH CARE,"2,455.12",18/12/2018
Delivery Units,Adults and Communities,Other Agencies - Third Party P,0090130689,JEWISH CARE,"-4,910.24",18/12/2018
Delivery Units,Adults and Communities,Other Agencies - Third Party P,0090132070,JEWISH CARE,"1,382.40",21/12/2018
Delivery Units,Adults and Communities,Other Agencies - Third Party P,0090132071,JEWISH CARE,"1,036.80",21/12/2018
Delivery Units,Adults and Communities,Other Agencies - Third Party P,0090132072,JEWISH CARE,"2,459.96",21/12/2018
Delivery Units,Adults and Communities,Other Agencies - Third Party P,0090128134,CLOVELLY HOUSE RESID. HOME LTD,"2,304.00",05/12/2018
Delivery Units,Adults and Communities,Other Agencies - Third Party P,0090128135,CLOVELLY HOUSE RESID. HOME LTD,"2,600.00",05/12/2018
Delivery Units,Adults and Communities,Other Agencies - Third Party P,0090128136,CLOVELLY HOUSE RESID. HOME LTD,"2,304.00",05/12/2018
Delivery Units,Adults and Communities,Other Agencies - Third Party P,0090128140,CLOVELLY HOUSE RESID. HOME LTD,"2,780.00",06/12/2018
Delivery Units,Adults and Communities,Other Agencies - Third Party P,0090128141,CLOVELLY HOUSE RESID. HOME LTD,"2,600.00",05/12/2018
Delivery Units,Adults and Communities,Other Agencies - Third Party P,0090128146,CLOVELLY HOUSE RESID. HOME LTD,"2,600.00",05/12/2018
Delivery Units,Adults and Communities,Other Agencies - Third Party P,0090130976,CLOVELLY HOUSE RESID. HOME LTD,"2,600.00",18/12/2018
Delivery Units,Adults and Communities,Other Agencies - Third Party P,0090130977,CLOVELLY HOUSE RESID. HOME LTD,"2,304.00",18/12/2018
Delivery Units,Adults and Communities,Other Agencies - Third Party P,0090130978,CLOVELLY HOUSE RESID. HOME LTD,"2,780.00",18/12/2018
Delivery Units,Adults and Communities,Other Agencies - Third Party P,0090131072,FINBOND LIMITED,"2,435.71",18/12/2018
Delivery Units,Adults and Communities,Other Agencies - Third Party P,0090131074,FINBOND LIMITED,"3,542.86",18/12/2018
Delivery Units,Adults and Communities,Other Agencies - Third Party P,0090129834,QUANTUM CARE LIMITED,"4,071.43",12/12/2018
Delivery Units,Adults and Communities,Other Agencies - Third Party P,0090130988,QUANTUM CARE LIMITED,"4,207.14",18/12/2018
Delivery Units,Adults and Communities,Other Agencies - Third Party P,0090130481,CATHERINE LODGE,"2,550.86",14/12/2018
Delivery Units,Adults and Communities,Other Agencies - Third Party P,0090130482,CATHERINE LODGE,"2,550.86",14/12/2018
Delivery Units,Adults and Communities,Other Agencies - Third Party P,0090130483,CATHERINE LODGE,"3,520.71",14/12/2018
Delivery Units,Adults and Communities,Other Agencies - Third Party P,0090130484,CATHERINE LODGE,"3,520.71",14/12/2018
Delivery Units,Adults and Communities,Other Agencies - Third Party P,0090130486,CATHERINE LODGE,"3,476.43",14/12/2018
Delivery Units,Adults and Communities,Other Agencies - Third Party P,0090130500,CATHERINE LODGE,"2,468.57",14/12/2018
Delivery Units,Adults and Communities,Other Agencies - Third Party P,0090130501,CATHERINE LODGE,"2,550.86",14/12/2018
Delivery Units,Adults and Communities,Other Agencies - Third Party P,0090130502,CATHERINE LODGE,"2,468.57",14/12/2018
Delivery Units,Adults and Communities,Other Agencies - Third Party P,0090130503,CATHERINE LODGE,"1,398.86",14/12/2018
Delivery Units,Adults and Communities,Other Agencies - Third Party P,0090130504,CATHERINE LODGE,"1,152.00",14/12/2018
Delivery Units,Adults and Communities,Other Agencies - Third Party P,0090132086,CATHERINE LODGE,"2,550.86",21/12/2018
Delivery Units,Adults and Communities,Other Agencies - Third Party P,0090128257,BUPA NURSING HOMES LTD - ARKLEY,"2,167.68",05/12/2018
Delivery Units,Adults and Communities,Other Agencies - Third Party P,0090128270,BUPA NURSING HOMES LTD - ARKLEY,"2,167.68",05/12/2018
Delivery Units,Adults and Communities,Other Agencies - Third Party P,0090129479,BUPA NURSING HOMES LTD - ARKLEY,"2,090.26",10/12/2018
Delivery Units,Adults and Communities,Other Agencies - Third Party P,0090129480,BUPA NURSING HOMES LTD - ARKLEY,"2,167.68",10/12/2018
Delivery Units,Adults and Communities,Other Agencies - Third Party P,0090129519,BUPA NURSING HOMES LTD - ARKLEY,"2,218.04",13/12/2018
Delivery Units,Adults and Communities,Other Agencies - Third Party P,0090129521,BUPA NURSING HOMES LTD - ARKLEY,"2,167.68",13/12/2018
Delivery Units,Adults and Communities,Other Agencies - Third Party P,0090130072,SUNRIDGE HOUSING ASSOCIATION LTD,"2,989.58",13/12/2018
Delivery Units,Adults and Communities,Other Agencies - Third Party P,0090128108,NAZARETH HOUSE,"2,144.00",05/12/2018
Delivery Units,Adults and Communities,Other Agencies - Third Party P,0090128109,NAZARETH HOUSE,"2,304.00",05/12/2018
Delivery Units,Adults and Communities,Other Agencies - Third Party P,0090128110,NAZARETH HOUSE,"2,144.00",05/12/2018
Delivery Units,Adults and Communities,Other Agencies - Third Party P,0090128111,NAZARETH HOUSE,"2,144.00",05/12/2018
Delivery Units,Adults and Communities,Other Agencies - Third Party P,0090128112,NAZARETH HOUSE,"2,144.00",05/12/2018
Delivery Units,Adults and Communities,Other Agencies - Third Party P,0090128113,NAZARETH HOUSE,"2,304.00",05/12/2018
Delivery Units,Adults and Communities,Other Agencies - Third Party P,0090128114,NAZARETH HOUSE,"2,144.00",05/12/2018
Delivery Units,Adults and Communities,Other Agencies - Third Party P,0090128115,NAZARETH HOUSE,"2,144.00",05/12/2018
Delivery Units,Adults and Communities,Other Agencies - Third Party P,0090128116,NAZARETH HOUSE,"2,080.00",05/12/2018
Delivery Units,Adults and Communities,Other Agencies - Third Party P,0090128118,NAZARETH HOUSE,"2,650.40",05/12/2018
Delivery Units,Adults and Communities,Other Agencies - Third Party P,0090128119,NAZARETH HOUSE,"2,144.00",05/12/2018
Delivery Units,Adults and Communities,Other Agencies - Third Party P,0090128120,NAZARETH HOUSE,"2,304.00",05/12/2018
Delivery Units,Adults and Communities,Other Agencies - Third Party P,0090128121,NAZARETH HOUSE,"2,144.00",05/12/2018
Delivery Units,Adults and Communities,Other Agencies - Third Party P,0090128122,NAZARETH HOUSE,"2,304.00",05/12/2018
Delivery Units,Adults and Communities,Other Agencies - Third Party P,0090128123,NAZARETH HOUSE,"2,144.00",05/12/2018
Delivery Units,Adults and Communities,Other Agencies - Third Party P,0090128124,NAZARETH HOUSE,"2,144.00",05/12/2018
Delivery Units,Adults and Communities,Other Agencies - Third Party P,0090128125,NAZARETH HOUSE,"2,144.00",05/12/2018
Delivery Units,Adults and Communities,Other Agencies - Third Party P,0090128152,NAZARETH HOUSE,"2,080.00",05/12/2018
Delivery Units,Adults and Communities,Other Agencies - Third Party P,0090130348,NAZARETH HOUSE,"2,144.00",14/12/2018
Delivery Units,Adults and Communities,Other Agencies - Third Party P,0090130349,NAZARETH HOUSE,"2,304.00",14/12/2018
Delivery Units,Adults and Communities,Other Agencies - Third Party P,0090130350,NAZARETH HOUSE,"2,144.00",14/12/2018
Delivery Units,Adults and Communities,Other Agencies - Third Party P,0090130351,NAZARETH HOUSE,"2,144.00",14/12/2018
Delivery Units,Adults and Communities,Other Agencies - Third Party P,0090130352,NAZARETH HOUSE,"2,144.00",14/12/2018
Delivery Units,Adults and Communities,Other Agencies - Third Party P,0090130353,NAZARETH HOUSE,"2,304.00",14/12/2018
Delivery Units,Adults and Communities,Other Agencies - Third Party P,0090130354,NAZARETH HOUSE,"2,144.00",14/12/2018
Delivery Units,Adults and Communities,Other Agencies - Third Party P,0090130355,NAZARETH HOUSE,"2,144.00",14/12/2018
Delivery Units,Adults and Communities,Other Agencies - Third Party P,0090130357,NAZARETH HOUSE,"2,650.40",14/12/2018
Delivery Units,Adults and Communities,Other Agencies - Third Party P,0090130358,NAZARETH HOUSE,"2,144.00",14/12/2018
Delivery Units,Adults and Communities,Other Agencies - Third Party P,0090130359,NAZARETH HOUSE,"2,304.00",14/12/2018
Delivery Units,Adults and Communities,Other Agencies - Third Party P,0090130360,NAZARETH HOUSE,"2,144.00",14/12/2018
Delivery Units,Adults and Communities,Other Agencies - Third Party P,0090130361,NAZARETH HOUSE,"2,304.00",14/12/2018
Delivery Units,Adults and Communities,Other Agencies - Third Party P,0090130362,NAZARETH HOUSE,"2,144.00",14/12/2018
Delivery Units,Adults and Communities,Other Agencies - Third Party P,0090130363,NAZARETH HOUSE,"2,144.00",14/12/2018
Delivery Units,Adults and Communities,Other Agencies - Third Party P,0090130364,NAZARETH HOUSE,"2,144.00",14/12/2018
Delivery Units,Adults and Communities,Other Agencies - Third Party P,0090130367,NAZARETH HOUSE,"2,080.00",14/12/2018
Delivery Units,Adults and Communities,Other Agencies - Third Party P,0090130368,NAZARETH HOUSE,"2,080.00",14/12/2018
Delivery Units,Adults and Communities,Other Agencies - Third Party P,0090130397,NAZARETH HOUSE,"2,260.00",14/12/2018
Delivery Units,Adults and Communities,Other Agencies - Third Party P,0090130398,NAZARETH HOUSE,"2,211.80",14/12/2018
Delivery Units,Adults and Communities,Other Agencies - Third Party P,0090130399,NAZARETH HOUSE,"2,080.00",14/12/2018
Delivery Units,Adults and Communities,Other Agencies - Third Party P,0090130652,NAZARETH HOUSE,114.28,18/12/2018
Delivery Units,Adults and Communities,Other Agencies - Third Party P,0090130737,NAZARETH HOUSE,576.00,18/12/2018
Delivery Units,Adults and Communities,Other Agencies - Third Party P,0090130738,NAZARETH HOUSE,"2,304.00",18/12/2018
Delivery Units,Adults and Communities,Other Agencies - Third Party P,0090130739,NAZARETH HOUSE,"-1,728.00",18/12/2018
Delivery Units,Adults and Communities,Other Agencies - Third Party P,0090130740,NAZARETH HOUSE,"2,211.80",18/12/2018
Delivery Units,Adults and Communities,Other Agencies - Third Party P,0090130741,NAZARETH HOUSE,78.58,18/12/2018
Delivery Units,Adults and Communities,Other Agencies - Third Party P,0090131816,FRIARY LODGE,"3,321.43",27/12/2018
Delivery Units,Adults and Communities,Other Agencies - Third Party P,0090130050,THE WOODSIDE HOME,"2,144.00",13/12/2018
Delivery Units,Adults and Communities,Other Agencies - Third Party P,0090130051,THE WOODSIDE HOME,"2,304.00",13/12/2018
Delivery Units,Adults and Communities,Other Agencies - Third Party P,0090130052,THE WOODSIDE HOME,"2,144.00",13/12/2018
Delivery Units,Adults and Communities,Other Agencies - Third Party P,0090130054,THE WOODSIDE HOME,"2,144.00",13/12/2018
Delivery Units,Adults and Communities,Other Agencies - Third Party P,0090130055,THE WOODSIDE HOME,"2,304.00",13/12/2018
Delivery Units,Adults and Communities,Other Agencies - Third Party P,0090130056,THE WOODSIDE HOME,"2,144.00",13/12/2018
Delivery Units,Adults and Communities,Other Agencies - Third Party P,0090129572,WESTMINSTER HEALTH CARE LTD,"3,621.21",13/12/2018
Delivery Units,Adults and Communities,Other Agencies - Third Party P,0090128147,METHODIST HOMES FOR THE AGED,"2,631.76",05/12/2018
Delivery Units,Adults and Communities,Other Agencies - Third Party P,0090130369,SYDMAR LODGE,"2,469.42",14/12/2018
Delivery Units,Adults and Communities,Other Agencies - Third Party P,0090130370,SYDMAR LODGE,"2,506.26",14/12/2018
Delivery Units,Adults and Communities,Other Agencies - Third Party P,0090130371,SYDMAR LODGE,"2,506.26",14/12/2018
Delivery Units,Adults and Communities,Other Agencies - Third Party P,0090130372,SYDMAR LODGE,"2,506.26",14/12/2018
Delivery Units,Adults and Communities,Other Agencies - Third Party P,0090131118,THE LIMES RESIDENTIAL HOME,"2,550.86",20/12/2018
Delivery Units,Adults and Communities,Other Agencies - Third Party P,0090131119,THE LIMES RESIDENTIAL HOME,"2,373.71",20/12/2018
Delivery Units,Adults and Communities,Other Agencies - Third Party P,0090131120,THE LIMES RESIDENTIAL HOME,"2,550.86",20/12/2018
Delivery Units,Adults and Communities,Other Agencies - Third Party P,0090131121,THE LIMES RESIDENTIAL HOME,"2,550.86",20/12/2018
Delivery Units,Adults and Communities,Other Agencies - Third Party P,0090131122,THE LIMES RESIDENTIAL HOME,"2,657.14",20/12/2018
Delivery Units,Adults and Communities,Other Agencies - Third Party P,0090131124,THE LIMES RESIDENTIAL HOME,"2,550.86",20/12/2018
Delivery Units,Adults and Communities,Other Agencies - Third Party P,0090131125,THE LIMES RESIDENTIAL HOME,"2,550.86",20/12/2018
Delivery Units,Adults and Communities,Other Agencies - Third Party P,0090131126,THE LIMES RESIDENTIAL HOME,"2,550.86",20/12/2018
Delivery Units,Adults and Communities,Other Agencies - Third Party P,0090131127,THE LIMES RESIDENTIAL HOME,"2,550.86",20/12/2018
Delivery Units,Adults and Communities,Other Agencies - Third Party P,0090131128,THE LIMES RESIDENTIAL HOME,"2,373.71",20/12/2018
Delivery Units,Adults and Communities,Other Agencies - Third Party P,0090131129,THE LIMES RESIDENTIAL HOME,"2,550.86",20/12/2018
Delivery Units,Adults and Communities,Other Agencies - Third Party P,0090131131,THE LIMES RESIDENTIAL HOME,"2,462.29",20/12/2018
Delivery Units,Adults and Communities,Other Agencies - Third Party P,0090131132,THE LIMES RESIDENTIAL HOME,"2,657.14",20/12/2018
Delivery Units,Adults and Communities,Other Agencies - Third Party P,0090128082,SPRINGDENE,"3,214.29",04/12/2018
Delivery Units,Adults and Communities,Other Agencies - Third Party P,0090130447,SCIMITAR CARE HOTELS PLC,"4,207.14",27/12/2018
Delivery Units,Adults and Communities,Other Agencies - Third Party P,0090130448,SCIMITAR CARE HOTELS PLC,"3,421.07",27/12/2018
Delivery Units,Adults and Communities,Other Agencies - Third Party P,0090130449,SCIMITAR CARE HOTELS PLC,"3,985.71",27/12/2018
Delivery Units,Adults and Communities,Other Agencies - Third Party P,0080021462,FREMANTLE TRUST,"1,862.11",06/12/2018
Delivery Units,Adults and Communities,Other Agencies - Third Party P,0090130095,FREMANTLE TRUST,"2,096.00",14/12/2018
Delivery Units,Adults and Communities,Other Agencies - Third Party P,0090130096,FREMANTLE TRUST,"2,096.00",14/12/2018
Delivery Units,Adults and Communities,Other Agencies - Third Party P,0090130097,FREMANTLE TRUST,"2,096.00",14/12/2018
Delivery Units,Adults and Communities,Other Agencies - Third Party P,0090130099,FREMANTLE TRUST,"2,096.00",14/12/2018
Delivery Units,Adults and Communities,Other Agencies - Third Party P,0090130100,FREMANTLE TRUST,"2,096.00",14/12/2018
Delivery Units,Adults and Communities,Other Agencies - Third Party P,0090130101,FREMANTLE TRUST,"2,096.00",14/12/2018
Delivery Units,Adults and Communities,Other Agencies - Third Party P,0090130102,FREMANTLE TRUST,"2,096.00",14/12/2018
Delivery Units,Adults and Communities,Other Agencies - Third Party P,0090130103,FREMANTLE TRUST,"2,096.00",14/12/2018
Delivery Units,Adults and Communities,Other Agencies - Third Party P,0090130105,FREMANTLE TRUST,"2,096.00",14/12/2018
Delivery Units,Adults and Communities,Other Agencies - Third Party P,0090130106,FREMANTLE TRUST,"2,096.00",14/12/2018
Delivery Units,Adults and Communities,Other Agencies - Third Party P,0090130107,FREMANTLE TRUST,"2,096.00",14/12/2018
Delivery Units,Adults and Communities,Other Agencies - Third Party P,0090130109,FREMANTLE TRUST,"2,096.00",14/12/2018
Delivery Units,Adults and Communities,Other Agencies - Third Party P,0090130110,FREMANTLE TRUST,"2,096.00",14/12/2018
Delivery Units,Adults and Communities,Other Agencies - Third Party P,0090130111,FREMANTLE TRUST,"2,096.00",14/12/2018
Delivery Units,Adults and Communities,Other Agencies - Third Party P,0090130112,FREMANTLE TRUST,"2,096.00",14/12/2018
Delivery Units,Adults and Communities,Other Agencies - Third Party P,0090130113,FREMANTLE TRUST,"2,096.00",14/12/2018
Delivery Units,Adults and Communities,Other Agencies - Third Party P,0090130114,FREMANTLE TRUST,"2,284.00",14/12/2018
Delivery Units,Adults and Communities,Other Agencies - Third Party P,0090130116,FREMANTLE TRUST,"2,284.00",14/12/2018
Delivery Units,Adults and Communities,Other Agencies - Third Party P,0090130118,FREMANTLE TRUST,"2,096.00",14/12/2018
Delivery Units,Adults and Communities,Other Agencies - Third Party P,0090130119,FREMANTLE TRUST,"2,096.00",14/12/2018
Delivery Units,Adults and Communities,Other Agencies - Third Party P,0090130120,FREMANTLE TRUST,"2,284.00",14/12/2018
Delivery Units,Adults and Communities,Other Agencies - Third Party P,0090130122,FREMANTLE TRUST,"2,096.00",14/12/2018
Delivery Units,Adults and Communities,Other Agencies - Third Party P,0090130123,FREMANTLE TRUST,598.86,14/12/2018
Delivery Units,Adults and Communities,Other Agencies - Third Party P,0090130124,FREMANTLE TRUST,"2,096.00",14/12/2018
Delivery Units,Adults and Communities,Other Agencies - Third Party P,0090130125,FREMANTLE TRUST,"2,284.00",14/12/2018
Delivery Units,Adults and Communities,Other Agencies - Third Party P,0090130126,FREMANTLE TRUST,"2,284.00",14/12/2018
Delivery Units,Adults and Communities,Other Agencies - Third Party P,0090130127,FREMANTLE TRUST,"2,096.00",14/12/2018
Delivery Units,Adults and Communities,Other Agencies - Third Party P,0090130128,FREMANTLE TRUST,"2,284.00",14/12/2018
Delivery Units,Adults and Communities,Other Agencies - Third Party P,0090130129,FREMANTLE TRUST,"2,096.00",14/12/2018
Delivery Units,Adults and Communities,Other Agencies - Third Party P,0090130130,FREMANTLE TRUST,"2,284.00",14/12/2018
Delivery Units,Adults and Communities,Other Agencies - Third Party P,0090130131,FREMANTLE TRUST,"2,284.00",14/12/2018
Delivery Units,Adults and Communities,Other Agencies - Third Party P,0090130135,FREMANTLE TRUST,"2,096.00",14/12/2018
Delivery Units,Adults and Communities,Other Agencies - Third Party P,0090130136,FREMANTLE TRUST,"2,284.00",14/12/2018
Delivery Units,Adults and Communities,Other Agencies - Third Party P,0090130137,FREMANTLE TRUST,"2,284.00",14/12/2018
Delivery Units,Adults and Communities,Other Agencies - Third Party P,0090130139,FREMANTLE TRUST,"2,096.00",14/12/2018
Delivery Units,Adults and Communities,Other Agencies - Third Party P,0090130140,FREMANTLE TRUST,"2,096.00",14/12/2018
Delivery Units,Adults and Communities,Other Agencies - Third Party P,0090130141,FREMANTLE TRUST,"2,096.00",14/12/2018
Delivery Units,Adults and Communities,Other Agencies - Third Party P,0090130142,FREMANTLE TRUST,"2,284.00",14/12/2018
Delivery Units,Adults and Communities,Other Agencies - Third Party P,0090130143,FREMANTLE TRUST,"2,284.00",14/12/2018
Delivery Units,Adults and Communities,Other Agencies - Third Party P,0090130145,FREMANTLE TRUST,"2,284.00",14/12/2018
Delivery Units,Adults and Communities,Other Agencies - Third Party P,0090130146,FREMANTLE TRUST,"2,096.00",14/12/2018
Delivery Units,Adults and Communities,Other Agencies - Third Party P,0090130147,FREMANTLE TRUST,"2,096.00",14/12/2018
Delivery Units,Adults and Communities,Other Agencies - Third Party P,0090130149,FREMANTLE TRUST,"2,096.00",14/12/2018
Delivery Units,Adults and Communities,Other Agencies - Third Party P,0090130150,FREMANTLE TRUST,"2,284.00",14/12/2018
Delivery Units,Adults and Communities,Other Agencies - Third Party P,0090130151,FREMANTLE TRUST,"2,284.00",14/12/2018
Delivery Units,Adults and Communities,Other Agencies - Third Party P,0090130152,FREMANTLE TRUST,"2,284.00",14/12/2018
Delivery Units,Adults and Communities,Other Agencies - Third Party P,0090130155,FREMANTLE TRUST,"2,096.00",14/12/2018
Delivery Units,Adults and Communities,Other Agencies - Third Party P,0090130156,FREMANTLE TRUST,"2,096.00",14/12/2018
Delivery Units,Adults and Communities,Other Agencies - Third Party P,0090130158,FREMANTLE TRUST,"2,096.00",14/12/2018
Delivery Units,Adults and Communities,Other Agencies - Third Party P,0090130159,FREMANTLE TRUST,"2,284.00",14/12/2018
Delivery Units,Adults and Communities,Other Agencies - Third Party P,0090130160,FREMANTLE TRUST,"2,096.00",14/12/2018
Delivery Units,Adults and Communities,Other Agencies - Third Party P,0090130163,FREMANTLE TRUST,"2,284.00",14/12/2018
Delivery Units,Adults and Communities,Other Agencies - Third Party P,0090130164,FREMANTLE TRUST,"2,284.00",14/12/2018
Delivery Units,Adults and Communities,Other Agencies - Third Party P,0090130166,FREMANTLE TRUST,"2,096.00",14/12/2018
Delivery Units,Adults and Communities,Other Agencies - Third Party P,0090130167,FREMANTLE TRUST,"2,284.00",14/12/2018
Delivery Units,Adults and Communities,Other Agencies - Third Party P,0090130168,FREMANTLE TRUST,"2,284.00",14/12/2018
Delivery Units,Adults and Communities,Other Agencies - Third Party P,0090130169,FREMANTLE TRUST,"2,096.00",14/12/2018
Delivery Units,Adults and Communities,Other Agencies - Third Party P,0090130172,FREMANTLE TRUST,"2,096.00",14/12/2018
Delivery Units,Adults and Communities,Other Agencies - Third Party P,0090130174,FREMANTLE TRUST,"2,284.00",14/12/2018
Delivery Units,Adults and Communities,Other Agencies - Third Party P,0090130175,FREMANTLE TRUST,"2,096.00",14/12/2018
Delivery Units,Adults and Communities,Other Agencies - Third Party P,0090130176,FREMANTLE TRUST,"2,284.00",14/12/2018
Delivery Units,Adults and Communities,Other Agencies - Third Party P,0090130177,FREMANTLE TRUST,"2,096.00",14/12/2018
Delivery Units,Adults and Communities,Other Agencies - Third Party P,0090130178,FREMANTLE TRUST,"2,284.00",14/12/2018
Delivery Units,Adults and Communities,Other Agencies - Third Party P,0090130179,FREMANTLE TRUST,"2,284.00",14/12/2018
Delivery Units,Adults and Communities,Other Agencies - Third Party P,0090130180,FREMANTLE TRUST,"2,284.00",14/12/2018
Delivery Units,Adults and Communities,Other Agencies - Third Party P,0090130181,FREMANTLE TRUST,"2,284.00",14/12/2018
Delivery Units,Adults and Communities,Other Agencies - Third Party P,0090130182,FREMANTLE TRUST,"2,284.00",14/12/2018
Delivery Units,Adults and Communities,Other Agencies - Third Party P,0090130183,FREMANTLE TRUST,"2,284.00",14/12/2018
Delivery Units,Adults and Communities,Other Agencies - Third Party P,0090130184,FREMANTLE TRUST,"2,284.00",14/12/2018
Delivery Units,Adults and Communities,Other Agencies - Third Party P,0090130185,FREMANTLE TRUST,"2,096.00",14/12/2018
Delivery Units,Adults and Communities,Other Agencies - Third Party P,0090130186,FREMANTLE TRUST,"2,284.00",14/12/2018
Delivery Units,Adults and Communities,Other Agencies - Third Party P,0090130187,FREMANTLE TRUST,"2,284.00",14/12/2018
Delivery Units,Adults and Communities,Other Agencies - Third Party P,0090130189,FREMANTLE TRUST,"2,096.00",14/12/2018
Delivery Units,Adults and Communities,Other Agencies - Third Party P,0090130190,FREMANTLE TRUST,"18,110.86",14/12/2018
Delivery Units,Adults and Communities,Other Agencies - Third Party P,0090130191,FREMANTLE TRUST,"4,192.00",14/12/2018
Delivery Units,Adults and Communities,Other Agencies - Third Party P,0090130192,FREMANTLE TRUST,"5,782.15",14/12/2018
Delivery Units,Adults and Communities,Other Agencies - Third Party P,0090129473,BUPA CARE HOMES,"2,505.51",12/12/2018
Delivery Units,Adults and Communities,Other Agencies - Third Party P,0090129474,BUPA CARE HOMES,"2,367.81",12/12/2018
Delivery Units,Adults and Communities,Other Agencies - Third Party P,0090130477,BUPA CARE HOMES,"2,546.74",14/12/2018
Delivery Units,Adults and Communities,Other Agencies - Third Party P,0090130727,ANASTASIA LODGE,"2,800.00",18/12/2018
Delivery Units,Adults and Communities,Other Agencies - Third Party P,0090131110,HILTON LODGE LTD.,974.28,18/12/2018
Delivery Units,Adults and Communities,Other Agencies - Third Party P,0090131111,HILTON LODGE LTD.,"5,760.00",18/12/2018
Delivery Units,Adults and Communities,Other Agencies - Third Party P,0090131112,HILTON LODGE LTD.,"5,600.00",18/12/2018
Delivery Units,Adults and Communities,Other Agencies - Third Party P,0080021451,FOUR SEASONS HEALTH CARE,"4,498.90",06/12/2018
Delivery Units,Adults and Communities,Other Agencies - Third Party P,0080020843,VENTRY RESIDENTIAL CARE LTD,"2,922.74",06/12/2018
Delivery Units,Adults and Communities,Other Agencies - Third Party P,0090129820,VENTRY RESIDENTIAL CARE LTD,"2,468.57",13/12/2018
Delivery Units,Adults and Communities,Other Agencies - Third Party P,0090128247,LEWIS.W.HAMMERSON MEMORIAL HOME,"2,359.07",05/12/2018
Delivery Units,Adults and Communities,Other Agencies - Third Party P,0090128249,LEWIS.W.HAMMERSON MEMORIAL HOME,"2,359.07",05/12/2018
Delivery Units,Adults and Communities,Other Agencies - Third Party P,0090131158,B & M CARE,"2,249.45",18/12/2018
Delivery Units,Adults and Communities,Other Agencies - Third Party P,0090129491,SAGE NURSING HOME,"2,297.14",10/12/2018
Delivery Units,Adults and Communities,Other Agencies - Third Party P,0090129493,SAGE NURSING HOME,"2,571.43",10/12/2018
Delivery Units,Adults and Communities,Other Agencies - Third Party P,0090130622,SAGE NURSING HOME,"2,571.43",18/12/2018
Delivery Units,Adults and Communities,Other Agencies - Third Party P,0080021947,NAZARETH HOUSE,"13,569.26",19/12/2018
Delivery Units,Adults and Communities,Other Agencies - Third Party P,0090128126,NAZARETH HOUSE,"2,080.00",05/12/2018
Delivery Units,Adults and Communities,Other Agencies - Third Party P,0090128127,NAZARETH HOUSE,"2,080.00",05/12/2018
Delivery Units,Adults and Communities,Other Agencies - Third Party P,0090129497,NAZARETH HOUSE,"2,144.91",10/12/2018
Delivery Units,Adults and Communities,Other Agencies - Third Party P,0090130365,NAZARETH HOUSE,"2,080.00",14/12/2018
Delivery Units,Adults and Communities,Other Agencies - Third Party P,0090130366,NAZARETH HOUSE,"2,080.00",14/12/2018
Delivery Units,Adults and Communities,Other Agencies - Third Party P,0090131849,ROLAND RESIDENTIAL CARE HOMES LTD,"3,242.88",20/12/2018
Delivery Units,Adults and Communities,Other Agencies - Third Party P,0090130436,R.M.B.I,"2,249.36",14/12/2018
Delivery Units,Adults and Communities,Other Agencies - Third Party P,0090130991,TENTERDEN HOUSE,"3,957.50",18/12/2018
Delivery Units,Adults and Communities,Other Agencies - Third Party P,0090128072,SWANBOROUGH HOUSE,"3,722.44",04/12/2018
Delivery Units,Adults and Communities,Other Agencies - Third Party P,0090130684,SWANBOROUGH HOUSE,"4,121.27",18/12/2018
Delivery Units,Adults and Communities,Other Agencies - Third Party P,0090130736,SWANBOROUGH HOUSE,"2,924.77",18/12/2018
Delivery Units,Adults and Communities,Other Agencies - Third Party P,0090130728,AUTUMN GARDENS,"2,880.00",18/12/2018
Delivery Units,Adults and Communities,Other Agencies - Third Party P,0090130731,AUTUMN GARDENS,"3,160.00",18/12/2018
Delivery Units,Adults and Communities,Other Agencies - Third Party P,0090128132,THE CHRISTIAN CARE TRUST,"2,304.00",05/12/2018
Delivery Units,Adults and Communities,Other Agencies - Third Party P,0090131075,THE CHRISTIAN CARE TRUST,"2,304.00",18/12/2018
Delivery Units,Adults and Communities,Other Agencies - Third Party P,0090131100,THE CHRISTIAN CARE TRUST,"2,304.00",18/12/2018
Delivery Units,Adults and Communities,Other Agencies - Third Party P,0090128080,SPRINGVIEW,"3,100.00",04/12/2018
Delivery Units,Adults and Communities,Other Agencies - Third Party P,0090128081,SPRINGVIEW,"2,700.00",04/12/2018
Delivery Units,Adults and Communities,Other Agencies - Third Party P,0090128228,ABBEY RAVENSCROFT PARK NURSING HOME,"6,000.00",05/12/2018
Delivery Units,Adults and Communities,Other Agencies - Third Party P,0090128229,ABBEY RAVENSCROFT PARK NURSING HOME,"3,214.29",05/12/2018
Delivery Units,Adults and Communities,Other Agencies - Third Party P,0090128230,ABBEY RAVENSCROFT PARK NURSING HOME,"3,321.43",05/12/2018
Delivery Units,Adults and Communities,Other Agencies - Third Party P,0090128231,ABBEY RAVENSCROFT PARK NURSING HOME,"3,214.29",05/12/2018
Delivery Units,Adults and Communities,Other Agencies - Third Party P,0090128232,ABBEY RAVENSCROFT PARK NURSING HOME,"3,321.43",05/12/2018
Delivery Units,Adults and Communities,Other Agencies - Third Party P,0090128233,ABBEY RAVENSCROFT PARK NURSING HOME,"3,214.29",05/12/2018
Delivery Units,Adults and Communities,Other Agencies - Third Party P,0090128234,ABBEY RAVENSCROFT PARK NURSING HOME,"3,321.43",05/12/2018
Delivery Units,Adults and Communities,Other Agencies - Third Party P,0090128235,ABBEY RAVENSCROFT PARK NURSING HOME,"3,000.00",05/12/2018
Delivery Units,Adults and Communities,Other Agencies - Third Party P,0090128236,ABBEY RAVENSCROFT PARK NURSING HOME,"3,321.43",05/12/2018
Delivery Units,Adults and Communities,Other Agencies - Third Party P,0090128237,ABBEY RAVENSCROFT PARK NURSING HOME,"3,214.29",05/12/2018
Delivery Units,Adults and Communities,Other Agencies - Third Party P,0090128238,ABBEY RAVENSCROFT PARK NURSING HOME,"3,321.43",05/12/2018
Delivery Units,Adults and Communities,Other Agencies - Third Party P,0090128239,ABBEY RAVENSCROFT PARK NURSING HOME,"3,214.29",05/12/2018
Delivery Units,Adults and Communities,Other Agencies - Third Party P,0090128240,ABBEY RAVENSCROFT PARK NURSING HOME,"3,321.43",05/12/2018
Delivery Units,Adults and Communities,Other Agencies - Third Party P,0090128241,ABBEY RAVENSCROFT PARK NURSING HOME,"3,321.43",05/12/2018
Delivery Units,Adults and Communities,Other Agencies - Third Party P,0090128242,ABBEY RAVENSCROFT PARK NURSING HOME,"3,321.43",05/12/2018
Delivery Units,Adults and Communities,Other Agencies - Third Party P,0090128244,ABBEY RAVENSCROFT PARK NURSING HOME,"3,321.43",05/12/2018
Delivery Units,Adults and Communities,Other Agencies - Third Party P,0090129609,CARLTON COURT (TLC GROUP),-145.13,11/12/2018
Delivery Units,Adults and Communities,Other Agencies - Third Party P,0090131090,CARLTON COURT (TLC GROUP),"-2,249.45",18/12/2018
Delivery Units,Adults and Communities,Other Agencies - Third Party P,0090131141,CARLTON COURT (TLC GROUP),"2,249.45",18/12/2018
Delivery Units,Adults and Communities,Other Agencies - Third Party P,0090131142,CARLTON COURT (TLC GROUP),"2,249.45",18/12/2018
Delivery Units,Adults and Communities,Other Agencies - Third Party P,0090131173,ASHTON LODGE CARE CENTRE,"3,506.72",18/12/2018
Delivery Units,Adults and Communities,Other Agencies - Third Party P,0090131825,ASHTON LODGE CARE CENTRE,"5,910.64",20/12/2018
Delivery Units,Adults and Communities,Other Agencies - Third Party P,0090130069,LIVABILITY,"3,180.00",13/12/2018
Delivery Units,Adults and Communities,Other Agencies - Third Party P,0090130455,BIRCHWOOD GRANGE CARE HOME,"2,657.14",14/12/2018
Delivery Units,Adults and Communities,Other Agencies - Third Party P,0090131298,MADELAYNE COURT,"2,216.41",19/12/2018
Delivery Units,Adults and Communities,Other Agencies - Third Party P,0090128154,Z & M CARE LTD,"2,600.00",05/12/2018
Delivery Units,Adults and Communities,Other Agencies - Third Party P,0090129833,Z & M CARE LTD,"2,600.00",12/12/2018
Delivery Units,Adults and Communities,Other Agencies - Third Party P,0090130986,THE RED HOUSE,"2,094.52",18/12/2018
Delivery Units,Adults and Communities,Other Agencies - Third Party P,0090131159,KARUNA MANOR,"4,114.14",18/12/2018
Delivery Units,Adults and Communities,Other Agencies - Third Party P,0090131160,KARUNA MANOR,"4,207.14",18/12/2018
Delivery Units,Adults and Communities,Other Agencies - Third Party P,0090131162,KARUNA MANOR,"3,985.71",18/12/2018
Delivery Units,Adults and Communities,Other Agencies - Third Party P,0090129475,ALEXANDRA HOUSE (RUNWOOD HOMES),"2,189.70",10/12/2018
Delivery Units,Adults and Communities,Other Agencies - Third Party P,0090129843,THE WINDMILL CARE HOME,"1,872.40",12/12/2018
Delivery Units,Adults and Communities,Other Agencies - Third Party P,0090130457,SONNET CARE HOMES (ESSEX) LTD,"4,871.43",27/12/2018
Delivery Units,Adults and Communities,Other Agencies - Third Party P,0090129574,GCH (HERTFORDSHIRE) LTD T/A,"2,414.68",11/12/2018
Delivery Units,Adults and Communities,Other Agencies - Third Party P,0090129575,GCH (HERTFORDSHIRE) LTD T/A,"2,356.00",11/12/2018
Delivery Units,Adults and Communities,Other Agencies - Third Party P,0090129821,GCH (NORTH LONDON) T/A THE TUDORS,"2,300.00",12/12/2018
Delivery Units,Adults and Communities,Other Agencies - Third Party P,0090129822,GCH (NORTH LONDON) T/A THE TUDORS,"2,300.00",12/12/2018
Delivery Units,Adults and Communities,Other Agencies - Third Party P,0090129823,GCH (NORTH LONDON) T/A THE TUDORS,"2,300.00",12/12/2018
Delivery Units,Adults and Communities,Other Agencies - Third Party P,0090128074,WILTON HOUSE LTD,"2,536.46",04/12/2018
Delivery Units,Adults and Communities,Other Agencies - Third Party P,0090128075,WILTON HOUSE LTD,"2,527.24",04/12/2018
Delivery Units,Adults and Communities,Other Agencies - Third Party P,0090130077,WILTON HOUSE LTD,"2,611.48",13/12/2018
Delivery Units,Adults and Communities,Other Agencies - Third Party P,0090130078,WILTON HOUSE LTD,"2,621.01",13/12/2018
Delivery Units,Adults and Communities,Other Agencies - Third Party P,0090132055,B & M CARE (THE RADLEY CARE HOME),"2,373.71",21/12/2018
Delivery Units,Adults and Communities,Other Agencies - Third Party P,0090132091,B & M CARE (THE RADLEY CARE HOME),"2,373.71",21/12/2018
Delivery Units,Adults and Communities,Other Agencies - Third Party P,0090132092,B & M CARE (THE RADLEY CARE HOME),"2,297.14",21/12/2018
Delivery Units,Adults and Communities,Other Agencies - Third Party P,0090121426,SOUTH COAST CARE HOMES LTD,"2,568.57",05/12/2018
Delivery Units,Adults and Communities,Direct Transfer Payments to So,0080010459,HOUSING 21 (BARNET),396.29,06/12/2018
Delivery Units,Adults and Communities,Direct Transfer Payments to So,0090129218,WIRECARD - ADULT SERVICES,480.80,10/12/2018
Delivery Units,Adults and Communities,Direct Transfer Payments to So,0090129247,WIRECARD - ADULT SERVICES,"10,584.00",10/12/2018
Delivery Units,Adults and Communities,Direct Transfer Payments to So,0090129261,WIRECARD - ADULT SERVICES,280.00,10/12/2018
Delivery Units,Adults and Communities,Direct Transfer Payments to So,0090129263,WIRECARD - ADULT SERVICES,462.00,10/12/2018
Delivery Units,Adults and Communities,Direct Transfer Payments to So,0090129130,REDACTED - PERSONAL DATA,"2,931.20",10/12/2018
Delivery Units,Adults and Communities,Direct Transfer Payments to So,0090129003,REDACTED - PERSONAL DATA,"3,834.44",10/12/2018
Delivery Units,Adults and Communities,Direct Transfer Payments to So,0090128588,REDACTED - PERSONAL DATA,240.00,10/12/2018
Delivery Units,Adults and Communities,Direct Transfer Payments to So,0090129023,REDACTED - PERSONAL DATA,295.68,10/12/2018
Delivery Units,Adults and Communities,Direct Transfer Payments to So,0090129054,REDACTED - PERSONAL DATA,"6,572.64",10/12/2018
Delivery Units,Adults and Communities,Direct Transfer Payments to So,0090128601,REDACTED - PERSONAL DATA,961.60,10/12/2018
Delivery Units,Adults and Communities,Direct Transfer Payments to So,0090128641,REDACTED - PERSONAL DATA,144.24,10/12/2018
Delivery Units,Adults and Communities,Direct Transfer Payments to So,0090128396,REDACTED - PERSONAL DATA,"1,766.96",10/12/2018
Delivery Units,Adults and Communities,Direct Transfer Payments to So,0090128402,REDACTED - PERSONAL DATA,"1,730.88",10/12/2018
Delivery Units,Adults and Communities,Direct Transfer Payments to So,0090128725,REDACTED - PERSONAL DATA,"1,185.32",10/12/2018
Delivery Units,Adults and Communities,Direct Transfer Payments to So,0090128763,REDACTED - PERSONAL DATA,420.72,10/12/2018
Delivery Units,Adults and Communities,Direct Transfer Payments to So,0090128489,REDACTED - PERSONAL DATA,568.16,10/12/2018
Delivery Units,Adults and Communities,Direct Transfer Payments to So,0090128680,REDACTED - PERSONAL DATA,589.00,10/12/2018
Delivery Units,Adults and Communities,Direct Transfer Payments to So,0090129270,REDACTED - PERSONAL DATA,397.40,10/12/2018
Delivery Units,Adults and Communities,Direct Transfer Payments to So,0090129001,REDACTED - PERSONAL DATA,781.32,10/12/2018
Delivery Units,Adults and Communities,Direct Transfer Payments to So,0090128878,REDACTED - PERSONAL DATA,889.48,10/12/2018
Delivery Units,Adults and Communities,Direct Transfer Payments to So,0090128693,REDACTED - PERSONAL DATA,456.76,10/12/2018
Delivery Units,Adults and Communities,Direct Transfer Payments to So,0090129067,REDACTED - PERSONAL DATA,899.36,10/12/2018
Delivery Units,Adults and Communities,Direct Transfer Payments to So,0090128706,REDACTED - PERSONAL DATA,925.40,10/12/2018
Delivery Units,Adults and Communities,Direct Transfer Payments to So,0090129614,REDACTED - PERSONAL DATA,"2,338.63",11/12/2018
Delivery Units,Adults and Communities,Direct Transfer Payments to So,0090128437,REDACTED - PERSONAL DATA,"2,005.04",10/12/2018
Delivery Units,Adults and Communities,Direct Transfer Payments to So,0090129070,REDACTED - PERSONAL DATA,913.52,10/12/2018
Delivery Units,Adults and Communities,Direct Transfer Payments to So,0090128502,REDACTED - PERSONAL DATA,"1,143.16",10/12/2018
Delivery Units,Adults and Communities,Direct Transfer Payments to So,0090128709,REDACTED - PERSONAL DATA,502.40,10/12/2018
Delivery Units,Adults and Communities,Direct Transfer Payments to So,0090128494,REDACTED - PERSONAL DATA,801.00,10/12/2018
Delivery Units,Adults and Communities,Direct Transfer Payments to So,0090132052,REDACTED - PERSONAL DATA,948.64,21/12/2018
Delivery Units,Adults and Communities,Direct Transfer Payments to So,0090129145,REDACTED - PERSONAL DATA,"2,933.80",10/12/2018
Delivery Units,Adults and Communities,Fees and Charges,0090129160,REDACTED - PERSONAL DATA,-157.16,10/12/2018
Delivery Units,Adults and Communities,Direct Transfer Payments to So,0090128698,REDACTED - PERSONAL DATA,"1,238.92",10/12/2018
Delivery Units,Adults and Communities,Direct Transfer Payments to So,0090128738,REDACTED - PERSONAL DATA,"1,545.48",10/12/2018
Delivery Units,Adults and Communities,Direct Transfer Payments to So,0090128499,REDACTED - PERSONAL DATA,"1,525.44",10/12/2018
Delivery Units,Adults and Communities,Direct Transfer Payments to So,0090128621,REDACTED - PERSONAL DATA,"1,000.00",10/12/2018
Delivery Units,Adults and Communities,Direct Transfer Payments to So,0090128563,REDACTED - PERSONAL DATA,338.64,10/12/2018
Delivery Units,Adults and Communities,Direct Transfer Payments to So,0090128806,REDACTED - PERSONAL DATA,"1,260.00",10/12/2018
Delivery Units,Adults and Communities,Fees and Charges,0090129265,REDACTED - PERSONAL DATA,-387.20,10/12/2018
Delivery Units,Adults and Communities,Direct Transfer Payments to So,0090129138,REDACTED - PERSONAL DATA,360.00,10/12/2018
Delivery Units,Adults and Communities,Direct Transfer Payments to So,0090128517,REDACTED - PERSONAL DATA,770.40,10/12/2018
Delivery Units,Adults and Communities,Direct Transfer Payments to So,0090129146,REDACTED - PERSONAL DATA,687.12,10/12/2018
Delivery Units,Adults and Communities,Direct Transfer Payments to So,0090128828,REDACTED - PERSONAL DATA,926.68,10/12/2018
Delivery Units,Adults and Communities,Direct Transfer Payments to So,0090128808,REDACTED - PERSONAL DATA,336.56,10/12/2018
Delivery Units,Adults and Communities,Direct Transfer Payments to So,0090128506,REDACTED - PERSONAL DATA,975.36,10/12/2018
Delivery Units,Adults and Communities,Direct Transfer Payments to So,0090128866,REDACTED - PERSONAL DATA,800.00,10/12/2018
Delivery Units,Adults and Communities,Direct Transfer Payments to So,0090129232,REDACTED - PERSONAL DATA,"1,514.52",10/12/2018
Delivery Units,Adults and Communities,Direct Transfer Payments to So,0090132048,REDACTED - PERSONAL DATA,"1,775.28",21/12/2018
Delivery Units,Adults and Communities,Direct Transfer Payments to So,0090128746,REDACTED - PERSONAL DATA,"1,312.64",10/12/2018
Delivery Units,Adults and Communities,Direct Transfer Payments to So,0090129620,REDACTED - PERSONAL DATA,"4,997.51",11/12/2018
Delivery Units,Adults and Communities,Fees and Charges,0090125346,REDACTED - PERSONAL DATA,-26.48,10/12/2018
Delivery Units,Adults and Communities,Fees and Charges,0090129163,REDACTED - PERSONAL DATA,-82.00,10/12/2018
Delivery Units,Adults and Communities,Direct Transfer Payments to So,0090128553,REDACTED - PERSONAL DATA,480.80,10/12/2018
Delivery Units,Adults and Communities,Fees and Charges,0090130565,REDACTED - PERSONAL DATA,282.40,18/12/2018
Delivery Units,Adults and Communities,Direct Transfer Payments to So,0090129237,REDACTED - PERSONAL DATA,"1,104.00",10/12/2018
Delivery Units,Adults and Communities,Fees and Charges,0090127599,REDACTED - PERSONAL DATA,566.40,12/12/2018
Delivery Units,Adults and Communities,Direct Transfer Payments to So,0090128811,REDACTED - PERSONAL DATA,451.92,10/12/2018
Delivery Units,Adults and Communities,Direct Transfer Payments to So,0090128797,REDACTED - PERSONAL DATA,649.08,10/12/2018
Delivery Units,Adults and Communities,Fees and Charges,0090125340,REDACTED - PERSONAL DATA,-38.85,10/12/2018
Delivery Units,Adults and Communities,Direct Transfer Payments to So,0090128776,REDACTED - PERSONAL DATA,"1,500.00",10/12/2018
Delivery Units,Adults and Communities,Direct Transfer Payments to So,0090128510,REDACTED - PERSONAL DATA,348.00,10/12/2018
Delivery Units,Adults and Communities,Direct Transfer Payments to So,0090128777,REDACTED - PERSONAL DATA,547.08,10/12/2018
Delivery Units,Adults and Communities,Direct Transfer Payments to So,0090128813,REDACTED - PERSONAL DATA,"4,093.84",10/12/2018
Delivery Units,Adults and Communities,Direct Transfer Payments to So,0090128364,REDACTED - PERSONAL DATA,700.00,10/12/2018
Delivery Units,Adults and Communities,Fees and Charges,0090129206,REDACTED - PERSONAL DATA,-132.24,10/12/2018
Delivery Units,Adults and Communities,Direct Transfer Payments to So,0090128352,REDACTED - PERSONAL DATA,160.00,10/12/2018
Delivery Units,Adults and Communities,Direct Transfer Payments to So,0090128938,REDACTED - PERSONAL DATA,"1,560.72",10/12/2018
Delivery Units,Adults and Communities,Direct Transfer Payments to So,0090129899,REDACTED - PERSONAL DATA,347.20,12/12/2018
Delivery Units,Adults and Communities,Direct Transfer Payments to So,0090128815,REDACTED - PERSONAL DATA,347.20,10/12/2018
Delivery Units,Adults and Communities,Direct Transfer Payments to So,0090128525,REDACTED - PERSONAL DATA,560.00,10/12/2018
Delivery Units,Adults and Communities,Direct Transfer Payments to So,0090128286,REDACTED - PERSONAL DATA,"1,063.72",10/12/2018
Delivery Units,Adults and Communities,Direct Transfer Payments to So,0090128759,REDACTED - PERSONAL DATA,"1,431.96",10/12/2018
Delivery Units,Adults and Communities,Direct Transfer Payments to So,0090128916,REDACTED - PERSONAL DATA,410.96,10/12/2018
Delivery Units,Adults and Communities,Direct Transfer Payments to So,0090128893,REDACTED - PERSONAL DATA,"3,260.00",10/12/2018
Delivery Units,Adults and Communities,Direct Transfer Payments to So,0090128544,REDACTED - PERSONAL DATA,"2,304.96",10/12/2018
Delivery Units,Adults and Communities,Fees and Charges,0090125341,REDACTED - PERSONAL DATA,-443.66,10/12/2018
Delivery Units,Adults and Communities,Direct Transfer Payments to So,0090128289,REDACTED - PERSONAL DATA,218.24,10/12/2018
Delivery Units,Adults and Communities,Direct Transfer Payments to So,0090128379,REDACTED - PERSONAL DATA,870.00,10/12/2018
Delivery Units,Adults and Communities,Direct Transfer Payments to So,0090130545,REDACTED - PERSONAL DATA,"1,525.20",14/12/2018
Delivery Units,Adults and Communities,Direct Transfer Payments to So,0090128821,REDACTED - PERSONAL DATA,825.44,10/12/2018
Delivery Units,Adults and Communities,Direct Transfer Payments to So,0090128358,REDACTED - PERSONAL DATA,"3,279.20",10/12/2018
Delivery Units,Adults and Communities,Direct Transfer Payments to So,0090128804,REDACTED - PERSONAL DATA,392.00,10/12/2018
Delivery Units,Adults and Communities,Fees and Charges,0090128849,REDACTED - PERSONAL DATA,-216.40,10/12/2018
Delivery Units,Adults and Communities,Direct Transfer Payments to So,0090128851,REDACTED - PERSONAL DATA,960.00,10/12/2018
Delivery Units,Adults and Communities,Direct Transfer Payments to So,0090128669,REDACTED - PERSONAL DATA,"7,828.80",10/12/2018
Delivery Units,Adults and Communities,Direct Transfer Payments to So,0090128284,REDACTED - PERSONAL DATA,442.88,10/12/2018
Delivery Units,Adults and Communities,Direct Transfer Payments to So,0090128653,REDACTED - PERSONAL DATA,"2,066.00",10/12/2018
Delivery Units,Adults and Communities,Direct Transfer Payments to So,0090128293,REDACTED - PERSONAL DATA,"2,092.96",10/12/2018
Delivery Units,Adults and Communities,Direct Transfer Payments to So,0090128923,REDACTED - PERSONAL DATA,"1,092.00",10/12/2018
Delivery Units,Adults and Communities,Direct Transfer Payments to So,0090128879,REDACTED - PERSONAL DATA,231.40,10/12/2018
Delivery Units,Adults and Communities,Direct Transfer Payments to So,0090128933,REDACTED - PERSONAL DATA,643.60,10/12/2018
Delivery Units,Adults and Communities,Direct Transfer Payments to So,0090128372,REDACTED - PERSONAL DATA,"1,680.00",10/12/2018
Delivery Units,Adults and Communities,Direct Transfer Payments to So,0090128627,REDACTED - PERSONAL DATA,950.60,10/12/2018
Delivery Units,Adults and Communities,Direct Transfer Payments to So,0090128583,REDACTED - PERSONAL DATA,"2,211.80",10/12/2018
Delivery Units,Adults and Communities,Direct Transfer Payments to So,0090128314,REDACTED - PERSONAL DATA,772.32,10/12/2018
Delivery Units,Adults and Communities,Fees and Charges,0090127088,REDACTED - PERSONAL DATA,-22.49,10/12/2018
Delivery Units,Adults and Communities,Direct Transfer Payments to So,0090129617,REDACTED - PERSONAL DATA,700.00,11/12/2018
Delivery Units,Adults and Communities,Direct Transfer Payments to So,0090128638,REDACTED - PERSONAL DATA,"1,222.84",10/12/2018
Delivery Units,Adults and Communities,Direct Transfer Payments to So,0090128663,REDACTED - PERSONAL DATA,"2,518.48",10/12/2018
Delivery Units,Adults and Communities,Direct Transfer Payments to So,0090128888,REDACTED - PERSONAL DATA,"1,351.56",10/12/2018
Delivery Units,Adults and Communities,Direct Transfer Payments to So,0090128299,REDACTED - PERSONAL DATA,"1,802.08",10/12/2018
Delivery Units,Adults and Communities,Direct Transfer Payments to So,0090128883,REDACTED - PERSONAL DATA,966.84,10/12/2018
Delivery Units,Adults and Communities,Direct Transfer Payments to So,0090128939,REDACTED - PERSONAL DATA,321.80,10/12/2018
Delivery Units,Adults and Communities,Direct Transfer Payments to So,0090128630,REDACTED - PERSONAL DATA,390.00,10/12/2018
Delivery Units,Adults and Communities,Direct Transfer Payments to So,0090124368,REDACTED - PERSONAL DATA,-273.54,10/12/2018
Delivery Units,Adults and Communities,Direct Transfer Payments to So,0090128891,REDACTED - PERSONAL DATA,786.64,10/12/2018
Delivery Units,Adults and Communities,Direct Transfer Payments to So,0090128889,REDACTED - PERSONAL DATA,"1,689.44",10/12/2018
Delivery Units,Adults and Communities,Direct Transfer Payments to So,0090128928,REDACTED - PERSONAL DATA,901.04,10/12/2018
Delivery Units,Adults and Communities,Direct Transfer Payments to So,0090128853,REDACTED - PERSONAL DATA,"1,582.00",10/12/2018
Delivery Units,Adults and Communities,Direct Transfer Payments to So,0090128940,REDACTED - PERSONAL DATA,136.00,10/12/2018
Delivery Units,Adults and Communities,Direct Transfer Payments to So,0090128368,REDACTED - PERSONAL DATA,"1,113.44",10/12/2018
Delivery Units,Adults and Communities,Direct Transfer Payments to So,0090128587,REDACTED - PERSONAL DATA,975.28,10/12/2018
Delivery Units,Adults and Communities,Direct Transfer Payments to So,0090128858,REDACTED - PERSONAL DATA,"2,520.00",10/12/2018
Delivery Units,Adults and Communities,Direct Transfer Payments to So,0090128926,REDACTED - PERSONAL DATA,"1,164.24",10/12/2018
Delivery Units,Adults and Communities,Direct Transfer Payments to So,0090128642,REDACTED - PERSONAL DATA,933.88,10/12/2018
Delivery Units,Adults and Communities,Direct Transfer Payments to So,0090128319,REDACTED - PERSONAL DATA,279.12,10/12/2018
Delivery Units,Adults and Communities,Direct Transfer Payments to So,0090128946,REDACTED - PERSONAL DATA,"2,300.00",10/12/2018
Delivery Units,Adults and Communities,Fees and Charges,0090125344,REDACTED - PERSONAL DATA,-239.59,10/12/2018
Delivery Units,Adults and Communities,Direct Transfer Payments to So,0090128306,REDACTED - PERSONAL DATA,589.68,10/12/2018
Delivery Units,Adults and Communities,Fees and Charges,0090125348,REDACTED - PERSONAL DATA,-223.78,10/12/2018
Delivery Units,Adults and Communities,Direct Transfer Payments to So,0090128359,REDACTED - PERSONAL DATA,"2,027.36",27/12/2018
Delivery Units,Adults and Communities,Fees and Charges,0090130560,REDACTED - PERSONAL DATA,"1,103.40",18/12/2018
Delivery Units,Adults and Communities,Direct Transfer Payments to So,0090128374,REDACTED - PERSONAL DATA,730.92,10/12/2018
Delivery Units,Adults and Communities,Direct Transfer Payments to So,0090128361,REDACTED - PERSONAL DATA,128.00,10/12/2018
Delivery Units,Adults and Communities,Fees and Charges,0090129613,REDACTED - PERSONAL DATA,"-1,536.17",11/12/2018
Delivery Units,Adults and Communities,Fees and Charges,0090129624,REDACTED - PERSONAL DATA,"2,818.88",11/12/2018
Delivery Units,Adults and Communities,Direct Transfer Payments to So,0090128377,REDACTED - PERSONAL DATA,899.36,10/12/2018
Delivery Units,Adults and Communities,Fees and Charges,0090132050,REDACTED - PERSONAL DATA,-375.38,21/12/2018
Delivery Units,Adults and Communities,Fees and Charges,0090131462,REDACTED - PERSONAL DATA,0.06,20/12/2018
Delivery Units,Adults and Communities,Direct Transfer Payments to So,0090132289,REDACTED - PERSONAL DATA,"-2,456.90",24/12/2018
Delivery Units,Adults and Communities,Fees and Charges,0090132290,REDACTED - PERSONAL DATA,-72.60,24/12/2018
Delivery Units,Adults and Communities,Fees and Charges,0090132292,REDACTED - PERSONAL DATA,-151.85,24/12/2018
Delivery Units,Adults and Communities,Direct Transfer Payments to So,70080722,REDACTED - PERSONAL DATA,425.00,10/12/2018
Delivery Units,Adults and Communities,Direct Transfer Payments to So,70080723,REDACTED - PERSONAL DATA,"1,242.75",10/12/2018
Delivery Units,Adults and Communities,Direct Transfer Payments to So,70080724,REDACTED - PERSONAL DATA,"1,066.00",10/12/2018
Delivery Units,Adults and Communities,Direct Transfer Payments to So,70080725,REDACTED - PERSONAL DATA,57.90,10/12/2018
Delivery Units,Adults and Communities,Direct Transfer Payments to So,70080727,REDACTED - PERSONAL DATA,425.00,10/12/2018
Delivery Units,Adults and Communities,Direct Transfer Payments to So,70080901,REDACTED - PERSONAL DATA,360.00,10/12/2018
Delivery Units,Adults and Communities,Direct Transfer Payments to So,70081257,REDACTED - PERSONAL DATA,"1,066.00",10/12/2018
Delivery Units,Adults and Communities,Direct Transfer Payments to So,70081258,REDACTED - PERSONAL DATA,"1,066.00",10/12/2018
Delivery Units,Adults and Communities,Direct Transfer Payments to So,70081259,REDACTED - PERSONAL DATA,402.65,10/12/2018
Delivery Units,Adults and Communities,Direct Transfer Payments to So,70081261,REDACTED - PERSONAL DATA,425.00,10/12/2018
Delivery Units,Adults and Communities,Direct Transfer Payments to So,70081341,REDACTED - PERSONAL DATA,425.00,10/12/2018
Delivery Units,Adults and Communities,Direct Transfer Payments to So,70081694,REDACTED - PERSONAL DATA,320.43,10/12/2018
Delivery Units,Adults and Communities,Direct Transfer Payments to So,70081695,REDACTED - PERSONAL DATA,"1,065.99",10/12/2018
Delivery Units,Adults and Communities,Direct Transfer Payments to So,70081696,REDACTED - PERSONAL DATA,"1,066.00",10/12/2018
Delivery Units,Adults and Communities,Direct Transfer Payments to So,70081697,REDACTED - PERSONAL DATA,57.90,10/12/2018
Delivery Units,Adults and Communities,Direct Transfer Payments to So,70081698,REDACTED - PERSONAL DATA,866.24,10/12/2018
Delivery Units,Adults and Communities,Direct Transfer Payments to So,70081700,REDACTED - PERSONAL DATA,425.00,10/12/2018
Delivery Units,Adults and Communities,Direct Transfer Payments to So,70082119,REDACTED - PERSONAL DATA,850.00,10/12/2018
Delivery Units,Adults and Communities,Direct Transfer Payments to So,70082120,REDACTED - PERSONAL DATA,"2,132.00",10/12/2018
Delivery Units,Adults and Communities,Direct Transfer Payments to So,70082121,REDACTED - PERSONAL DATA,"2,132.00",10/12/2018
Delivery Units,Adults and Communities,Direct Transfer Payments to So,70082122,REDACTED - PERSONAL DATA,115.80,10/12/2018
Delivery Units,Adults and Communities,Direct Transfer Payments to So,70082124,REDACTED - PERSONAL DATA,850.00,10/12/2018
Delivery Units,Adults and Communities,Direct Transfer Payments to So,70082196,REDACTED - PERSONAL DATA,115.80,10/12/2018
Delivery Units,Adults and Communities,Direct Transfer Payments to So,80021788,REDACTED - PERSONAL DATA,216.72,10/12/2018
Delivery Units,Adults and Communities,Direct Transfer Payments to So,90127597,REDACTED - PERSONAL DATA,976.40,10/12/2018
Delivery Units,Adults and Communities,Direct Transfer Payments to So,90128307,REDACTED - PERSONAL DATA,792.80,10/12/2018
Delivery Units,Adults and Communities,Direct Transfer Payments to So,90128308,REDACTED - PERSONAL DATA,693.32,10/12/2018
Delivery Units,Adults and Communities,Direct Transfer Payments to So,90128357,REDACTED - PERSONAL DATA,753.28,10/12/2018
Delivery Units,Adults and Communities,Direct Transfer Payments to So,90128373,REDACTED - PERSONAL DATA,"1,131.00",10/12/2018
Delivery Units,Adults and Communities,Direct Transfer Payments to So,90128384,REDACTED - PERSONAL DATA,"1,575.60",10/12/2018
Delivery Units,Adults and Communities,Direct Transfer Payments to So,90128386,REDACTED - PERSONAL DATA,288.80,10/12/2018
Delivery Units,Adults and Communities,Direct Transfer Payments to So,90128659,REDACTED - PERSONAL DATA,746.88,10/12/2018
Delivery Units,Adults and Communities,Direct Transfer Payments to So,90128861,REDACTED - PERSONAL DATA,306.20,10/12/2018
Delivery Units,Adults and Communities,Direct Transfer Payments to So,90128868,REDACTED - PERSONAL DATA,"1,818.76",10/12/2018
Delivery Units,Adults and Communities,Direct Transfer Payments to So,90128887,REDACTED - PERSONAL DATA,480.80,10/12/2018
Delivery Units,Adults and Communities,Direct Transfer Payments to So,90128892,REDACTED - PERSONAL DATA,836.00,10/12/2018
Delivery Units,Adults and Communities,Direct Transfer Payments to So,90128930,REDACTED - PERSONAL DATA,965.36,10/12/2018
Delivery Units,Adults and Communities,Direct Transfer Payments to So,90129906,REDACTED - PERSONAL DATA,795.72,10/12/2018
Delivery Units,Adults and Communities,Other Agencies - Third Party P,0090130566,WESTMINSTER HOMECARE LTD,347.36,18/12/2018
Delivery Units,Adults and Communities,Other Agencies - Third Party P,0090130567,WESTMINSTER HOMECARE LTD,693.29,18/12/2018
Delivery Units,Adults and Communities,Other Agencies - Third Party P,0090130568,WESTMINSTER HOMECARE LTD,330.80,18/12/2018
Delivery Units,Adults and Communities,Other Agencies - Third Party P,0090130570,WESTMINSTER HOMECARE LTD,473.88,18/12/2018
Delivery Units,Adults and Communities,Other Agencies - Third Party P,0090130571,WESTMINSTER HOMECARE LTD,500.40,18/12/2018
Delivery Units,Adults and Communities,Other Agencies - Third Party P,0090130572,WESTMINSTER HOMECARE LTD,334.96,18/12/2018
